{"text_format":"1","workbook":"xlsx","n_sheets":4,"sheets":["1 Specifikation","2 Avtalstecknande","Admin","SysAdmin"],"not_rendered":{"charts":0,"images":3,"macros":1,"external_links":1,"defined_names":102,"comments":0,"pivot_tables":0},"unopened":[],"bounds":{"document_bytes":16777216,"sheet_cells":100000,"rows_first":2000,"rows_last":500,"rows_between":2000,"halvings":0,"cell_chars":16384,"cell_head_chars":4096},"cells_cut":0,"cells_raw":0,"read":"whole","date_system":"1900"}

{"sheet":"1 Specifikation","index":0,"n_rows":390,"n_cols":34,"rows_kept":390,"cut":false,"hidden":false,"merged":[[212,1,212,2],[212,3,212,6],[212,7,212,13],[212,16,212,23],[207,1,207,2],[207,3,207,6],[207,7,207,13],[207,16,207,23],[208,1,208,2],[208,3,208,6],[208,7,208,13],[208,16,208,23],[209,1,209,2],[209,3,209,6],[209,7,209,13],[209,16,209,23],[210,1,210,2],[210,3,210,6],[210,7,210,13],[210,16,210,23],[211,1,211,2],[211,3,211,6],[211,7,211,13],[211,16,211,23],[202,3,202,6],[202,7,202,13],[202,16,202,23],[203,1,203,2],[203,3,203,6],[203,7,203,13],[203,16,203,23],[204,1,204,2],[204,3,204,6],[204,7,204,13],[204,16,204,23],[205,1,205,2],[205,3,205,6],[205,7,205,13],[205,16,205,23],[206,1,206,2],[206,3,206,6],[206,7,206,13],[206,16,206,23],[253,1,253,2],[253,3,253,6],[253,7,253,10],[253,12,253,13],[253,16,253,23],[254,1,254,2],[254,3,254,6],[254,7,254,10],[254,12,254,13],[254,16,254,23],[255,1,255,2],[255,3,255,6],[255,7,255,10],[255,12,255,13],[255,16,255,23],[198,1,198,2],[198,3,198,6],[198,7,198,13],[198,16,198,23],[199,1,199,2],[199,3,199,6],[199,7,199,13],[199,16,199,23],[200,1,200,2],[200,3,200,6],[200,7,200,13],[200,16,200,23],[201,1,201,2],[201,3,201,6],[201,7,201,13],[201,16,201,23],[202,1,202,2],[249,1,249,2],[249,3,249,6],[249,7,249,10],[249,12,249,13],[249,16,249,23],[250,1,250,2],[250,3,250,6],[250,7,250,10],[250,12,250,13],[250,16,250,23],[251,1,251,2],[251,3,251,6],[251,7,251,10],[251,12,251,13],[251,16,251,23],[252,1,252,2],[252,3,252,6],[252,7,252,10],[252,12,252,13],[252,16,252,23],[245,7,245,10],[245,12,245,13],[245,16,245,23],[246,1,246,2],[246,3,246,6],[246,7,246,10],[246,12,246,13],[246,16,246,23],[247,1,247,2],[247,3,247,6],[247,7,247,10],[247,12,247,13],[247,16,247,23],[248,1,248,2],[248,3,248,6],[248,7,248,10],[248,12,248,13],[248,16,248,23],[241,12,241,13],[241,16,241,23],[242,1,242,2],[242,3,242,6],[242,7,242,10],[242,12,242,13],[242,16,242,23],[243,1,243,2],[243,3,243,6],[243,7,243,10],[243,12,243,13],[243,16,243,23],[244,1,244,2],[244,3,244,6],[244,7,244,10],[244,12,244,13],[244,16,244,23],[108,2,108,3],[108,4,108,5],[108,6,108,7],[108,8,108,11],[108,15,108,20],[108,21,108,22],[108,23,108,24],[109,2,109,3],[109,4,109,5],[109,6,109,7],[109,8,109,11],[109,15,109,20],[109,21,109,22],[109,23,109,24],[110,2,110,3],[110,4,110,5],[110,6,110,7],[110,8,110,11],[110,15,110,20],[110,21,110,22],[110,23,110,24],[105,2,105,3],[105,4,105,5],[105,6,105,7],[105,8,105,11],[105,15,105,20],[105,21,105,22],[105,23,105,24],[106,2,106,3],[106,4,106,5],[106,6,106,7],[106,8,106,11],[106,15,106,20],[106,21,106,22],[106,23,106,24],[107,2,107,3],[107,4,107,5],[107,6,107,7],[107,8,107,11],[107,15,107,20],[107,21,107,22],[107,23,107,24],[102,2,102,3],[102,4,102,5],[102,6,102,7],[102,8,102,11],[102,15,102,20],[102,21,102,22],[102,23,102,24],[103,2,103,3],[103,4,103,5],[103,6,103,7],[103,8,103,11],[103,15,103,20],[103,21,103,22],[103,23,103,24],[104,2,104,3],[104,4,104,5],[104,6,104,7],[104,8,104,11],[104,15,104,20],[104,21,104,22],[104,23,104,24],[99,2,99,3],[99,4,99,5],[99,6,99,7],[99,8,99,11],[99,15,99,20],[99,21,99,22],[99,23,99,24],[100,2,100,3],[100,4,100,5],[100,6,100,7],[100,8,100,11],[100,15,100,20],[100,21,100,22],[100,23,100,24],[101,2,101,3],[101,4,101,5],[101,6,101,7],[101,8,101,11],[101,15,101,20],[101,21,101,22],[101,23,101,24],[96,2,96,3],[96,4,96,5],[96,6,96,7],[96,8,96,11],[96,15,96,20],[96,21,96,22],[96,23,96,24],[97,2,97,3],[97,4,97,5],[97,6,97,7],[97,8,97,11],[97,15,97,20],[97,21,97,22],[97,23,97,24],[98,2,98,3],[98,4,98,5],[98,6,98,7],[98,8,98,11],[98,15,98,20],[98,21,98,22],[98,23,98,24],[172,16,172,23],[173,1,173,2],[259,12,259,13],[259,16,259,23],[257,1,257,2],[257,3,257,6],[257,7,257,10],[257,12,257,13],[257,16,257,23],[258,1,258,2],[258,3,258,6],[258,7,258,10],[258,12,258,13],[258,16,258,23],[238,12,238,13],[238,16,238,23],[239,1,239,2],[239,3,239,6],[239,7,239,10],[239,12,239,13],[239,16,239,23],[240,1,240,2],[240,3,240,6],[240,7,240,10],[240,12,240,13],[240,16,240,23],[256,1,256,2],[256,3,256,6],[256,7,256,10],[256,12,256,13],[256,16,256,23],[173,7,173,13],[173,16,173,23],[235,1,235,2],[235,3,235,6],[235,7,235,10],[235,12,235,13],[235,16,235,23],[197,16,197,23],[214,16,214,23],[213,16,213,23],[215,16,215,23],[223,1,223,2],[217,1,217,2],[225,16,225,23],[218,1,218,2],[218,3,218,6],[176,7,176,13],[197,7,197,13],[213,7,213,13],[215,7,215,13],[216,7,216,13],[227,1,227,2],[176,16,176,23],[224,12,224,13],[216,16,216,23],[217,16,217,23],[218,16,218,23],[222,1,222,4],[225,7,225,10],[225,3,225,6],[216,3,216,6],[217,3,217,6],[217,7,217,13],[126,5,126,11],[167,16,167,23],[168,1,168,2],[168,3,168,6],[168,7,168,13],[168,16,168,23],[169,1,169,2],[169,3,169,6],[169,7,169,13],[169,16,169,23],[170,1,170,2],[170,3,170,6],[170,7,170,13],[170,16,170,23],[171,1,171,2],[171,3,171,6],[171,7,171,13],[171,16,171,23],[164,16,164,23],[165,1,165,2],[165,3,165,6],[165,7,165,13],[165,16,165,23],[166,1,166,2],[166,3,166,6],[166,7,166,13],[166,16,166,23],[142,1,142,3],[154,16,154,23],[155,16,155,23],[156,16,156,23],[157,16,157,23],[158,16,158,23],[159,16,159,23],[160,16,160,23],[161,16,161,23],[162,16,162,23],[160,7,160,13],[163,7,163,13],[94,2,94,3],[94,4,94,5],[94,6,94,7],[94,8,94,11],[94,15,94,20],[94,21,94,22],[94,23,94,24],[95,2,95,3],[95,4,95,5],[95,6,95,7],[95,8,95,11],[95,15,95,20],[95,21,95,22],[95,23,95,24],[111,2,111,3],[111,4,111,5],[111,6,111,7],[111,8,111,11],[111,15,111,20],[111,21,111,22],[111,23,111,24],[155,7,155,13],[158,1,158,2],[161,7,161,13],[118,21,118,22],[91,2,91,3],[91,4,91,5],[91,6,91,7],[91,8,91,11],[91,15,91,20],[91,21,91,22],[91,23,91,24],[92,2,92,3],[92,4,92,5],[92,6,92,7],[92,8,92,11],[92,15,92,20],[92,21,92,22],[92,23,92,24],[93,2,93,3],[93,4,93,5],[93,6,93,7],[93,8,93,11],[93,15,93,20],[93,21,93,22],[93,23,93,24],[87,21,87,22],[87,23,87,24],[88,2,88,3],[88,4,88,5],[88,6,88,7],[88,8,88,11],[88,15,88,20],[88,21,88,22],[88,23,88,24],[89,2,89,3],[89,4,89,5],[89,6,89,7],[89,8,89,11],[89,15,89,20],[89,21,89,22],[89,23,89,24],[90,2,90,3],[90,4,90,5],[90,6,90,7],[90,8,90,11],[90,15,90,20],[90,21,90,22],[90,23,90,24],[52,4,52,5],[53,4,53,5],[60,6,60,7],[61,6,61,7],[62,6,62,7],[51,6,51,7],[52,6,52,7],[53,6,53,7],[54,6,54,7],[55,6,55,7],[56,6,56,7],[57,6,57,7],[58,6,58,7],[59,6,59,7],[54,4,54,5],[55,4,55,5],[56,4,56,5],[57,4,57,5],[58,4,58,5],[59,4,59,5],[63,23,63,24],[62,23,62,24],[66,23,66,24],[113,23,113,24],[65,23,65,24],[57,23,57,24],[59,15,59,20],[58,15,58,20],[58,21,58,22],[63,15,63,20],[61,2,61,3],[62,2,62,3],[63,2,63,3],[64,2,64,3],[65,2,65,3],[66,2,66,3],[57,8,57,11],[58,8,58,11],[59,8,59,11],[60,8,60,11],[61,8,61,11],[60,4,60,5],[61,4,61,5],[62,4,62,5],[63,4,63,5],[64,4,64,5],[77,4,77,5],[77,6,77,7],[87,4,87,5],[87,6,87,7],[87,8,87,11],[87,15,87,20],[58,2,58,3],[59,2,59,3],[60,2,60,3],[175,16,175,23],[54,8,54,11],[55,8,55,11],[56,8,56,11],[65,4,65,5],[66,4,66,5],[62,8,62,11],[63,8,63,11],[64,8,64,11],[65,8,65,11],[66,8,66,11],[63,6,63,7],[64,6,64,7],[65,6,65,7],[66,6,66,7],[87,2,87,3],[149,11,151,13],[153,16,153,23],[163,16,163,23],[174,16,174,23],[161,1,161,2],[154,7,154,13],[152,1,152,4],[120,5,120,11],[77,2,77,3],[60,23,60,24],[58,23,58,24],[59,23,59,24],[61,23,61,24],[8,9,8,14],[9,9,9,14],[381,1,381,8],[286,1,286,2],[291,1,291,2],[287,1,287,2],[339,1,339,8],[329,1,329,8],[330,1,330,8],[341,1,341,8],[344,1,344,8],[336,1,336,8],[335,1,335,8],[333,1,333,8],[359,1,359,8],[360,1,369,8],[301,1,301,3],[288,3,288,6],[343,1,343,8],[340,1,340,8],[155,1,155,2],[215,3,215,6],[282,1,282,2],[282,12,282,13],[282,7,282,10],[283,7,283,10],[282,3,282,6],[158,7,158,13],[159,7,159,13],[225,1,225,2],[216,1,216,2],[224,3,224,6],[283,16,283,23],[282,16,282,23],[236,1,236,2],[236,3,236,6],[236,7,236,10],[236,12,236,13],[236,16,236,23],[237,1,237,2],[237,3,237,6],[237,7,237,10],[237,12,237,13],[237,16,237,23],[238,1,238,2],[47,25,47,42],[154,3,154,6],[224,16,224,23],[223,12,223,13],[223,16,223,23],[142,11,145,13],[220,11,221,13],[218,7,218,13],[54,23,54,24],[53,15,53,20],[52,21,52,22],[52,15,52,20],[57,15,57,20],[64,23,64,24],[214,7,214,13],[163,3,163,6],[225,12,225,13],[156,7,156,13],[157,7,157,13],[174,7,174,13],[167,1,167,2],[167,3,167,6],[167,7,167,13],[172,1,172,2],[172,3,172,6],[172,7,172,13],[162,1,162,2],[162,3,162,6],[174,1,174,2],[174,3,174,6],[177,7,177,13],[180,7,180,13],[183,7,183,13],[186,7,186,13],[175,1,175,2],[175,7,175,13],[162,7,162,13],[164,1,164,2],[164,3,164,6],[164,7,164,13],[192,7,192,13],[195,3,195,6],[195,7,195,13],[176,1,176,2],[176,3,176,6],[214,1,214,2],[214,3,214,6],[158,3,158,6],[159,1,159,2],[159,3,159,6],[197,3,197,6],[175,3,175,6],[156,3,156,6],[157,1,157,2],[157,3,157,6],[160,1,160,2],[160,3,160,6],[161,3,161,6],[177,1,177,2],[177,3,177,6],[180,1,180,2],[180,3,180,6],[183,1,183,2],[183,3,183,6],[186,1,186,2],[186,3,186,6],[189,1,189,2],[189,3,189,6],[192,1,192,2],[192,3,192,6],[173,3,173,6],[195,1,195,2],[126,15,126,20],[126,21,126,22],[124,15,124,20],[124,21,124,22],[117,15,117,20],[117,21,117,22],[117,1,117,3],[118,1,118,3],[120,1,120,3],[122,1,122,3],[64,21,64,22],[64,15,64,20],[153,1,153,2],[66,21,66,22],[65,15,65,20],[66,15,66,20],[137,1,137,9],[115,1,115,5],[144,1,144,3],[153,7,153,13],[124,1,124,3],[126,1,126,3],[128,1,128,3],[130,1,130,3],[117,5,117,11],[118,5,118,11],[122,5,122,11],[124,5,124,11],[128,5,128,11],[130,5,130,11],[77,8,77,11],[77,15,77,20],[33,3,33,4],[30,6,30,8],[46,4,46,5],[46,6,46,7],[47,4,47,5],[61,21,61,22],[61,15,61,20],[45,15,45,16],[56,21,56,22],[60,21,60,22],[57,21,57,22],[59,21,59,22],[60,15,60,20],[55,15,55,20],[51,15,51,20],[49,15,49,20],[49,21,49,22],[48,21,48,22],[46,8,46,11],[47,8,47,11],[48,8,48,11],[49,8,49,11],[50,8,50,11],[51,8,51,11],[52,8,52,11],[53,8,53,11],[52,2,52,3],[53,2,53,3],[54,2,54,3],[55,2,55,3],[56,2,56,3],[57,2,57,3],[29,6,29,8],[50,4,50,5],[51,4,51,5],[38,1,38,10],[39,1,39,10],[41,1,41,10],[10,4,10,6],[10,7,10,8],[11,4,11,6],[11,7,11,8],[10,1,10,3],[13,4,13,8],[14,4,14,8],[32,1,32,2],[15,15,15,17],[30,3,30,4],[36,1,36,2],[36,3,36,4],[19,1,24,8],[35,3,35,4],[36,6,36,7],[32,3,32,4],[33,1,33,2],[27,15,27,22],[15,4,15,8],[15,18,15,22],[29,3,29,4],[14,15,14,18],[14,19,14,22],[26,15,26,22],[10,15,10,18],[19,15,23,22],[11,19,11,20],[11,21,11,22],[12,15,12,18],[11,1,11,3],[12,1,12,3],[10,19,10,22],[12,21,12,22],[13,15,13,18],[16,1,16,3],[15,1,15,3],[9,7,9,8],[13,1,13,3],[12,7,12,8],[12,4,12,6],[9,15,9,18],[9,19,9,22],[13,19,13,22],[29,1,29,2],[35,6,35,7],[2,1,2,4],[2,15,2,17],[2,19,2,22],[3,1,4,8],[3,15,4,22],[7,1,7,6],[7,7,7,8],[7,15,7,20],[7,21,7,22],[5,1,5,8],[6,1,6,8],[5,9,6,14],[3,9,3,14],[4,9,4,14],[7,9,7,14],[8,15,8,20],[11,15,11,18],[14,1,14,3],[27,1,27,8],[35,1,35,2],[30,1,30,2],[8,1,8,6],[8,7,8,8],[8,21,8,22],[9,1,9,3],[9,4,9,6],[16,4,16,8],[16,18,16,22],[16,15,16,17],[12,19,12,20],[52,23,52,24],[53,21,53,22],[53,23,53,24],[54,15,54,20],[54,21,54,22],[47,21,47,22],[389,19,389,22],[386,15,387,22],[383,15,383,22],[382,15,382,22],[385,15,385,22],[381,15,381,22],[333,15,333,18],[298,18,299,19],[303,20,303,21],[314,18,314,19],[321,20,321,21],[318,17,319,19],[315,20,315,21],[301,20,301,21],[320,18,320,19],[302,20,302,21],[379,15,380,22],[339,15,339,18],[372,15,372,22],[375,15,375,22],[298,20,299,21],[298,17,299,17],[116,20,116,22],[131,20,131,22],[129,20,129,22],[121,20,121,22],[50,23,50,24],[51,23,51,24],[46,23,46,24],[47,23,47,24],[47,15,47,20],[46,15,46,20],[46,21,46,22],[42,1,42,10],[48,15,48,20],[45,1,45,4],[44,5,45,10],[48,2,48,3],[49,2,49,3],[50,2,50,3],[51,2,51,3],[47,6,47,7],[48,6,48,7],[49,6,49,7],[50,6,50,7],[51,21,51,22],[48,23,48,24],[49,23,49,24],[50,15,50,20],[50,21,50,22],[46,2,46,3],[47,2,47,3],[49,4,49,5],[48,4,48,5],[56,23,56,24],[56,15,56,20],[55,21,55,22],[55,23,55,24],[227,12,227,13],[227,16,227,23],[65,21,65,22],[153,3,153,6],[143,1,143,9],[149,10,152,10],[224,7,224,10],[220,7,220,9],[223,3,223,6],[223,7,223,10],[215,1,215,2],[140,4,140,8],[138,1,138,9],[148,1,149,9],[145,1,145,9],[151,1,151,5],[154,1,154,2],[163,1,163,2],[147,1,147,9],[213,1,213,2],[155,3,155,6],[156,1,156,2],[63,21,63,22],[62,15,62,20],[62,21,62,22],[123,20,123,22],[125,20,125,22],[127,20,127,22],[284,1,284,2],[280,3,280,6],[234,12,234,13],[234,16,234,23],[280,12,280,13],[287,16,287,23],[227,7,227,10],[233,7,233,10],[226,7,226,10],[226,3,226,6],[226,12,226,13],[229,16,229,23],[228,12,228,13],[232,12,232,13],[230,12,230,13],[232,16,232,23],[226,16,226,23],[231,12,231,13],[231,16,231,23],[230,16,230,23],[229,12,229,13],[233,16,233,23],[233,12,233,13],[228,16,228,23],[283,1,283,2],[283,12,283,13],[281,12,281,13],[281,16,281,23],[280,16,280,23],[234,7,234,10],[280,7,280,10],[281,7,281,10],[309,25,309,27],[295,18,297,23],[288,12,288,13],[288,16,288,23],[285,16,285,23],[298,22,299,23],[284,7,284,10],[299,11,299,12],[295,17,297,17],[295,15,297,16],[291,17,291,18],[290,12,290,13],[284,12,284,13],[284,16,284,23],[300,22,302,23],[300,18,300,19],[298,16,299,16],[279,1,279,2],[279,3,279,6],[281,1,281,2],[232,3,232,6],[233,3,233,6],[232,1,232,2],[228,7,228,10],[229,7,229,10],[230,7,230,10],[231,7,231,10],[232,7,232,10],[281,3,281,6],[230,1,230,2],[229,1,229,2],[233,1,233,2],[261,7,261,10],[264,7,264,10],[267,7,267,10],[270,7,270,10],[273,7,273,10],[276,7,276,10],[279,7,279,10],[238,3,238,6],[238,7,238,10],[259,1,259,2],[259,3,259,6],[259,7,259,10],[241,1,241,2],[241,3,241,6],[241,7,241,10],[245,1,245,2],[245,3,245,6],[375,1,375,8],[342,1,342,8],[373,1,373,8],[372,1,372,8],[353,1,353,8],[354,1,356,8],[358,1,358,5],[348,1,348,8],[349,1,349,8],[350,1,350,8],[328,1,328,8],[288,1,288,2],[300,11,300,12],[315,1,321,13],[317,18,317,19],[316,18,316,19],[316,20,316,21],[308,17,309,18],[291,12,291,13],[292,12,292,13],[291,19,291,20],[314,20,314,21],[320,20,320,21],[347,1,347,8],[347,15,347,18],[283,3,283,6],[284,3,284,6],[334,1,334,8],[286,3,286,6],[285,7,285,10],[286,7,286,10],[287,7,287,10],[288,7,288,10],[287,12,287,13],[306,15,306,16],[306,17,306,18],[307,1,309,13],[285,12,285,13],[285,1,285,2],[303,18,303,19],[287,3,287,6],[286,12,286,13],[285,3,285,6],[286,16,286,23],[329,23,378,27],[374,1,374,8],[302,18,302,19],[373,15,373,22],[374,15,374,22],[300,20,300,21],[301,18,301,19],[314,1,314,13],[325,1,325,8],[327,15,327,18],[317,20,317,21],[327,1,327,8],[324,1,324,5],[77,21,77,22],[77,23,77,24],[78,2,78,3],[78,4,78,5],[78,6,78,7],[78,8,78,11],[78,15,78,20],[78,21,78,22],[78,23,78,24],[124,23,124,24],[132,23,132,24],[134,23,134,24],[126,23,126,24],[128,15,128,20],[128,21,128,22],[128,23,128,24],[130,15,130,20]],"merged_total":1304,"flags":["merged_cut"]}
[]
[null,null,null,null,null,null,null,null,null,null,null,null,null,null,{"$f":"\"Avrop nr: \"&B15","v":"Avrop nr: "},null,null,null,null,null,null,null,{"$f":"\"Avrop nr: \"&B15","v":"Avrop nr: "}]
[null,"Avropsförfrågan",null,null,null,null,null,null,null,null,null,null,null,null,null,"Avropssvar",null,null,null,{"$f":"IF(LarmStatus,\"Minst ett av de obligatoriska kraven är inte ifyllda eller besvarade med Nej\",\"\")","v":"Minst ett av de obligatoriska kraven är inte ifyllda eller besvarade med Nej"},null,null,null,null,null,null,null,null,null,null,null,null,null,{"$f":"OR(AH4:AH1035)","v":true}]
[null,"Instruktion till avropande organisation: \nSpara ned blanketten på din dator.\nGulmarkerade rutor fylls i av avropare innan blanketten skickas.\n\nBlanketten skickas med e-post till antagna leverantörer inom aktuellt avropsområde.\nSe vidare \"Vägledning vid avrop\".",null,null,null,null,null,null,null,"Ramavtalsområde",null,null,null,null,null,"Instruktion till leverantör:\nBlåmarkerade rutor fylls i av leverantören.\nLäs och kontrollera obligatoriska krav.\nReturnera blanketten med e-post till avropande organisation (oavsett Ja eller Nej).\nMer information finns under vissa rubriker"]
[null,null,null,null,null,null,null,null,null,"Möbler och inredning"]
[null,"Steg 1 - Administrativa uppgifter",null,null,null,null,null,null,null,"Avrop med förnyad konkurrensutsättning\nKammarkollegiets diarienr. "]
[null,"Uppgifter om avropande organisation",null,null,null,null,null,null,null,null,null,null,null,null,null,"Uppgifter om Ramavtalsleverantören"]
[null,"Myndighet/Organisation (namn)",null,null,null,null,null,"Organisationsnummer",null,"23.3-8004-18",null,null,null,null,null,"Ramavtalsleverantörens namn",null,null,null,null,null,"Organisationsnummer"]
[null,null,null,null,null,null,null,null,null,"Avropsblankett",null,null,null,null,null,null,null,null,null,null,null,{"$f":"IFERROR(INDEX(Admin!$E$61:$E$105,MATCH('1 Specifikation'!$P$9,Admin!$C$61:$C$105,0)),\"\")","v":""}]
[null,"Postadress",null,null,"Postnummer",null,null,"Ort",null,"Version 2,0",null,null,null,null,null,"Kontaktperson",null,null,null,"E-post"]
[null,null,null,null,null,null,null,null,null,null,null,null,null,null,null,{"$f":"IFERROR(INDEX(Admin!$L$61:$L$105,MATCH('1 Specifikation'!$P$9,Admin!$C$61:$C$105,0)),\"\")","v":""},null,null,null,{"$f":"IFERROR(INDEX(Admin!$N$61:$N$105,MATCH('1 Specifikation'!$P$9,Admin!$C$61:$C$105,0)),\"\")","v":""}]
[null,"Avdelning, enhet etc",null,null,"Kontaktperson",null,null,"Telefon",null,null,null,null,null,null,null,"Postadress",null,null,null,"Postnummer",null,"Ort"]
[null,null,null,null,null,null,null,null,null,null,null,null,null,null,null,{"$f":"IFERROR(INDEX(Admin!$F$61:$F$105,MATCH('1 Specifikation'!$P$9,Admin!$C$61:$C$105,0)),\"\")","v":""},null,null,null,{"$f":"IFERROR(INDEX(Admin!$G$61:$G$105,MATCH('1 Specifikation'!$P$9,Admin!$C$61:$C$105,0)),\"\")","v":""},null,{"$f":"IFERROR(INDEX(Admin!$H$61:$H$105,MATCH('1 Specifikation'!$P$9,Admin!$C$61:$C$105,0)),\"\")","v":""}]
[null,"Referens/diarienr för avropet",null,null,"E-post",null,null,null,null,null,null,null,null,null,null,"Telefon",null,null,null,"Offertnummer el likn för detta avropssvar"]
[]
[null,null,null,null,null,null,null,null,null,null,null,null,null,null,null,"Avropssvar lämnas Ja/Nej",null,null,"Om Nej, motivering"]
[null,null,null,null,"     ",null,null,null,null,null,null,null,null,null,null,null,null,null,null,null,null,null,null,null,null,null,null,null,null,null,null,null,null,{"$f":"IF(AND(P17=0,P17<>\"Ja\"),TRUE,FALSE)","v":true}]
[]
[null,"Förnyad kontroll av leverantörskrav (ESPD)",null,null,null,null,null,null,null,null,null,null,null,null,null,"Leverantörskrav (ESPD) - Ramavtalsleverantörens intygande"]
[null,"Av 15 kap. 1 samt 4 §§ LOU framgår att ramavtalsleverantören ska lämna en ny egenförsäkran samt att en ny kontroll av kvalificeringskrav och uteslutningsgrunder ska genomföras vid avrop genom förnyad konkurrensutsättning. Kammarkollegiet ansvarar för denna kontrollskyldighet genom att löpande genomföra leverantörsprövning under hela ramavtalsperioden. \nKontrollskyldigheten bör också hanteras så att ramavtalsleverantören i sitt avropssvar bekräftar att i ramavtalsupphandlingen lämnad egenförsäkran fortfarande är korrekt, samt att ingivna bevis fortfarande är aktuella. Avropande myndighet kan själv begära in ett eller flera bevis enligt punkten 2 till höger.",null,null,null,null,null,null,null,null,null,null,null,null,null,"Genom att lämna avropssvar, bekräftar ramavtalsleverantören följande:\n1.\tAtt i ramavtalsupphandlingen lämnad egenförsäkran fortfarande är korrekt.\n2.\tAtt i ramavtalsupphandlingen ingivna bevis, såsom Sanningsförsäkran avseende uteslutningsgrunder (gällande leverantören och ev. åberopade företag) fortfarande aktuella.\n3.\tAtt ramavtalsleverantören har säkerställt att ev. åberopade företag inte omfattas av någon uteslutningsgrund.\nMed \"åberopat företag\" avses specifikt en underleverantör som har åberopats i ramavtalsupphandlingen för att uppfylla krav på ekonomisk, teknisk och yrkesmässig kapacitet”."]
[]
[]
[]
[]
[]
[null,null,null,null,null,null,null,null,null,null,null,null,null,null,null,"Uppgift om underleverantörer (i förekommande fall)"]
[null,"Information om avropet, t ex syfte och omfattning",null,null,null,null,null,null,null,null,null,null,null,null,null,"Redogör för vilka underleverantör/er inkl. org. nr. som kommer att medverka till fullgörandet av kontraktet samt vilka delar underleverantörerna fullgör. \nMed Underleverantör avses en juridisk eller fysisk person som Ramavtalsleverantören anlitar för att fullgöra hela eller delar av det åtagande som följer av Ramavtalet och Kontrakt. \n"]
[]
[]
[null,"Sista dag för att ställa frågor",null,"Sista dag för \nsvar på frågor",null,null,"E-post för frågor (om annan än ovan)"]
[]
[]
[null,"Sista dag för avropssvar",null,"Avropssvarets giltighetstid"]
[]
[]
[null,"Kontraktets giltighetstid (t.o.m. datum)",null,"Förlängningsoption\n(t.o.m. datum)"]
[]
[]
[null,"Ange geografiskt område"]
[null,"Delområde 1"]
[]
[null,"Ange delområde"]
[null,"Välj delområde"]
[]
[null,null,null,null,null,"OBS! Montering i funktionsdugligt skick ska ingå i ramavtalspriset (om inte annat anges i ramavtalet). Undantaget delområde är arkiv och magasin."]
[null,"Steg 2 - Specifikation av varor och tjänster",null,null,null,null,null,null,null,null,null,null,null,null,null,"Leverantörens svar"]
[null,"Tjänst nr","Ange vara eller tjänst",null,"Välj tjänst i lista\nOBS! Varje tjänst kan väljas flera gånger.",null,"Ange kortfattad beskrivning (fritext) av varan så att den går att härledas i steg 4",null,"Specificera varan/tjänsten i fritext eller hänvisa till bilaga. Ange bilagans nummer. Om specifikation görs i en bilaga anges \"Antal\" till 1 för hela beställningen. Vid flera bilagor, använd en rad per bilaga.\n\nSpecificera uppdragets omfattning, t.ex. start- och slutdatum",null,null,null,"Specifikation i bilaga?","Antal\n(blir alltid 1 om bilaga)\n\nOBS: Ange endast siffra",null,"Vid behov specificera varor/tjänster, annan information eller hänvisa till bilaga.",null,null,null,null,null,"Pris/enhet\n\nOBS: Ange endast siffra",null,"Pris totalt"]
[null,"01.","Välj vara eller tjänst",null,"Välj vara/tjänst",null,null,null,null,null,null,null,null,null,null,null,null,null,null,null,null,null,null,{"$f":"IFERROR(IF(M48=\"Ja\",V48,V48*N48),0)","v":0}]
[null,"02.","Välj vara eller tjänst",null,"Välj vara/tjänst",null,null,null,null,null,null,null,null,null,null,null,null,null,null,null,null,null,null,{"$f":"IFERROR(IF(M49=\"Ja\",V49,V49*N49),0)","v":0}]
[null,"03.","Välj vara eller tjänst",null,"Välj vara/tjänst",null,null,null,null,null,null,null,null,null,null,null,null,null,null,null,null,null,null,0]
[null,"04.","Välj vara eller tjänst",null,"Välj vara/tjänst",null,null,null,null,null,null,null,null,null,null,null,null,null,null,null,null,null,null,0]
[null,"05.","Välj vara eller tjänst",null,"Välj vara/tjänst",null,null,null,null,null,null,null,null,null,null,null,null,null,null,null,null,null,null,0]
[null,"06.","Välj vara eller tjänst",null,"Välj vara/tjänst",null,null,null,null,null,null,null,null,null,null,null,null,null,null,null,null,null,null,0]
[null,"07.","Välj vara eller tjänst",null,"Välj vara/tjänst",null,null,null,null,null,null,null,null,null,null,null,null,null,null,null,null,null,null,0]
[null,"08.","Välj vara eller tjänst",null,"Välj vara/tjänst",null,null,null,null,null,null,null,null,null,null,null,null,null,null,null,null,null,null,0]
[null,"09.","Välj vara eller tjänst",null,"Välj vara/tjänst",null,null,null,null,null,null,null,null,null,null,null,null,null,null,null,null,null,null,0]
[null,"10.","Välj vara eller tjänst",null,"Välj vara/tjänst",null,null,null,null,null,null,null,null,null,null,null,null,null,null,null,null,null,null,0]
[null,"11.","Välj vara eller tjänst",null,"Välj vara/tjänst",null,null,null,null,null,null,null,null,null,null,null,null,null,null,null,null,null,null,0]
[null,"12.","Välj vara eller tjänst",null,"Välj vara/tjänst",null,null,null,null,null,null,null,null,null,null,null,null,null,null,null,null,null,null,0]
[null,"13.","Välj vara eller tjänst",null,"Välj vara/tjänst",null,null,null,null,null,null,null,null,null,null,null,null,null,null,null,null,null,null,0]
[null,"14.","Välj vara eller tjänst",null,"Välj vara/tjänst",null,null,null,null,null,null,null,null,null,null,null,null,null,null,null,null,null,null,0]
[null,"15.","Välj vara eller tjänst",null,"Välj vara/tjänst",null,null,null,null,null,null,null,null,null,null,null,null,null,null,null,null,null,null,0]
[null,"16.","Välj vara eller tjänst",null,"Välj vara/tjänst",null,null,null,null,null,null,null,null,null,null,null,null,null,null,null,null,null,null,0]
[null,"17.","Välj vara eller tjänst",null,"Välj vara/tjänst",null,null,null,null,null,null,null,null,null,null,null,null,null,null,null,null,null,null,0]
[null,"18.","Välj vara eller tjänst",null,"Välj vara/tjänst",null,null,null,null,null,null,null,null,null,null,null,null,null,null,null,null,null,null,0]
[null,"19.","Välj vara eller tjänst",null,"Välj vara/tjänst",null,null,null,null,null,null,null,null,null,null,null,null,null,null,null,null,null,null,0]
[null,"20.","Välj vara eller tjänst",null,"Välj vara/tjänst",null,null,null,null,null,null,null,null,null,null,null,null,null,null,null,null,null,null,0]
[null,"21.","Välj vara eller tjänst",null,"Välj vara/tjänst",null,null,null,null,null,null,null,null,null,null,null,null,null,null,null,null,null,null,{"$f":"IFERROR(IF(M68=\"Ja\",V68,V68*N68),0)","v":0}]
[null,"22.","Välj vara eller tjänst",null,"Välj vara/tjänst",null,null,null,null,null,null,null,null,null,null,null,null,null,null,null,null,null,null,0]
[null,"23.","Välj vara eller tjänst",null,"Välj vara/tjänst",null,null,null,null,null,null,null,null,null,null,null,null,null,null,null,null,null,null,0]
[null,"24.","Välj vara eller tjänst",null,"Välj vara/tjänst",null,null,null,null,null,null,null,null,null,null,null,null,null,null,null,null,null,null,0]
[null,"25.","Välj vara eller tjänst",null,"Välj vara/tjänst",null,null,null,null,null,null,null,null,null,null,null,null,null,null,null,null,null,null,0]
[null,"26.","Välj vara eller tjänst",null,"Välj vara/tjänst",null,null,null,null,null,null,null,null,null,null,null,null,null,null,null,null,null,null,0]
[null,"27.","Välj vara eller tjänst",null,"Välj vara/tjänst",null,null,null,null,null,null,null,null,null,null,null,null,null,null,null,null,null,null,0]
[null,"28.","Välj vara eller tjänst",null,"Välj vara/tjänst",null,null,null,null,null,null,null,null,null,null,null,null,null,null,null,null,null,null,0]
[null,"29.","Välj vara eller tjänst",null,"Välj vara/tjänst",null,null,null,null,null,null,null,null,null,null,null,null,null,null,null,null,null,null,0]
[null,"30.","Välj vara eller tjänst",null,"Välj vara/tjänst",null,null,null,null,null,null,null,null,null,null,null,null,null,null,null,null,null,null,0]
[null,"31.","Välj vara eller tjänst",null,"Välj vara/tjänst",null,null,null,null,null,null,null,null,null,null,null,null,null,null,null,null,null,null,0]
[null,"33.","Välj vara eller tjänst",null,"Välj vara/tjänst",null,null,null,null,null,null,null,null,null,null,null,null,null,null,null,null,null,null,0]
[null,"33.","Välj vara eller tjänst",null,"Välj vara/tjänst",null,null,null,null,null,null,null,null,null,null,null,null,null,null,null,null,null,null,0]
[null,"34.","Välj vara eller tjänst",null,"Välj vara/tjänst",null,null,null,null,null,null,null,null,null,null,null,null,null,null,null,null,null,null,0]
[null,"35.","Välj vara eller tjänst",null,"Välj vara/tjänst",null,null,null,null,null,null,null,null,null,null,null,null,null,null,null,null,null,null,0]
[null,"36.","Välj vara eller tjänst",null,"Välj vara/tjänst",null,null,null,null,null,null,null,null,null,null,null,null,null,null,null,null,null,null,0]
[null,"37.","Välj vara eller tjänst",null,"Välj vara/tjänst",null,null,null,null,null,null,null,null,null,null,null,null,null,null,null,null,null,null,0]
[null,"38.","Välj vara eller tjänst",null,"Välj vara/tjänst",null,null,null,null,null,null,null,null,null,null,null,null,null,null,null,null,null,null,0]
[null,"39.","Välj vara eller tjänst",null,"Välj vara/tjänst",null,null,null,null,null,null,null,null,null,null,null,null,null,null,null,null,null,null,0]
[null,"40.","Välj vara eller tjänst",null,"Välj vara/tjänst",null,null,null,null,null,null,null,null,null,null,null,null,null,null,null,null,null,null,0]
[null,"41.","Välj vara eller tjänst",null,"Välj vara/tjänst",null,null,null,null,null,null,null,null,null,null,null,null,null,null,null,null,null,null,{"$f":"IFERROR(IF(M88=\"Ja\",V88,V88*N88),0)","v":0}]
[null,"44.","Välj vara eller tjänst",null,"Välj vara/tjänst",null,null,null,null,null,null,null,null,null,null,null,null,null,null,null,null,null,null,0]
[null,"43.","Välj vara eller tjänst",null,"Välj vara/tjänst",null,null,null,null,null,null,null,null,null,null,null,null,null,null,null,null,null,null,0]
[null,"44.","Välj vara eller tjänst",null,"Välj vara/tjänst",null,null,null,null,null,null,null,null,null,null,null,null,null,null,null,null,null,null,0]
[null,"45.","Välj vara eller tjänst",null,"Välj vara/tjänst",null,null,null,null,null,null,null,null,null,null,null,null,null,null,null,null,null,null,0]
[null,"46.","Välj vara eller tjänst",null,"Välj vara/tjänst",null,null,null,null,null,null,null,null,null,null,null,null,null,null,null,null,null,null,0]
[null,"47.","Välj vara eller tjänst",null,"Välj vara/tjänst",null,null,null,null,null,null,null,null,null,null,null,null,null,null,null,null,null,null,0]
[null,"48.","Välj vara eller tjänst",null,"Välj vara/tjänst",null,null,null,null,null,null,null,null,null,null,null,null,null,null,null,null,null,null,0]
[null,"49.","Välj vara eller tjänst",null,"Välj vara/tjänst",null,null,null,null,null,null,null,null,null,null,null,null,null,null,null,null,null,null,0]
[null,"50.","Välj vara eller tjänst",null,"Välj vara/tjänst",null,null,null,null,null,null,null,null,null,null,null,null,null,null,null,null,null,null,0]
[null,"51.","Välj vara eller tjänst",null,"Välj vara/tjänst",null,null,null,null,null,null,null,null,null,null,null,null,null,null,null,null,null,null,0]
[null,"52.","Välj vara eller tjänst",null,"Välj vara/tjänst",null,null,null,null,null,null,null,null,null,null,null,null,null,null,null,null,null,null,0]
[null,"53.","Välj vara eller tjänst",null,"Välj vara/tjänst",null,null,null,null,null,null,null,null,null,null,null,null,null,null,null,null,null,null,0]
[null,"54.","Välj vara eller tjänst",null,"Välj vara/tjänst",null,null,null,null,null,null,null,null,null,null,null,null,null,null,null,null,null,null,0]
[null,"55.","Välj vara eller tjänst",null,"Välj vara/tjänst",null,null,null,null,null,null,null,null,null,null,null,null,null,null,null,null,null,null,0]
[null,"56.","Välj vara eller tjänst",null,"Välj vara/tjänst",null,null,null,null,null,null,null,null,null,null,null,null,null,null,null,null,null,null,0]
[null,"57.","Välj vara eller tjänst",null,"Välj vara/tjänst",null,null,null,null,null,null,null,null,null,null,null,null,null,null,null,null,null,null,0]
[null,"58.","Välj vara eller tjänst",null,"Välj vara/tjänst",null,null,null,null,null,null,null,null,null,null,null,null,null,null,null,null,null,null,0]
[null,"59.","Välj vara eller tjänst",null,"Välj vara/tjänst",null,null,null,null,null,null,null,null,null,null,null,null,null,null,null,null,null,null,0]
[null,"60.","Välj vara eller tjänst",null,"Välj vara/tjänst",null,null,null,null,null,null,null,null,null,null,null,null,null,null,null,null,null,null,0]
[null,"61.","Välj vara eller tjänst",null,"Välj vara/tjänst",null,null,null,null,null,null,null,null,null,null,null,null,null,null,null,null,null,null,{"$f":"IFERROR(IF(M108=\"Ja\",V108,V108*N108),0)","v":0}]
[null,"62.","Välj vara eller tjänst",null,"Välj vara/tjänst",null,null,null,null,null,null,null,null,null,null,null,null,null,null,null,null,null,null,0]
[null,"63.","Välj vara eller tjänst",null,"Välj vara/tjänst",null,null,null,null,null,null,null,null,null,null,null,null,null,null,null,null,null,null,0]
[null,"64.","Välj vara eller tjänst",null,"Välj vara/tjänst",null,null,null,null,null,null,null,null,null,null,null,null,null,null,null,null,null,null,0]
[null,"65.","Välj vara eller tjänst",null,"Välj vara/tjänst",null,null,null,null,null,null,null,null,null,null,null,null,null,null,null,null,null,null,0]
[]
[null,null,null,null,null,null,null,null,null,null,null,null,null,null,null,null,null,null,null,null,null,null,"Totalt pris varor/tjänster: ",{"$f":"SUM(X48:Y112)","v":0}]
[]
[null,"Steg 2.1 - Specifikation av cirkulära tjänster"]
[]
[null,"Tjänst",null,null,"Ange om tjänsten ingår i avropet (Ja/Nej)","Specificera tjänster i fritext eller hänvisa till bilaga. Ange bilagans nummer. Om specifikation görs i en bilaga anges \"Antal\" till 1 för hela beställningen. Vid flera bilagor, använd en rad per bilaga.\n\nSpecificera uppdragets omfattning, t.ex. start- och slutdatum",null,null,null,null,null,null,"Specifikation i bilaga?","Antal\n(blir alltid 1 om bilaga)\n\nOBS: Ange endast siffra",null,"Vid behov specificera varor/tjänster, annan information eller hänvisa till bilaga.",null,null,null,null,null,"Pris/enhet\n\nOBS: Ange endast siffra",null,"Pris totalt"]
[null,"Inventering",null,null,null,null,null,null,null,null,null,null,null,null,null,null,null,null,null,null,null,null,null,{"$f":"IFERROR(IF(M119=\"Ja\",V119,V119*N119),\"\")","v":0}]
[]
[null,"Möbel- och möbeltextiltvätt",null,null,null,null,null,null,null,null,null,null,null,null,null,null,null,null,null,null,null,null,null,{"$f":"IFERROR(IF(M121=\"Ja\",V121,V121*N121),\"\")","v":0}]
[]
[null,"Rekonditionering",null,null,null,null,null,null,null,null,null,null,null,null,null,null,null,null,null,null,null,null,null,{"$f":"IFERROR(IF(M123=\"Ja\",V123,V123*N123),\"\")","v":0}]
[]
[null,"Renovering",null,null,null,null,null,null,null,null,null,null,null,null,null,null,null,null,null,null,null,null,null,{"$f":"IFERROR(IF(M125=\"Ja\",V125,V125*N125),\"\")","v":0}]
[]
[null,"Tapetsering, stoppningsarbete",null,null,null,null,null,null,null,null,null,null,null,null,null,null,null,null,null,null,null,null,null,{"$f":"IFERROR(IF(M127=\"Ja\",V127,V127*N127),\"\")","v":0}]
[]
[null,"Lackering, omlackering",null,null,null,null,null,null,null,null,null,null,null,null,null,null,null,null,null,null,null,null,null,{"$f":"IFERROR(IF(M129=\"Ja\",V129,V129*N129),\"\")","v":0}]
[]
[null,"Återtag, återköp, destruktion",null,null,null,null,null,null,null,null,null,null,null,null,null,null,null,null,null,null,null,null,null,{"$f":"IFERROR(IF(M131=\"Ja\",V131,V131*N131),\"\")","v":0}]
[]
[null,null,null,null,null,null,null,null,null,null,null,null,null,null,null,null,null,null,null,null,null,null,"Totalt pris cirkulära tjänster: ",{"$f":"SUM(X119:Y131)","v":0}]
[]
[null,null,null,null,null,null,null,null,null,null,null,null,null,null,null,null,null,null,null,null,null,null,"Totalt pris (utvärderas): ",{"$f":"X133+X114","v":0}]
[]
[null,"Steg 3 - Grund för tilldelning av kontrakt"]
[null,"I enlighet med ramavtalet sker tilldelning av kontrakt utifrån tilldelningsgrunden: Ekonomiskt mest fördelaktiga utifrån bästa förhållande mellan pris och kvalitet"]
[null,"Alt. 2. Ekonomiskt mest fördelaktiga utifrån bästa förhållande mellan pris och kvalitet",null,null,null,null,null,null,null,null,"(Tag bort detta fält och valmöjligheten, tilldelningsgrunden ska vara fast utifrån respektive ramavtal.)"]
[1]
[1]
[1]
[1,"Utvärderingsmodell",null,null,null,null,null,null,null,null,null,"Instruktion:\nObservera att de två föreslagna alternativen (utöver Lägsta pris) endast är exempel på vanligt förekommande utvärderings-modeller. Det är alltid den avropande organisationen som avgör om man vill använda sig av dem. Det går även att ange egen modell."]
[1,"Ange nedan utvärderingsmodell som kommer att tillämpas för att utse vinnande avropssvar. \n"]
[1]
[1,"Välj utvärdering….."]
[]
[null,"Förfarande  om två avropssvar har erhållit samma poängsumma/utvärderingspris"]
[null,"(plats för text utifrån aktuellt ramavtal)"]
[]
[]
[null,"Steg 4 - Kravspecifikation",null,null,null,null,null,null,null,null,null,null,null,null,null,"Kravuppfyllnad"]
[null,"Obligatoriska krav (\"ska-krav\")"]
[null,"Välj tjänst (endast de som valts i steg 2 ovan är möjliga)\nOBS! Varje tjänst kan väljas flera gånger.",null,"Välj krav ur kravkatalog \nOBS! varje krav kan väljas flera gånger\n\n(tillkommande obligatoriska krav)",null,null,null,"Precisera krav i fritext eller hänvisa till bilaga",null,null,null,null,null,null,null,"Uppfylls kravet?\nJa/Nej","Beskrivning av hur leverantören uppfyller kravet eller referera till bilaga."]
[null,"Välj Vara eller Tjänst",null,null,null,null,null,null,null,null,null,null,null,null,null,null,null,null,null,null,null,null,null,null,null,null,{"$f":"IF(OR(LEFT(B155,4)=\"Välj\",B155=\"\"),FALSE,TRUE)","v":false},{"$f":"IF(P155<>\"\",TRUE,FALSE)","v":false},null,null,null,null,null,{"$f":"IF(AND(AA155=TRUE,AB155=TRUE),FALSE,IF(AND(AA155=FALSE,AB155=FALSE),FALSE,TRUE))","v":false}]
[null,"Välj Vara eller Tjänst",null,null,null,null,null,null,null,null,null,null,null,null,null,null,null,null,null,null,null,null,null,null,null,null,{"$f":"IF(OR(LEFT(B156,4)=\"Välj\",B156=\"\"),FALSE,TRUE)","v":false},{"$f":"IF(P156<>\"\",TRUE,FALSE)","v":false},null,null,null,null,null,{"$f":"IF(AND(AA156=TRUE,AB156=TRUE),FALSE,IF(AND(AA156=FALSE,AB156=FALSE),FALSE,TRUE))","v":false}]
[null,"Välj Vara eller Tjänst",null,null,null,null,null,null,null,null,null,null,null,null,null,null,null,null,null,null,null,null,null,null,null,null,false,false,null,null,null,null,null,false]
[null,"Välj Vara eller Tjänst",null,null,null,null,null,null,null,null,null,null,null,null,null,null,null,null,null,null,null,null,null,null,null,null,false,false,null,null,null,null,null,false]
[null,"Välj Vara eller Tjänst",null,null,null,null,null,null,null,null,null,null,null,null,null,null,null,null,null,null,null,null,null,null,null,null,false,false,null,null,null,null,null,false]
[null,"Välj Vara eller Tjänst",null,null,null,null,null,null,null,null,null,null,null,null,null,null,null,null,null,null,null,null,null,null,null,null,false,false,null,null,null,null,null,false]
[null,"Välj Vara eller Tjänst",null,null,null,null,null,null,null,null,null,null,null,null,null,null,null,null,null,null,null,null,null,null,null,null,false,false,null,null,null,null,null,false]
[null,"Välj Vara eller Tjänst",null,null,null,null,null,null,null,null,null,null,null,null,null,null,null,null,null,null,null,null,null,null,null,null,false,false,null,null,null,null,null,false]
[null,"Välj Vara eller Tjänst",null,null,null,null,null,null,null,null,null,null,null,null,null,null,null,null,null,null,null,null,null,null,null,null,false,false,null,null,null,null,null,false]
[null,"Välj Vara eller Tjänst",null,null,null,null,null,null,null,null,null,null,null,null,null,null,null,null,null,null,null,null,null,null,null,null,false,false,null,null,null,null,null,false]
[null,"Välj Vara eller Tjänst",null,null,null,null,null,null,null,null,null,null,null,null,null,null,null,null,null,null,null,null,null,null,null,null,{"$f":"IF(OR(LEFT(B165,4)=\"Välj\",B165=\"\"),FALSE,TRUE)","v":false},{"$f":"IF(P165<>\"\",TRUE,FALSE)","v":false},null,null,null,null,null,{"$f":"IF(AND(AA165=TRUE,AB165=TRUE),FALSE,IF(AND(AA165=FALSE,AB165=FALSE),FALSE,TRUE))","v":false}]
[null,"Välj Vara eller Tjänst",null,null,null,null,null,null,null,null,null,null,null,null,null,null,null,null,null,null,null,null,null,null,null,null,false,false,null,null,null,null,null,false]
[null,"Välj Vara eller Tjänst",null,null,null,null,null,null,null,null,null,null,null,null,null,null,null,null,null,null,null,null,null,null,null,null,false,false,null,null,null,null,null,false]
[null,"Välj Vara eller Tjänst",null,null,null,null,null,null,null,null,null,null,null,null,null,null,null,null,null,null,null,null,null,null,null,null,false,false,null,null,null,null,null,false]
[null,"Välj Vara eller Tjänst",null,null,null,null,null,null,null,null,null,null,null,null,null,null,null,null,null,null,null,null,null,null,null,null,false,false,null,null,null,null,null,false]
[null,"Välj Vara eller Tjänst",null,null,null,null,null,null,null,null,null,null,null,null,null,null,null,null,null,null,null,null,null,null,null,null,false,false,null,null,null,null,null,false]
[null,"Välj Vara eller Tjänst",null,null,null,null,null,null,null,null,null,null,null,null,null,null,null,null,null,null,null,null,null,null,null,null,false,false,null,null,null,null,null,false]
[null,"Välj Vara eller Tjänst",null,null,null,null,null,null,null,null,null,null,null,null,null,null,null,null,null,null,null,null,null,null,null,null,false,false,null,null,null,null,null,false]
[null,"Välj Vara eller Tjänst",null,null,null,null,null,null,null,null,null,null,null,null,null,null,null,null,null,null,null,null,null,null,null,null,false,false,null,null,null,null,null,false]
[null,"Välj Vara eller Tjänst",null,null,null,null,null,null,null,null,null,null,null,null,null,null,null,null,null,null,null,null,null,null,null,null,false,false,null,null,null,null,null,false]
[null,"Välj Vara eller Tjänst",null,null,null,null,null,null,null,null,null,null,null,null,null,null,null,null,null,null,null,null,null,null,null,null,false,false,null,null,null,null,null,false]
[null,"Välj Vara eller Tjänst",null,null,null,null,null,null,null,null,null,null,null,null,null,null,null,null,null,null,null,null,null,null,null,null,false,false,null,null,null,null,null,false]
[null,"Välj Vara eller Tjänst",null,null,null,null,null,null,null,null,null,null,null,null,null,null,null,null,null,null,null,null,null,null,null,null,false,false,null,null,null,null,null,false]
[null,"Välj Vara eller Tjänst",null,null,null,null,null,null,null,null,null,null,null,null,null,null,null,null,null,null,null,null,null,null,null,null,{"$f":"IF(OR(LEFT(B178,4)=\"Välj\",B178=\"\"),FALSE,TRUE)","v":false},{"$f":"IF(P178<>\"\",TRUE,FALSE)","v":false},null,null,null,null,null,{"$f":"IF(AND(AA178=TRUE,AB178=TRUE),FALSE,IF(AND(AA178=FALSE,AB178=FALSE),FALSE,TRUE))","v":false}]
[null,"Välj Vara eller Tjänst",null,null,null,null,null,null,null,null,null,null,null,null,null,null,null,null,null,null,null,null,null,null,null,null,false,false,null,null,null,null,null,false]
[null,"Välj Vara eller Tjänst",null,null,null,null,null,null,null,null,null,null,null,null,null,null,null,null,null,null,null,null,null,null,null,null,false,false,null,null,null,null,null,false]
[null,"Välj Vara eller Tjänst",null,null,null,null,null,null,null,null,null,null,null,null,null,null,null,null,null,null,null,null,null,null,null,null,false,false,null,null,null,null,null,false]
[null,"Välj Vara eller Tjänst",null,null,null,null,null,null,null,null,null,null,null,null,null,null,null,null,null,null,null,null,null,null,null,null,false,false,null,null,null,null,null,false]
[null,"Välj Vara eller Tjänst",null,null,null,null,null,null,null,null,null,null,null,null,null,null,null,null,null,null,null,null,null,null,null,null,false,false,null,null,null,null,null,false]
[null,"Välj Vara eller Tjänst",null,null,null,null,null,null,null,null,null,null,null,null,null,null,null,null,null,null,null,null,null,null,null,null,false,false,null,null,null,null,null,false]
[null,"Välj Vara eller Tjänst",null,null,null,null,null,null,null,null,null,null,null,null,null,null,null,null,null,null,null,null,null,null,null,null,false,false,null,null,null,null,null,false]
[null,"Välj Vara eller Tjänst",null,null,null,null,null,null,null,null,null,null,null,null,null,null,null,null,null,null,null,null,null,null,null,null,false,false,null,null,null,null,null,false]
[null,"Välj Vara eller Tjänst",null,null,null,null,null,null,null,null,null,null,null,null,null,null,null,null,null,null,null,null,null,null,null,null,false,false,null,null,null,null,null,false]
[null,"Välj Vara eller Tjänst",null,null,null,null,null,null,null,null,null,null,null,null,null,null,null,null,null,null,null,null,null,null,null,null,false,false,null,null,null,null,null,false]
[null,"Välj Vara eller Tjänst",null,null,null,null,null,null,null,null,null,null,null,null,null,null,null,null,null,null,null,null,null,null,null,null,false,false,null,null,null,null,null,false]
[null,"Välj Vara eller Tjänst",null,null,null,null,null,null,null,null,null,null,null,null,null,null,null,null,null,null,null,null,null,null,null,null,false,false,null,null,null,null,null,false]
[null,"Välj Vara eller Tjänst",null,null,null,null,null,null,null,null,null,null,null,null,null,null,null,null,null,null,null,null,null,null,null,null,false,false,null,null,null,null,null,false]
[null,"Välj Vara eller Tjänst",null,null,null,null,null,null,null,null,null,null,null,null,null,null,null,null,null,null,null,null,null,null,null,null,false,false,null,null,null,null,null,false]
[null,"Välj Vara eller Tjänst",null,null,null,null,null,null,null,null,null,null,null,null,null,null,null,null,null,null,null,null,null,null,null,null,false,false,null,null,null,null,null,false]
[null,"Välj Vara eller Tjänst",null,null,null,null,null,null,null,null,null,null,null,null,null,null,null,null,null,null,null,null,null,null,null,null,false,false,null,null,null,null,null,false]
[null,"Välj Vara eller Tjänst",null,null,null,null,null,null,null,null,null,null,null,null,null,null,null,null,null,null,null,null,null,null,null,null,false,false,null,null,null,null,null,false]
[null,"Välj Vara eller Tjänst",null,null,null,null,null,null,null,null,null,null,null,null,null,null,null,null,null,null,null,null,null,null,null,null,false,false,null,null,null,null,null,false]
[null,"Välj Vara eller Tjänst",null,null,null,null,null,null,null,null,null,null,null,null,null,null,null,null,null,null,null,null,null,null,null,null,false,false,null,null,null,null,null,false]
[null,"Välj Vara eller Tjänst",null,null,null,null,null,null,null,null,null,null,null,null,null,null,null,null,null,null,null,null,null,null,null,null,false,false,null,null,null,null,null,false]
[null,"Välj Vara eller Tjänst",null,null,null,null,null,null,null,null,null,null,null,null,null,null,null,null,null,null,null,null,null,null,null,null,false,false,null,null,null,null,null,false]
[null,"Välj Vara eller Tjänst",null,null,null,null,null,null,null,null,null,null,null,null,null,null,null,null,null,null,null,null,null,null,null,null,false,false,null,null,null,null,null,false]
[null,"Välj Vara eller Tjänst",null,null,null,null,null,null,null,null,null,null,null,null,null,null,null,null,null,null,null,null,null,null,null,null,false,false,null,null,null,null,null,false]
[null,"Välj Vara eller Tjänst",null,null,null,null,null,null,null,null,null,null,null,null,null,null,null,null,null,null,null,null,null,null,null,null,false,false,null,null,null,null,null,false]
[null,"Välj Vara eller Tjänst",null,null,null,null,null,null,null,null,null,null,null,null,null,null,null,null,null,null,null,null,null,null,null,null,false,false,null,null,null,null,null,false]
[null,"Välj Vara eller Tjänst",null,null,null,null,null,null,null,null,null,null,null,null,null,null,null,null,null,null,null,null,null,null,null,null,false,false,null,null,null,null,null,false]
[null,"Välj Vara eller Tjänst",null,null,null,null,null,null,null,null,null,null,null,null,null,null,null,null,null,null,null,null,null,null,null,null,false,false,null,null,null,null,null,false]
[null,"Välj Vara eller Tjänst",null,null,null,null,null,null,null,null,null,null,null,null,null,null,null,null,null,null,null,null,null,null,null,null,false,false,null,null,null,null,null,false]
[null,"Välj Vara eller Tjänst",null,null,null,null,null,null,null,null,null,null,null,null,null,null,null,null,null,null,null,null,null,null,null,null,false,false,null,null,null,null,null,false]
[null,"Välj Vara eller Tjänst",null,null,null,null,null,null,null,null,null,null,null,null,null,null,null,null,null,null,null,null,null,null,null,null,false,false,null,null,null,null,null,false]
[null,"Välj Vara eller Tjänst",null,null,null,null,null,null,null,null,null,null,null,null,null,null,null,null,null,null,null,null,null,null,null,null,false,false,null,null,null,null,null,false]
[null,"Välj Vara eller Tjänst",null,null,null,null,null,null,null,null,null,null,null,null,null,null,null,null,null,null,null,null,null,null,null,null,false,false,null,null,null,null,null,false]
[null,"Välj Vara eller Tjänst",null,null,null,null,null,null,null,null,null,null,null,null,null,null,null,null,null,null,null,null,null,null,null,null,false,false,null,null,null,null,null,false]
[null,"Välj Vara eller Tjänst",null,null,null,null,null,null,null,null,null,null,null,null,null,null,null,null,null,null,null,null,null,null,null,null,false,false,null,null,null,null,null,false]
[null,"Välj Vara eller Tjänst",null,null,null,null,null,null,null,null,null,null,null,null,null,null,null,null,null,null,null,null,null,null,null,null,{"$f":"IF(OR(LEFT(B213,4)=\"Välj\",B213=\"\"),FALSE,TRUE)","v":false},{"$f":"IF(P213<>\"\",TRUE,FALSE)","v":false},null,null,null,null,null,{"$f":"IF(AND(AA213=TRUE,AB213=TRUE),FALSE,IF(AND(AA213=FALSE,AB213=FALSE),FALSE,TRUE))","v":false}]
[null,"Välj Vara eller Tjänst",null,null,null,null,null,null,null,null,null,null,null,null,null,null,null,null,null,null,null,null,null,null,null,null,false,false,null,null,null,null,null,false]
[null,"Välj Vara eller Tjänst",null,null,null,null,null,null,null,null,null,null,null,null,null,null,null,null,null,null,null,null,null,null,null,null,false,false,null,null,null,null,null,false]
[null,"Välj Vara eller Tjänst",null,null,null,null,null,null,null,null,null,null,null,null,null,null,null,null,null,null,null,null,null,null,null,null,false,false,null,null,null,null,null,false]
[null,"Välj Vara eller Tjänst",null,null,null,null,null,null,null,null,null,null,null,null,null,null,null,null,null,null,null,null,null,null,null,null,false,false,null,null,null,null,null,false]
[null,"Välj Vara eller Tjänst",null,null,null,null,null,null,null,null,null,null,null,null,null,null,null,null,null,null,null,null,null,null,null,null,false,false,null,null,null,null,null,false]
[null,"Välj Vara eller Tjänst",null,null,null,null,null,null,null,null,null,null,null,null,null,null,null,null,null,null,null,null,null,null,null,null,false,false,null,null,null,null,null,false]
[]
[]
[]
[null,"Tilldelningskriterier (\"bör-krav\")"]
[null,"Välj vara (endast de som valts i steg 2 ovan är möjliga)\nOBS! Varje vara kan väljas flera gånger.",null,"Välj krav ur kravkatalog \nOBS! varje krav kan väljas flera gånger\n",null,null,null,"Precisera krav i fritext eller hänvisa till bilaga\n\n",null,null,null,{"$f":"IF(TillDelVal=1,\"\",\"Ange poäng-värde\n\")","v":"Ange poäng-värde\n"},{"$f":"IF(TillDelVal=1,\"\",\"Ange prisavdrag från totalpriset (kr)\n\")","v":"Ange prisavdrag från totalpriset (kr)\n"},null,null,"Uppfyller kravet?","Beskrivning av hur leverantören uppfyller kravet eller referera till bilaga"]
[null,"Välj Vara",null,null,null,null,null,null,null,null,null,null,null,null,null,null,null,null,null,null,null,null,null,null,null,{"$f":"OR(LEFT(B225,4)=\"Välj\",B225=\"\")","v":true},{"$f":"IF(AND($Z225=FALSE,OR(L225<>\"\",M225<>\"\")),FALSE,IF(OR(B225=\"\",LEFT(B225,4)=\"Välj\"),FALSE,TRUE))","v":false},{"$f":"IF(P225<>\"\",TRUE,FALSE)","v":false},null,null,null,null,null,{"$f":"IF(AND(AA225=TRUE,AB225=TRUE),FALSE,IF(AND(AA225=FALSE,AB225=FALSE),FALSE,TRUE))","v":false}]
[null,"Välj Vara",null,null,null,null,null,null,null,null,null,null,null,null,null,null,null,null,null,null,null,null,null,null,null,{"$f":"OR(LEFT(B226,4)=\"Välj\",B226=\"\")","v":true},{"$f":"IF(AND($Z226=FALSE,OR(L226<>\"\",M226<>\"\")),FALSE,IF(OR(B226=\"\",LEFT(B226,4)=\"Välj\"),FALSE,TRUE))","v":false},false,null,null,null,null,null,false]
[null,"Välj Vara",null,null,null,null,null,null,null,null,null,null,null,null,null,null,null,null,null,null,null,null,null,null,null,true,false,false,null,null,null,null,null,false]
[null,"Välj Vara",null,null,null,null,null,null,null,null,null,null,null,null,null,null,null,null,null,null,null,null,null,null,null,true,false,false,null,null,null,null,null,false]
[null,"Välj Vara",null,null,null,null,null,null,null,null,null,null,null,null,null,null,null,null,null,null,null,null,null,null,null,true,false,false,null,null,null,null,null,false]
[null,"Välj Vara",null,null,null,null,null,null,null,null,null,null,null,null,null,null,null,null,null,null,null,null,null,null,null,true,false,false,null,null,null,null,null,false]
[null,"Välj Vara",null,null,null,null,null,null,null,null,null,null,null,null,null,null,null,null,null,null,null,null,null,null,null,true,false,false,null,null,null,null,null,false]
[null,"Välj Vara",null,null,null,null,null,null,null,null,null,null,null,null,null,null,null,null,null,null,null,null,null,null,null,true,false,false,null,null,null,null,null,false]
[null,"Välj Vara",null,null,null,null,null,null,null,null,null,null,null,null,null,null,null,null,null,null,null,null,null,null,null,true,false,false,null,null,null,null,null,false]
[null,"Välj Vara",null,null,null,null,null,null,null,null,null,null,null,null,null,null,null,null,null,null,null,null,null,null,null,true,false,false,null,null,null,null,null,false]
[null,"Välj Vara",null,null,null,null,null,null,null,null,null,null,null,null,null,null,null,null,null,null,null,null,null,null,null,true,false,false,null,null,null,null,null,false]
[null,"Välj Vara",null,null,null,null,null,null,null,null,null,null,null,null,null,null,null,null,null,null,null,null,null,null,null,{"$f":"OR(LEFT(B236,4)=\"Välj\",B236=\"\")","v":true},{"$f":"IF(AND($Z236=FALSE,OR(L236<>\"\",M236<>\"\")),FALSE,IF(OR(B236=\"\",LEFT(B236,4)=\"Välj\"),FALSE,TRUE))","v":false},{"$f":"IF(P236<>\"\",TRUE,FALSE)","v":false},null,null,null,null,null,{"$f":"IF(AND(AA236=TRUE,AB236=TRUE),FALSE,IF(AND(AA236=FALSE,AB236=FALSE),FALSE,TRUE))","v":false}]
[null,"Välj Vara",null,null,null,null,null,null,null,null,null,null,null,null,null,null,null,null,null,null,null,null,null,null,null,true,false,false,null,null,null,null,null,false]
[null,"Välj Vara",null,null,null,null,null,null,null,null,null,null,null,null,null,null,null,null,null,null,null,null,null,null,null,true,false,false,null,null,null,null,null,false]
[null,"Välj Vara",null,null,null,null,null,null,null,null,null,null,null,null,null,null,null,null,null,null,null,null,null,null,null,true,false,false,null,null,null,null,null,false]
[null,"Välj Vara",null,null,null,null,null,null,null,null,null,null,null,null,null,null,null,null,null,null,null,null,null,null,null,true,false,false,null,null,null,null,null,false]
[null,"Välj Vara",null,null,null,null,null,null,null,null,null,null,null,null,null,null,null,null,null,null,null,null,null,null,null,true,false,false,null,null,null,null,null,false]
[null,"Välj Vara",null,null,null,null,null,null,null,null,null,null,null,null,null,null,null,null,null,null,null,null,null,null,null,true,false,false,null,null,null,null,null,false]
[null,"Välj Vara",null,null,null,null,null,null,null,null,null,null,null,null,null,null,null,null,null,null,null,null,null,null,null,true,false,false,null,null,null,null,null,false]
[null,"Välj Vara",null,null,null,null,null,null,null,null,null,null,null,null,null,null,null,null,null,null,null,null,null,null,null,true,false,false,null,null,null,null,null,false]
[null,"Välj Vara",null,null,null,null,null,null,null,null,null,null,null,null,null,null,null,null,null,null,null,null,null,null,null,true,false,false,null,null,null,null,null,false]
[null,"Välj Vara",null,null,null,null,null,null,null,null,null,null,null,null,null,null,null,null,null,null,null,null,null,null,null,true,false,false,null,null,null,null,null,false]
[null,"Välj Vara",null,null,null,null,null,null,null,null,null,null,null,null,null,null,null,null,null,null,null,null,null,null,null,true,false,false,null,null,null,null,null,false]
[null,"Välj Vara",null,null,null,null,null,null,null,null,null,null,null,null,null,null,null,null,null,null,null,null,null,null,null,true,false,false,null,null,null,null,null,false]
[null,"Välj Vara",null,null,null,null,null,null,null,null,null,null,null,null,null,null,null,null,null,null,null,null,null,null,null,true,false,false,null,null,null,null,null,false]
[null,"Välj Vara",null,null,null,null,null,null,null,null,null,null,null,null,null,null,null,null,null,null,null,null,null,null,null,true,false,false,null,null,null,null,null,false]
[null,"Välj Vara",null,null,null,null,null,null,null,null,null,null,null,null,null,null,null,null,null,null,null,null,null,null,null,{"$f":"OR(LEFT(B251,4)=\"Välj\",B251=\"\")","v":true},{"$f":"IF(AND($Z251=FALSE,OR(L251<>\"\",M251<>\"\")),FALSE,IF(OR(B251=\"\",LEFT(B251,4)=\"Välj\"),FALSE,TRUE))","v":false},{"$f":"IF(P251<>\"\",TRUE,FALSE)","v":false},null,null,null,null,null,{"$f":"IF(AND(AA251=TRUE,AB251=TRUE),FALSE,IF(AND(AA251=FALSE,AB251=FALSE),FALSE,TRUE))","v":false}]
[null,"Välj Vara",null,null,null,null,null,null,null,null,null,null,null,null,null,null,null,null,null,null,null,null,null,null,null,true,false,false,null,null,null,null,null,false]
[null,"Välj Vara",null,null,null,null,null,null,null,null,null,null,null,null,null,null,null,null,null,null,null,null,null,null,null,true,false,false,null,null,null,null,null,false]
[null,"Välj Vara",null,null,null,null,null,null,null,null,null,null,null,null,null,null,null,null,null,null,null,null,null,null,null,true,false,false,null,null,null,null,null,false]
[null,"Välj Vara",null,null,null,null,null,null,null,null,null,null,null,null,null,null,null,null,null,null,null,null,null,null,null,true,false,false,null,null,null,null,null,false]
[null,"Välj Vara",null,null,null,null,null,null,null,null,null,null,null,null,null,null,null,null,null,null,null,null,null,null,null,true,false,false,null,null,null,null,null,false]
[null,"Välj Vara",null,null,null,null,null,null,null,null,null,null,null,null,null,null,null,null,null,null,null,null,null,null,null,true,false,false,null,null,null,null,null,false]
[null,"Välj Vara",null,null,null,null,null,null,null,null,null,null,null,null,null,null,null,null,null,null,null,null,null,null,null,true,false,false,null,null,null,null,null,false]
[null,"Välj Vara",null,null,null,null,null,null,null,null,null,null,null,null,null,null,null,null,null,null,null,null,null,null,null,true,false,false,null,null,null,null,null,false]
[null,"Välj Vara",null,null,null,null,null,null,null,null,null,null,null,null,null,null,null,null,null,null,null,null,null,null,null,true,false,false,null,null,null,null,null,false]
[null,"Välj Vara",null,null,null,null,null,null,null,null,null,null,null,null,null,null,null,null,null,null,null,null,null,null,null,true,false,false,null,null,null,null,null,false]
[null,"Välj Vara",null,null,null,null,null,null,null,null,null,null,null,null,null,null,null,null,null,null,null,null,null,null,null,true,false,false,null,null,null,null,null,false]
[null,"Välj Vara",null,null,null,null,null,null,null,null,null,null,null,null,null,null,null,null,null,null,null,null,null,null,null,true,false,false,null,null,null,null,null,false]
[null,"Välj Vara",null,null,null,null,null,null,null,null,null,null,null,null,null,null,null,null,null,null,null,null,null,null,null,true,false,false,null,null,null,null,null,false]
[null,"Välj Vara",null,null,null,null,null,null,null,null,null,null,null,null,null,null,null,null,null,null,null,null,null,null,null,true,false,false,null,null,null,null,null,false]
[null,"Välj Vara",null,null,null,null,null,null,null,null,null,null,null,null,null,null,null,null,null,null,null,null,null,null,null,true,false,false,null,null,null,null,null,false]
[null,"Välj Vara",null,null,null,null,null,null,null,null,null,null,null,null,null,null,null,null,null,null,null,null,null,null,null,true,false,false,null,null,null,null,null,false]
[null,"Välj Vara",null,null,null,null,null,null,null,null,null,null,null,null,null,null,null,null,null,null,null,null,null,null,null,true,false,false,null,null,null,null,null,false]
[null,"Välj Vara",null,null,null,null,null,null,null,null,null,null,null,null,null,null,null,null,null,null,null,null,null,null,null,true,false,false,null,null,null,null,null,false]
[null,"Välj Vara",null,null,null,null,null,null,null,null,null,null,null,null,null,null,null,null,null,null,null,null,null,null,null,true,false,false,null,null,null,null,null,false]
[null,"Välj Vara",null,null,null,null,null,null,null,null,null,null,null,null,null,null,null,null,null,null,null,null,null,null,null,{"$f":"OR(LEFT(B271,4)=\"Välj\",B271=\"\")","v":true},{"$f":"IF(AND($Z271=FALSE,OR(L271<>\"\",M271<>\"\")),FALSE,IF(OR(B271=\"\",LEFT(B271,4)=\"Välj\"),FALSE,TRUE))","v":false},{"$f":"IF(P271<>\"\",TRUE,FALSE)","v":false},null,null,null,null,null,{"$f":"IF(AND(AA271=TRUE,AB271=TRUE),FALSE,IF(AND(AA271=FALSE,AB271=FALSE),FALSE,TRUE))","v":false}]
[null,"Välj Vara",null,null,null,null,null,null,null,null,null,null,null,null,null,null,null,null,null,null,null,null,null,null,null,true,false,false,null,null,null,null,null,false]
[null,"Välj Vara",null,null,null,null,null,null,null,null,null,null,null,null,null,null,null,null,null,null,null,null,null,null,null,true,false,false,null,null,null,null,null,false]
[null,"Välj Vara",null,null,null,null,null,null,null,null,null,null,null,null,null,null,null,null,null,null,null,null,null,null,null,true,false,false,null,null,null,null,null,false]
[null,"Välj Vara",null,null,null,null,null,null,null,null,null,null,null,null,null,null,null,null,null,null,null,null,null,null,null,true,false,false,null,null,null,null,null,false]
[null,"Välj Vara",null,null,null,null,null,null,null,null,null,null,null,null,null,null,null,null,null,null,null,null,null,null,null,true,false,false,null,null,null,null,null,false]
[null,"Välj Vara",null,null,null,null,null,null,null,null,null,null,null,null,null,null,null,null,null,null,null,null,null,null,null,true,false,false,null,null,null,null,null,false]
[null,"Välj Vara",null,null,null,null,null,null,null,null,null,null,null,null,null,null,null,null,null,null,null,null,null,null,null,true,false,false,null,null,null,null,null,false]
[null,"Välj Vara",null,null,null,null,null,null,null,null,null,null,null,null,null,null,null,null,null,null,null,null,null,null,null,true,false,false,null,null,null,null,null,false]
[null,"Välj Vara",null,null,null,null,null,null,null,null,null,null,null,null,null,null,null,null,null,null,null,null,null,null,null,true,false,false,null,null,null,null,null,false]
[null,"Välj Vara",null,null,null,null,null,null,null,null,null,null,null,null,null,null,null,null,null,null,null,null,null,null,null,true,false,false,null,null,null,null,null,false]
[null,"Välj Vara",null,null,null,null,null,null,null,null,null,null,null,null,null,null,null,null,null,null,null,null,null,null,null,true,false,false,null,null,null,null,null,false]
[null,"Välj Vara",null,null,null,null,null,null,null,null,null,null,null,null,null,null,null,null,null,null,null,null,null,null,null,true,false,false,null,null,null,null,null,false]
[null,"Välj Vara",null,null,null,null,null,null,null,null,null,null,null,null,null,null,null,null,null,null,null,null,null,null,null,true,false,false,null,null,null,null,null,false]
[null,"Välj Vara",null,null,null,null,null,null,null,null,null,null,null,null,null,null,null,null,null,null,null,null,null,null,null,true,false,false,null,null,null,null,null,false]
[null,"Välj Vara",null,null,null,null,null,null,null,null,null,null,null,null,null,null,null,null,null,null,null,null,null,null,null,true,false,false,null,null,null,null,null,false]
[null,"Välj Vara",null,null,null,null,null,null,null,null,null,null,null,null,null,null,null,null,null,null,null,null,null,null,null,true,false,false,null,null,null,null,null,false]
[null,"Välj Vara",null,null,null,null,null,null,null,null,null,null,null,null,null,null,null,null,null,null,null,null,null,null,null,true,false,false,null,null,null,null,null,false]
[null,"Välj Vara",null,null,null,null,null,null,null,null,null,null,null,null,null,null,null,null,null,null,null,null,null,null,null,true,false,false,null,null,null,null,null,false]
[1]
[1,null,null,null,null,null,null,null,null,null,null,{"$f":"IF(UtvarderingsVal=\"Alt3\",\"\",\"Max poäng för uppfyllda bör-krav\")","v":"Max poäng för uppfyllda bör-krav"},{"$f":"IF(UtvarderingsVal=\"Alt2\",\"\",\"Max prisavdrag för uppfyllda bör-krav\")","v":"Max prisavdrag för uppfyllda bör-krav"}]
[1,null,null,null,null,null,null,null,null,null,null,{"$f":"IF(UtvarderingsVal=\"Alt3\",\"\",SUM(L225:L289))","v":0},{"$f":"IF(UtvarderingsVal=\"Alt2\",\"\",SUM(M225:M289))","v":0},null,null,{"$f":"IF(UtvarderingsVal=\"Alt3\",\"\",\"Total erhållen poängsumma:\")","v":"Total erhållen poängsumma:"},{"$f":"IF(UtvarderingsVal=\"Alt3\",\"\",SUMIF(P225:P289,\"Ja\",L225:L289))","v":0},null,null,{"$f":"IF(UtvarderingsVal=\"Alt2\",\"\",\"Totalt erhållet prisavdrag:\")","v":"Totalt erhållet prisavdrag:"},null,{"$f":"IF(UtvarderingsVal=\"Alt2\",\"\",SUMIF(P225:P289,\"Ja\",M225:M289))","v":0}]
[]
[]
[]
["Ut1","Alt. 2. Summan av viktade poäng för pris och uppfyllda bör-krav, högsta slutsumma vinner.",null,null,null,null,null,null,null,null,null,null,null,null,null,"Sammanställning för detta avropssvar",null,"Fyll i det gula fältet efter att samtliga avropssvar inkommit!","När det gula fältet är ifyllt sker en automatisk poängberäkning. Lägst inkomna pris divideras med det aktuella avropssvarets pris, multipliceras med 100 och därefter med angiven viktning. Poängsumman för uppfyllda bör-krav divideras med max poäng för uppfyllda bör-krav, multipliceras med 100 och därefter med angiven viktning. En slutlig poängsumma för detta avropssvar kommer att framgå av fältet längst ned. Denna slutliga poängsumma ska jämföras med övriga inkomna avropssvar och ligger till grund för tilldelningsbeslutet."]
["Ut1","Priset jämförs mellan avropssvaren. Poäng för uppfyllda bör-krav jämförs med möjlig maxpoäng. "]
["Ut1","Tilldelningskriterier"]
["Ut1","Ange kriterievikt för pris respektive bör-krav i tabellen nedan",null,null,null,null,null,null,null,"Viktning %",null,null,null,null,null,null,"Viktning","Lägsta inkomna totalpris","Erhållen poäng för totalpris",null,"Viktade poäng per kriterium",null,"Slutlig poängsumma för detta avropssvar\n(utvärderas)"]
["Ut1","Pris",null,null,null,null,null,null,"Utvärdering av det totala sammanräknade priset: ",0.5,null,null,null,null,null,"Totalpris"]
["Ut1","Utvärderingskrav \n(bör-krav)",null,null,null,null,null,null,"Utvärdering av ställda bör-krav på avropade tjänster: ",0.5,null,null,null,null,null,{"$f":"X114","v":0},{"$f":"J300","v":0.5},null,{"$f":"IFERROR(R301/P301*100,0)","v":0},null,{"$f":"IFERROR(S301*Q301,\"\")","v":0},null,{"$f":"IFERROR(SUM(U301+U303),\"\")","v":""}]
["Ut1","Summa kriterievikt:",null,null,null,null,null,null,"(ska alltid summera till 100 %)",{"$f":"J301+J300","v":1},null,null,null,null,null,"Poängsumma för uppfyllda bör-krav"]
["Ut1",null,null,null,null,null,null,null,null,null,null,null,null,null,null,{"$f":"Q292","v":0},{"$f":"J301","v":0.5},null,null,null,{"$f":"IFERROR(((P303/L292)*100)*Q303,\"\")","v":""}]
["Ut1"]
["Ut1"]
[]
["Ut2","Alt. 3. Prisavdrag för uppfyllda bör-krav, lägsta utvärderingskostnad vinner. ",null,null,null,null,null,null,null,null,null,null,null,null,null,"Prisavdrag för uppfyllda bör-krav. ",null,"Summa utvärderingskostnad för detta avropssvar"]
["Ut2","Det erhållna prisavdraget för uppfyllda utvärderingskrav (bör-krav) dras ifrån det totala priset för avropade tjänster. Resultatet blir en utvärderingskostnad som ligger till grund för tilldelningsbeslutet.",null,null,null,null,null,null,null,null,null,null,null,null,null,{"$f":"Q292","v":0},null,{"$f":"X114-P308","v":0}]
["Ut2",null,null,null,null,null,null,null,null,null,null,null,null,null,null,null,null,"OBS! Ej detsamma som kontraktssumma"]
["Ut2"]
["Ut2"]
[]
["Ut3","Alt. 4. Annan utvärderingsmodell (än de ovan föreslagna)"]
["Ut3"]
["Ut3","Avropande organisations beskrivning av den utvärderingsmodell som kommer att tillämpas (eller hänvisning till bilaga)"]
["Ut3"]
["Ut3"]
["Ut3"]
["Ut3"]
["Ut3"]
["Ut3"]
["Ut3"]
[]
[]
[null,"Steg 5 - Övriga kontraktsvillkor"]
[null,"Ramavtalets allmänna villkor utgör alltid en del av kontraktet."]
[null,"Leveranstid"]
[null,"Ange ev leveranstid/er för varor/tjänster"]
[]
[]
[]
[]
[null,"Leveransadress (om annan än ovan)"]
[null,"Ange ev adress för uppdraget/uppdragen"]
[]
[]
[]
[]
[null,"Faktureringsuppgifter "]
[null,"Ange fakturaadress, fakturareferens, adress för e-faktura"]
[]
[]
[]
[]
[]
[]
[null,"Leveransvillkor (framgår av ramavtalets allmänna villkor)"]
[null,"Ev. precisering av leveransvillkor"]
[]
[]
[]
[]
[null,"Kompletterande avtalsdokument"]
[null,"T.ex. säkerhetsskyddsavtal, personuppgiftsbiträdesavtal, sekretessavtal, servicenivåavtal. (alternativt enl separat bilaga) \nObservera att det måste framgå av ramavtalet att krav kan ställas på sådana avtal."]
[]
[]
[]
[]
[null,"Övrig information"]
[null,"Ange övriga specifika förutsättningar (tex ev budgetrestriktioner), förhållanden eller önskemål som kan vara viktiga för leverantören och som inte framgår på annan plats i dokumentet."]
[]
[]
[]
[]
[]
[]
[]
[]
[]
[]
[]
[null,"Bilagor från avropande organisation (kontraktshandlingar framgår av flik 3)",null,null,null,null,null,null,null,null,null,null,null,null,null,"Bilagor från leverantören"]
[null,"Specificera ev. bilagor som medföljer denna avropsförfrågan",null,null,null,null,null,null,null,null,null,null,null,null,null,"Specificera ev. bilagor som medföljer detta avropssvar"]
[]
[]
[]
[]
[]
[]
[null,null,null,null,null,null,null,null,null,null,null,null,null,null,null,"Leverantören har lämnat begärda prisuppgifter som gäller för offererade varor och tjänster enligt ställda krav samt accepterar i övrigt kraven i avropsförfrågan och är införstådd med att samtliga lämnade uppgifter i avropssvaret är bindande\n"]
[]
[null,"OBS! Spara inte blanketten i PDF-format. Då kan inte leverantörerna fylla i den. Lås blanketten med \"låsknappen\" nedan innan ni skickar blanketten till leverantörerna.",null,null,null,null,null,null,null,null,null,null,null,null,null,{"$f":"\"Leverantören intygar att avropssvaret är giltigt minst den tid som avropande organisation angett ovan. \"&CHAR(10)&\"(\"&TEXT(D34,\"ÅÅÅÅ-MM-DD\")&\")\"","v":"Leverantören intygar att avropssvaret är giltigt minst den tid som avropande organisation angett ovan. \n(1900-01-00)"}]
[null,null,null,null,null,null,null,null,null,null,null,null,null,null,null,"Ort, datum"]
[null,null,null,null,null,null,null,null,null,null,null,null,null,null,null,null,null,null,null,null,null,null,null,null,null,null,null,null,null,null,null,null,null,{"$f":"IF(P384=0,TRUE,FALSE)","v":true}]
[]
[null,null,null,null,null,null,null,null,null,null,null,null,null,null,null,"Namn, befattning (behörig företrädare för leverantören)"]
[]
[null,null,null,null,null,null,null,null,null,null,null,null,null,null,null,null,null,null,null,null,null,null,null,null,null,null,null,null,null,null,null,null,null,{"$f":"IF(P387=0,TRUE,FALSE)","v":true}]
[]
[null,null,null,null,null,null,null,null,null,null,null,null,null,null,null,null,null,null,null,{"$f":"IF(LarmStatus,\"Minst ett av de obligatoriska kraven är inte ifyllda eller besvarde med Nej\",\"\")","v":"Minst ett av de obligatoriska kraven är inte ifyllda eller besvarde med Nej"}]

{"sheet":"2 Avtalstecknande","index":1,"n_rows":33,"n_cols":4,"rows_kept":33,"cut":false,"hidden":false,"merged":[[37,1,37,3],[18,1,18,3],[33,1,33,3],[5,1,5,3],[34,1,34,3],[35,1,35,3],[36,1,36,3],[7,1,7,3],[9,1,9,3],[11,1,11,3],[14,1,14,3],[15,1,15,3]]}
[null,null,null,{"$f":"\"Avrop nr: \"&'1 Specifikation'!B15","v":"Avrop nr: "}]
[]
[]
[]
[null,"Kontrakt"]
[null,{"$f":"\"Detta kontrakt reglerar avrop från ramavtalsområde \"&'1 Specifikation'!J5&\", \"&'1 Specifikation'!J8","v":"Detta kontrakt reglerar avrop från ramavtalsområde Möbler och inredning, 23.3-8004-18"}]
[null,"Kontraktets omfattning"]
[null,"Leveransens omfattning och villkor framgår av Kontraktet med tillhörande bilagor samt Ramavtalet. Om handlingarna innehåller motstridiga uppgifter ska handlingarna gälla i nedan nämnd ordning om inte omständigheterna uppenbarligen föranleder annat."]
[null,"1. Skriftliga ändringar och tillägg till Kontrakt"]
[null,"2. Kontrakt med bilagor, inkl. Allmänna villkor"]
[null,"3. Eventuellt kompletterande Avropsförfrågan"]
[null,"4. Avropsförfrågan med bilagor "]
[null,"5. Eventuella tillåtna kompletteringar av Avropssvar"]
[null,"6. Avropssvar med bilagor"]
[]
[null,"Innehåller leverantörens avropssvar uppgifter som inte efterfrågats i avropsblanketten är dessa uppgifter giltiga endast om en skriftlig överenskommelse träffas särskilt angående detta. Hänvisning till leverantörens egna allmänna villkor eller motsvarande är endast giltiga om en särskild överenskommelse avseende detta tecknas."]
[]
[null,"Underskrift"]
[null,"Underskriften avser ett kontraktstecknande. Efter undertecknande av bägge parter utgör denna blankett tillsammans med ramavtalets villkor enligt ovan ett kontrakt mellan parterna.\n\nDetta kontrakt har upprättats i två exemplar varav parterna tagit var sitt."]
[]
[null,"Avropande organisation",null,"Leverantör"]
[null,{"$f":"'1 Specifikation'!B9","v":0},null,{"$f":"'1 Specifikation'!P9","v":0}]
[null,"Org.nr.",null,"Org.nr."]
[null,{"$f":"'1 Specifikation'!H9","v":0},null,{"$f":"'1 Specifikation'!V9","v":""}]
[]
[null,"Ort, datum",null,"Ort, datum"]
[]
[]
[null,"Namn, befattning \n(behörig företrädare för avropande organisation)",null,"Namn, befattning \n(behörig företrädare för leverantören)"]
[]
[]
[]
[null,"Eventuella bilagor till kontraktet"]

{"sheet":"Admin","index":2,"n_rows":282,"n_cols":33,"rows_kept":282,"cut":false,"hidden":true,"merged":[]}
[null,null,null,null,null,null,null,null,null,null,null,null,null,null,null,"ResVarTja"]
[null,null,null,{"$f":"C6","v":"Arbetsplats och förvaring mer än 500 000 SEK vid varje avrop"},{"$f":"C7","v":"Möten och paus mer än 500 000 SEK vid varje avrop"},{"$f":"C8","v":"Textil och inredning för fönstermiljö mer än 300 000 SEK vid varje avrop"},{"$f":"C9","v":"Arkiv och magasin mer än 300 000 SEK vid varje avrop"},{"$f":"C10","v":"Förvaring i plåt mer än 300 000 SEK vid varje avrop"},{"$f":"C11","v":"Utemöbler mer än 100 000 SEK vid varje avrop"},{"$f":"C12","v":"Arbetsplatsarmaturer mer än 100 000 SEK vid varje avrop"},{"$f":"C13","v":"Inredningsarmaturer mer än 100 000 SEK vid varje avrop"},{"$f":"C14","v":"Skrivtavlor och AV-inredning mer än 100 000 SEK vid varje avrop"},{"$f":"C15","v":"Lager och verkstadsmiljö mer än 100 000 SEK vid varje avrop"},{"$f":"C16","v":"Textila mattor mer än 300 000 SEK vid varje avrop"},{"$f":"C17","v":"Arbetsstolar mer än 500 000 SEK vid varje avrop"},{"$f":"IF(USRDelområde=\"Välj delområde\",\"\",USRDelområde)","v":""}]
[null,null,"TblDelområde","Välj tjänst","Välj tjänst","Välj tjänst","Välj tjänst","Välj tjänst","Välj tjänst","Välj tjänst","Välj tjänst","Välj tjänst","Välj tjänst","Välj tjänst","Välj tjänst","Välj vara/tjänst"]
[]
[null,null,"Välj delområde","Stöd vid arbetsplatsutformning","Stöd vid arbetsplatsutformning","Akustikutredning, akustikmätning","Stöd vid arbetsplatsutformning","Mätning av rumsytor, golv och fönster","Märkning av t.ex. rumsnummer på möbler eller textilier","Stöd vid arbetsplatsutformning","Utplacering av varor på anvisade platser","Stöd vid arbetsplatsutformning","Utplacering av varor på anvisade platser","Utplacering av varor på anvisade platser","Stöd vid arbetsplatsutformning",{"$f":"IFERROR(IF(INDEX(D5:O5,MATCH(P$2,D$2:O$2,0))=0,\"\",INDEX(D5:O5,MATCH(P$2,D$2:O$2,0))),\"\")","v":""}]
[null,"A","Arbetsplats och förvaring mer än 500 000 SEK vid varje avrop","Kompletta ritningsförslag","Kompletta ritningsförslag","Kompletta ritningsförslag","Kompletta ritningsförslag","Kompletta ritningsförslag","Utplacering av varor på anvisade platser","Kompletta ritningsförslag","Kompletta ritningsförslag","Kompletta ritningsförslag","Kompletta ritningsförslag","Kompletta ritningsförslag","Kompletta ritningsförslag",{"$f":"IFERROR(IF(INDEX(D6:O6,MATCH(P$2,D$2:O$2,0))=0,\"\",INDEX(D6:O6,MATCH(P$2,D$2:O$2,0))),\"\")","v":""}]
[null,"B","Möten och paus mer än 500 000 SEK vid varje avrop","Akustikutredning, akustikmätning","Akustikutredning, akustikmätning","Mätning av rumsytor, golv och fönster","Mätning av rumsytor, golv och fönster","Utplacering av varor på anvisade platser","Efterdragning","Utplacering av varor på anvisade platser","Märkning av t.ex. rumsnummer på möbler eller textilier","Utplacering av varor på anvisade platser","Fast montering i byggnadsdel som golv, vägg och tak","Mattläggning","Utplacering av varor på anvisade platser",""]
[null,"C","Textil och inredning för fönstermiljö mer än 300 000 SEK vid varje avrop","Mätning av rumsytor, golv och fönster","Mätning av rumsytor, golv och fönster","Utplacering av varor på anvisade platser","Utplacering av varor på anvisade platser","Fast montering i byggnadsdel som golv, vägg och tak","Efterkontroll, besiktning","Fast montering i byggnadsdel som golv, vägg och tak","Ritningsförslag - enklare skisser (kostnadsfritt)","Fast montering i byggnadsdel som golv, vägg och tak","Märkning av t.ex. rumsnummer på möbler eller textilier","Langettering","Märkning av t.ex. rumsnummer på möbler eller textilier",""]
[null,"D","Arkiv och magasin mer än 300 000 SEK vid varje avrop","Utplacering av varor på anvisade platser","Utplacering av varor på anvisade platser","Sömnad, ändringssömnad, reparation","Fast montering i byggnadsdel som golv, vägg och tak","Märkning av t.ex. rumsnummer på möbler eller textilier","Ritningsförslag - enklare skisser (kostnadsfritt)","Märkning av t.ex. rumsnummer på möbler eller textilier",null,"Märkning av t.ex. rumsnummer på möbler eller textilier","Efterdragning","Märkning av t.ex. rumsnummer på möbler eller textilier","Efterkontroll, besiktning",""]
[null,"E","Förvaring i plåt mer än 300 000 SEK vid varje avrop","Fast montering i byggnadsdel som golv, vägg och tak","Fast montering i byggnadsdel som golv, vägg och tak","Märkning av t.ex. rumsnummer på möbler eller textilier","Märkning av t.ex. rumsnummer på möbler eller textilier","Efterkontroll, besiktning",null,"Efterkontroll, besiktning",null,"Efterdragning","Efterkontroll, besiktning","Efterkontroll, besiktning","Ritningsförslag - enklare skisser (kostnadsfritt)",""]
[null,"F","Utemöbler mer än 100 000 SEK vid varje avrop","Bordsskärmsmontering på befintliga bord","Märkning av t.ex. rumsnummer på möbler eller textilier","Tvättrådsmärkning i textilier","Nedmontering, uppmontering av befintliga kompaktarkiv","Ritningsförslag - enklare skisser (kostnadsfritt)",null,"Ritningsförslag - enklare skisser (kostnadsfritt)",null,"Efterkontroll, besiktning","Ritningsförslag - enklare skisser (kostnadsfritt)","Ritningsförslag - enklare skisser (kostnadsfritt)","Prov av kontorsarbetsstol (kostnadsfritt)",""]
[null,"G","Arbetsplatsarmaturer mer än 100 000 SEK vid varje avrop","Märkning av t.ex. rumsnummer på möbler eller textilier","Efterdragning","Montering, uppsättning av hängande textilier","Bortforsling av nedmonterade eller utrangerade kompaktarkiv",null,null,"Prov av arbetsplatsarmatur (kostnadsfritt)",null,"Ritningsförslag - enklare skisser (kostnadsfritt)",null,null,null,""]
[null,"H","Inredningsarmaturer mer än 100 000 SEK vid varje avrop","Efterdragning","Efterkontroll, besiktning","Efterkontroll, besiktning","Efterdragning",null,null,null,null,null,null,null,null,""]
[null,"I","Skrivtavlor och AV-inredning mer än 100 000 SEK vid varje avrop","Efterkontroll, besiktning","Ritningsförslag - enklare skisser (kostnadsfritt)","Ritningsförslag - enklare skisser (kostnadsfritt)","Efterkontroll, besiktning",null,null,null,null,null,null,null,null,""]
[null,"J","Lager och verkstadsmiljö mer än 100 000 SEK vid varje avrop","Ritningsförslag - enklare skisser (kostnadsfritt)",null,null,"Montering av arkivhyllor",null,null,null,null,null,null,null,null,""]
[null,"K","Textila mattor mer än 300 000 SEK vid varje avrop",null,null,null,"Ritningsförslag - enklare skisser (kostnadsfritt)",null,null,null,null,null,null,null,null,""]
[null,"L","Arbetsstolar mer än 500 000 SEK vid varje avrop",null,null,null,null,null,null,null,null,null,null,null,null,""]
[null,null,null,null,null,null,null,null,null,null,null,null,null,null,null,""]
[null,null,null,"Tjanster",null,null,null,null,null,null,null,null,null,null,null,"ResOpt"]
[null,null,null,"Välj Tjänst",{"$f":"D20","v":"Välj Tjänst"},{"$f":"E20","v":"Välj Tjänst"},{"$f":"F20","v":"Välj Tjänst"},{"$f":"G20","v":"Välj Tjänst"},{"$f":"H20","v":"Välj Tjänst"},{"$f":"I20","v":"Välj Tjänst"},"Välj Tjänst","Välj Tjänst","Välj Tjänst","Välj Tjänst",{"$f":"N20","v":"Välj Tjänst"},{"$f":"INDEX(D20:I20,MATCH(P$2,D$2:I$2,0))","v":{"$error":"#N/A"}}]
[null,null,null,"Delområde 1/Vara/Tjanst 1","Delområde 2/Vara/Tjanst 1","Delområde 3/Vara/Tjanst 1","Delområde 4/Vara/Tjanst 1","Delområde 5/Vara/Tjanst 1","Delområde 6/Vara/Tjanst 1","Delområde 6/Vara/Tjanst 1","Delområde 6/Vara/Tjanst 1","Delområde 6/Vara/Tjanst 1","Delområde 6/Vara/Tjanst 1","Delområde 6/Vara/Tjanst 1","Delområde 6/Vara/Tjanst 1",{"$f":"IFERROR(IF(INDEX(D21:I21,MATCH(P$2,D$2:I$2,0))=0,\"\",INDEX(D21:I21,MATCH(P$2,D$2:I$2,0))),\"\")","v":""}]
[null,null,null,"Delområde 1/Vara/Tjanst 2","Delområde 2/Vara/Tjanst 2","Delområde 3/Vara/Tjanst 2","Delområde 4/Vara/Tjanst 2","Delområde 5/Vara/Tjanst 2","Delområde 6/Vara/Tjanst 2","Delområde 6/Vara/Tjanst 2","Delområde 6/Vara/Tjanst 2","Delområde 6/Vara/Tjanst 2","Delområde 6/Vara/Tjanst 2","Delområde 6/Vara/Tjanst 2","Delområde 6/Vara/Tjanst 2",""]
[null,null,null,"Delområde 1/Vara/Tjanst 3","Delområde 2/Vara/Tjanst 3","Delområde 3/Vara/Tjanst 3","Delområde 4/Vara/Tjanst 3","Delområde 5/Vara/Tjanst 3","Delområde 6/Vara/Tjanst 3","Delområde 6/Vara/Tjanst 3","Delområde 6/Vara/Tjanst 3","Delområde 6/Vara/Tjanst 3","Delområde 6/Vara/Tjanst 3","Delområde 6/Vara/Tjanst 3","Delområde 6/Vara/Tjanst 3",""]
[null,null,null,"Delområde 1/Vara/Tjanst 4","Delområde 2/Vara/Tjanst 4","Delområde 3/Vara/Tjanst 4","Delområde 4/Vara/Tjanst 4","Delområde 5/Vara/Tjanst 4","Delområde 6/Vara/Tjanst 4","Delområde 6/Vara/Tjanst 4","Delområde 6/Vara/Tjanst 4","Delområde 6/Vara/Tjanst 4","Delområde 6/Vara/Tjanst 4","Delområde 6/Vara/Tjanst 4","Delområde 6/Vara/Tjanst 4",""]
[null,null,null,"Delområde 1/Vara/Tjanst 5","Delområde 2/Vara/Tjanst 5","Delområde 3/Vara/Tjanst 5","Delområde 4/Vara/Tjanst 5","Delområde 5/Vara/Tjanst 5","Delområde 6/Vara/Tjanst 5","Delområde 6/Vara/Tjanst 5","Delområde 6/Vara/Tjanst 5","Delområde 6/Vara/Tjanst 5","Delområde 6/Vara/Tjanst 5","Delområde 6/Vara/Tjanst 5","Delområde 6/Vara/Tjanst 5",""]
[null,null,null,"Delområde 1/Vara/Tjanst 6","Delområde 2/Vara/Tjanst 6","Delområde 3/Vara/Tjanst 6","Delområde 4/Vara/Tjanst 6","Delområde 5/Vara/Tjanst 6","Delområde 6/Vara/Tjanst 6","Delområde 6/Vara/Tjanst 6","Delområde 6/Vara/Tjanst 6","Delområde 6/Vara/Tjanst 6","Delområde 6/Vara/Tjanst 6","Delområde 6/Vara/Tjanst 6","Delområde 6/Vara/Tjanst 6",""]
[null,null,null,"Delområde 1/Vara/Tjanst 7","Delområde 2/Vara/Tjanst 7","Delområde 3/Vara/Tjanst 7","Delområde 4/Vara/Tjanst 7","Delområde 5/Vara/Tjanst 7","Delområde 6/Vara/Tjanst 7","Delområde 6/Vara/Tjanst 7","Delområde 6/Vara/Tjanst 7","Delområde 6/Vara/Tjanst 7","Delområde 6/Vara/Tjanst 7","Delområde 6/Vara/Tjanst 7","Delområde 6/Vara/Tjanst 7",""]
[null,null,null,"Delområde 1/Vara/Tjanst 8","Delområde 2/Vara/Tjanst 8","Delområde 3/Vara/Tjanst 8","Delområde 4/Vara/Tjanst 8","Delområde 5/Vara/Tjanst 8","Delområde 6/Vara/Tjanst 8","Delområde 6/Vara/Tjanst 8","Delområde 6/Vara/Tjanst 8","Delområde 6/Vara/Tjanst 8","Delområde 6/Vara/Tjanst 8","Delområde 6/Vara/Tjanst 8","Delområde 6/Vara/Tjanst 8",""]
[null,null,null,"Delområde 1/Vara/Tjanst 9","Delområde 2/Vara/Tjanst 9","Delområde 3/Vara/Tjanst 9","Delområde 4/Vara/Tjanst 9","Delområde 5/Vara/Tjanst 9","Delområde 6/Vara/Tjanst 9","Delområde 6/Vara/Tjanst 9","Delområde 6/Vara/Tjanst 9","Delområde 6/Vara/Tjanst 9","Delområde 6/Vara/Tjanst 9","Delområde 6/Vara/Tjanst 9","Delområde 6/Vara/Tjanst 9",""]
[null,null,null,"Delområde 1/Vara/Tjanst 10","Delområde 2/Vara/Tjanst 10","Delområde 3/Vara/Tjanst 10","Delområde 4/Vara/Tjanst 10","Delområde 5/Vara/Tjanst 10","Delområde 6/Vara/Tjanst 10","Delområde 6/Vara/Tjanst 10","Delområde 6/Vara/Tjanst 10","Delområde 6/Vara/Tjanst 10","Delområde 6/Vara/Tjanst 10","Delområde 6/Vara/Tjanst 10","Delområde 6/Vara/Tjanst 10",""]
[null,null,null,"Delområde 1/Vara/Tjanst 11","Delområde 2/Vara/Tjanst 11","Delområde 3/Vara/Tjanst 11","Delområde 4/Vara/Tjanst 11","Delområde 5/Vara/Tjanst 11","Delområde 6/Vara/Tjanst 11","Delområde 6/Vara/Tjanst 11","Delområde 6/Vara/Tjanst 11","Delområde 6/Vara/Tjanst 11","Delområde 6/Vara/Tjanst 11","Delområde 6/Vara/Tjanst 11","Delområde 6/Vara/Tjanst 11",""]
[null,null,null,"Delområde 1/Vara/Tjanst 12","Delområde 2/Vara/Tjanst 12","Delområde 3/Vara/Tjanst 12","Delområde 4/Vara/Tjanst 12","Delområde 5/Vara/Tjanst 12","Delområde 6/Vara/Tjanst 12","Delområde 6/Vara/Tjanst 12","Delområde 6/Vara/Tjanst 12","Delområde 6/Vara/Tjanst 12","Delområde 6/Vara/Tjanst 12","Delområde 6/Vara/Tjanst 12","Delområde 6/Vara/Tjanst 12",""]
[null,null,null,"Delområde 1/Vara/Tjanst 13","Delområde 2/Vara/Tjanst 13","Delområde 3/Vara/Tjanst 13","Delområde 4/Vara/Tjanst 13","Delområde 5/Vara/Tjanst 13","Delområde 6/Vara/Tjanst 13","Delområde 6/Vara/Tjanst 13","Delområde 6/Vara/Tjanst 13","Delområde 6/Vara/Tjanst 13","Delområde 6/Vara/Tjanst 13","Delområde 6/Vara/Tjanst 13","Delområde 6/Vara/Tjanst 13",""]
[]
[null,null,null,null,null,null,null,null,null,"Region",null,"TblKravFKU",null,"TblKravSF",null,"TblVaraTjanstAlt"]
[null,null,null,"TblGrundTilldeln",null,"Tbl krav",null,"TblEnhet",null,"Multiregionalt",null,"Varans egenskaper",null,"Varans egenskaper",null,"Välj vara eller tjänst"]
[null,null,null,null,null,"Välj krav",null,"Styck",null,"Blekinge län",null,"Varans hållbarhet",null,"Varans hållbarhet",null,"Vara"]
[null,null,null,null,null,"Krav 1",null,"Timmar",null,"Dalarnas län",null,"Varans cirkularitet",null,"Varans cirkularitet",null,"Tjänst"]
[null,null,null,"Alt. 2. Ekonomiskt mest fördelaktiga (bästa förhållande mellan pris och kvalitet)",null,"Krav 2",null,"Totalpris",null,"Gotlands län",null,"Varans funktionalitet",null,"Varans funktionalitet"]
[null,null,null,null,null,"Krav 3",null,"År",null,"Gävleborgs län",null,"Varans estetiska utformning",null,"Varans estetiska utformning"]
[null,null,null,"TblUtVrd",null,"Krav 4",null,"Bilaga",null,"Hallands län",null,"Varans anpassning till befintliga möbler och annan inredning",null,"Varans anpassning till befintliga möbler och annan inredning"]
[null,null,null,"Välj utvärdering…..",null,"Krav 5",null,null,null,"Jämtlands län",null,"Varans anpassning till lokalens utformning och funktionalitet",null,"Varans anpassning till lokalens utformning och funktionalitet"]
[null,null,null,"Alt. 1. Lägsta pris",null,"Krav 6",null,null,null,"Jönköpings län",null,"Leveranstid",null,"Leveranstid"]
[null,null,null,"Alt. 2. Relativ viktning - summan av viktade poäng för pris och uppfyllda bör-krav",null,"Se bilaga",null,null,null,"Kalmars län",null,"Varurelaterade tjänster",null,"Pris"]
[null,null,null,"Alt. 3. Mervärdesmodell - prisavdrag för uppfyllda bör-krav",null,null,null,null,null,"Kronobergs län",null,"E-handel",null,"Livscykelkostnad"]
[null,null,null,"Alt. 4. Annan utvärderingsmodell",null,"ValBilaga",null,null,null,"Norrbottens län",null,"Pris"]
[null,null,null,null,null,null,null,null,null,"Skånes län",null,"Livscykelkostnad"]
[null,null,null,null,null,"Ja",null,null,null,"Stockholms län"]
[null,null,null,null,null,"Nej",null,null,null,"Södermanlands län"]
[null,null,null,null,null,null,null,null,null,"Uppsala län"]
[null,null,null,null,null,null,null,null,null,"Värmlands län"]
[null,null,null,null,null,null,null,null,null,"Västerbottens län"]
[null,null,null,null,null,null,null,null,null,"Västernorrlands län"]
[null,null,null,null,null,null,null,null,null,"Västmanlands län"]
[null,null,null,null,null,null,null,null,null,"Västra Götalands län"]
[null,null,null,null,null,null,null,null,null,"Örebro län"]
[null,null,null,null,null,null,null,null,null,"Östergötlands lön"]
[]
[null,null,"TblLeverantörer",null,null,null,null,null,null,null,null,null,null,null,null,null,null,null,null,null,null,null,null,null,null,null,null,null,null,null,null,"Resultat","ResLevDelområde"]
[null,null,"Juridiskt Namn","Förvaltningens avtalsnummer ","Organisationsnummer","Adress","Postnummer","Postadress","Telefon Växel","Telefon kundtjänst","Hemsida","Kontaktperson ","Telefon","E-post kontaktperson","Befattning Kontaktperson","Fax","E-post Gruppbrevlåda","Delområde",null,"A","B","C","D","E","F","G","H","I","J","K","L",{"$f":"INDEX($B$5:$B$17,MATCH(USRDelområde,Admin!$C$5:$C$17,0))","v":0},{"$f":"INDEX($B$5:$B$17,MATCH(USRDelområde,Admin!$C$5:$C$17,0))","v":0}]
[]
[null,null,"ABA Skol Aktiebolag",null,"556090-0838","Skogholmsvägen 5","213 74","Malmö",null,null,null,"Ann-Marie Manecke",null,"ann-marie.manecke@abaskol.se",null,null,"mobler@abaskol.se","B",null,{"$f":"IFERROR(IF(FIND(T$60,$R62)>=1,$C62,\"\"),\"\")","v":""},{"$f":"IFERROR(IF(FIND(U$60,$R62)>=1,$C62,\"\"),\"\")","v":"ABA Skol Aktiebolag"},"","","","","","","","","","",{"$f":"INDEX($T62:$AE62,,MATCH($AF$60,$T$60:$AE$60,0))","v":{"$error":"#N/A"}},{"$f":"IFERROR(INDEX($AF$62:$AF$105,SMALL(IF($AF$62:$AF$105<>\"\",ROW($AF$62:$AF$105)-ROW(AF$62)+1),ROWS(AG62:AG$62))),\"\")","v":""}]
[null,null,"Addentity Interiör AB",null,"556839-3416","Östra Rönneholmsvägen 5","211 47","Malmö",null,null,null,"Dan Önnerlid",null,"dan@addentityinterior.se",null,null,"avropa@addentityinterior.se","A, B, G, H, I, K, L",null,{"$f":"IFERROR(IF(FIND(T$60,$R63)>=1,$C63,\"\"),\"\")","v":"Addentity Interiör AB"},"Addentity Interiör AB","","","","","Addentity Interiör AB","Addentity Interiör AB","Addentity Interiör AB","","Addentity Interiör AB","Addentity Interiör AB",{"$f":"INDEX($T63:$AE63,,MATCH($AF$60,$T$60:$AE$60,0))","v":{"$error":"#N/A"}},{"$f":"IFERROR(INDEX($AF$62:$AF$105,SMALL(IF($AF$62:$AF$105<>\"\",ROW($AF$62:$AF$105)-ROW(AF$62)+1),ROWS(AG$62:AG63))),\"\")","v":""}]
[null,null,"AJ Produkter Aktiebolag",null,"556190-7329",null,"301 82","Halmstad",null,null,null,"August Hammar",null,"august.hammar@ajprodukter.se",null,null,"order@ajprodukter.se","A, B, E, F, H, I, J, L",null,"AJ Produkter Aktiebolag","AJ Produkter Aktiebolag","","","AJ Produkter Aktiebolag","AJ Produkter Aktiebolag","","AJ Produkter Aktiebolag","AJ Produkter Aktiebolag","AJ Produkter Aktiebolag","","AJ Produkter Aktiebolag",{"$error":"#N/A"},{"$f":"IFERROR(INDEX($AF$62:$AF$105,SMALL(IF($AF$62:$AF$105<>\"\",ROW($AF$62:$AF$105)-ROW(AF$62)+1),ROWS(AG$62:AG64))),\"\")","v":""}]
[null,null,"Aktiebolaget Evert Lindelöf Inredningsservice",null,"556071-3462","Hornsgatan 29","118 49","Stockholm",null,null,null,"Martin Zhuk",null,"martin.zhuk@lindelöf.se",null,null,"info.kammarkollegiet@lindelof.se","A, B, I, L",null,"Aktiebolaget Evert Lindelöf Inredningsservice","Aktiebolaget Evert Lindelöf Inredningsservice","","","","","","","Aktiebolaget Evert Lindelöf Inredningsservice","","","Aktiebolaget Evert Lindelöf Inredningsservice",{"$error":"#N/A"},{"$f":"IFERROR(INDEX($AF$62:$AF$105,SMALL(IF($AF$62:$AF$105<>\"\",ROW($AF$62:$AF$105)-ROW(AF$62)+1),ROWS(AG$62:AG65))),\"\")","v":""}]
[null,null,"Aktiebolaget Tabula",null,"556115-3080","Agnesfridvägen 187","213 75","Malmö",null,null,null,"Lars Havander",null,"lars.havander@tabula.se",null,null,"order@tabula.se","I",null,"","","","","","","","","Aktiebolaget Tabula","","","",{"$error":"#N/A"},{"$f":"IFERROR(INDEX($AF$62:$AF$105,SMALL(IF($AF$62:$AF$105<>\"\",ROW($AF$62:$AF$105)-ROW(AF$62)+1),ROWS(AG$62:AG66))),\"\")","v":""}]
[null,null,"AudicomPendax AB",null,"556215-1588","Box 2014","128 21","Skarpnäck",null,null,null,"Klas Thorselius",null,"klas.thorselius@aupx.com",null,null,"avropa@aupx.com","I",null,"","","","","","","","","AudicomPendax AB","","","",{"$error":"#N/A"},{"$f":"IFERROR(INDEX($AF$62:$AF$105,SMALL(IF($AF$62:$AF$105<>\"\",ROW($AF$62:$AF$105)-ROW(AF$62)+1),ROWS(AG$62:AG67))),\"\")","v":""}]
[null,null,"Balzar Beskow AB",null,"556257-3435","Box 13","383 21","Mönsterås",null,null,null,"Roger Olsson",null,"roger.olsson@balzar.se",null,null,"statram@balzar.se","B",null,"","Balzar Beskow AB","","","","","","","","","","",{"$error":"#N/A"},{"$f":"IFERROR(INDEX($AF$62:$AF$105,SMALL(IF($AF$62:$AF$105<>\"\",ROW($AF$62:$AF$105)-ROW(AF$62)+1),ROWS(AG$62:AG68))),\"\")","v":""}]
[null,null,"Blika AB",null,"556923-6333","Kranvägen 23","766 33","Hedemora",null,null,null,"Joakim Björk",null,"job@blika.se",null,null,"mail@blika.se","E",null,"","","","","Blika AB","","","","","","","",{"$error":"#N/A"},{"$f":"IFERROR(INDEX($AF$62:$AF$105,SMALL(IF($AF$62:$AF$105<>\"\",ROW($AF$62:$AF$105)-ROW(AF$62)+1),ROWS(AG$62:AG69))),\"\")","v":""}]
[null,null,"Bruynzeel Storage Systems AB",null,"556207-1729","Göteborgsvägen 88","433 63","Sävedalen",null,null,null,"Peter Larsson",null,"peter.larsson@bruynzeel.se",null,null,"support@bruynzeel.se","D, E, J",null,"","","","Bruynzeel Storage Systems AB","Bruynzeel Storage Systems AB","","","","","Bruynzeel Storage Systems AB","","",{"$error":"#N/A"},{"$f":"IFERROR(INDEX($AF$62:$AF$105,SMALL(IF($AF$62:$AF$105<>\"\",ROW($AF$62:$AF$105)-ROW(AF$62)+1),ROWS(AG$62:AG70))),\"\")","v":""}]
[null,null,"Eden Wood Sweden AB",null,"556825-3677","Hammarsmedsgatan 10","286 32","Örkelljunga",null,null,null,"Jan Einedahl",null,"order.avtal@edenwood.se",null,null,"order.avtal@edenwood.se","F",null,"","","","","","Eden Wood Sweden AB","","","","","","",{"$error":"#N/A"},{"$f":"IFERROR(INDEX($AF$62:$AF$105,SMALL(IF($AF$62:$AF$105<>\"\",ROW($AF$62:$AF$105)-ROW(AF$62)+1),ROWS(AG$62:AG71))),\"\")","v":""}]
[null,null,"EFG European Furniture Group Aktiebolag",null,"556236-7259","Box 1017","573 28","Tranås",null,null,null,"Linda Jonasson Gustafsson",null,"linda.gustafsson@efg.se",null,null,"dbs@efg.se","A, B, L",null,"EFG European Furniture Group Aktiebolag","EFG European Furniture Group Aktiebolag","","","","","","","","","","EFG European Furniture Group Aktiebolag",{"$error":"#N/A"},{"$f":"IFERROR(INDEX($AF$62:$AF$105,SMALL(IF($AF$62:$AF$105<>\"\",ROW($AF$62:$AF$105)-ROW(AF$62)+1),ROWS(AG$62:AG72))),\"\")","v":""}]
[null,null,"Sono Sverige AB",null,"556595-7809","Ea Rosengrens gata 13a","421 31","Västra Frölunda",null,null,null,"Martin Odenjung",null,"martin.odenjung@sono.se",null,null,"upphandling@sono.se","A, B, E, G, I, J, L",null,"Sono Sverige AB","Sono Sverige AB","","","Sono Sverige AB","","Sono Sverige AB","","Sono Sverige AB","Sono Sverige AB","","Sono Sverige AB",{"$error":"#N/A"},{"$f":"IFERROR(INDEX($AF$62:$AF$105,SMALL(IF($AF$62:$AF$105<>\"\",ROW($AF$62:$AF$105)-ROW(AF$62)+1),ROWS(AG$62:AG73))),\"\")","v":""}]
[null,null,"Ultranet Sistemas AB",null,"559072-2640","Tunvägen 37","170 68 ","Solna",null,null,null,"Eduardo Moretti","070 768 77 87","ultranet.sweden@gmail.com",null,null,"ultranet.sweden@gmail.com","D",null,"","","","Ultranet Sistemas AB","","","","","","","","",{"$error":"#N/A"},{"$f":"IFERROR(INDEX($AF$62:$AF$105,SMALL(IF($AF$62:$AF$105<>\"\",ROW($AF$62:$AF$105)-ROW(AF$62)+1),ROWS(AG$62:AG74))),\"\")","v":""}]
[null,null,"Flokk AB",null,"556411-5672","Box 294","571 23","Nässjö",null,null,null,"Johan Almgren",null,"johan.almgren@flokk.com",null,null,"info-se@flokk.com","L",null,"","","","","","","","","","","","Flokk AB",{"$error":"#N/A"},{"$f":"IFERROR(INDEX($AF$62:$AF$105,SMALL(IF($AF$62:$AF$105<>\"\",ROW($AF$62:$AF$105)-ROW(AF$62)+1),ROWS(AG$62:AG75))),\"\")","v":""}]
[null,null,"Fogia Collection AB",null,"556204-6218","Finnboda varvsväg 19a","131 72","Nacka",null,null,null,"Jenny Johansson",null,"jenny.johansson@fogia.se",null,null,"kammarkollegiet@fogia.se","B",null,"","Fogia Collection AB","","","","","","","","","","",{"$error":"#N/A"},{"$f":"IFERROR(INDEX($AF$62:$AF$105,SMALL(IF($AF$62:$AF$105<>\"\",ROW($AF$62:$AF$105)-ROW(AF$62)+1),ROWS(AG$62:AG76))),\"\")","v":""}]
[null,null,"Glamox AB",null,"556142-8318","Box 40","577 04","Målilla",null,null,null,"Claes Holmström",null,"order.se@glamox.com",null,null,"order.se@glamox.com","G",null,{"$f":"IFERROR(IF(FIND(T$60,$R77)>=1,$C77,\"\"),\"\")","v":""},"","","","","","Glamox AB","","","","","",{"$error":"#N/A"},{"$f":"IFERROR(INDEX($AF$62:$AF$105,SMALL(IF($AF$62:$AF$105<>\"\",ROW($AF$62:$AF$105)-ROW(AF$62)+1),ROWS(AG$62:AG77))),\"\")","v":""}]
[null,null,"Gärsnäs AB",null,"556044-4746","Malmövägen 16-18","272 61","Gärsnäs",null,null,null,"Magnus Eriksson",null,"magnus.eriksson@garsnas.se",null,null,"avrop@garsnas.se","B",null,"","Gärsnäs AB","","","","","","","","","","",{"$error":"#N/A"},{"$f":"IFERROR(INDEX($AF$62:$AF$105,SMALL(IF($AF$62:$AF$105<>\"\",ROW($AF$62:$AF$105)-ROW(AF$62)+1),ROWS(AG$62:AG78))),\"\")","v":""}]
[null,null,"IKEA Svenska Försäljnings Aktiebolag",null,"556074-7569","Marknadsvägen 2","260 36","Ödåkra",null,null,null,"Veronica Andersson",null,"veronica.a.andersson@ingka.ikea.com",null,null,"foretag@ikea.com","H",null,"","","","","","","","IKEA Svenska Försäljnings Aktiebolag","","","","",{"$error":"#N/A"},{"$f":"IFERROR(INDEX($AF$62:$AF$105,SMALL(IF($AF$62:$AF$105<>\"\",ROW($AF$62:$AF$105)-ROW(AF$62)+1),ROWS(AG$62:AG79))),\"\")","v":""}]
[null,null,"Input interiör AB",null,"559150-6349","Fältspatsgatan 2, ","421 30","Västra Frölunda",null,null,null,"Marcus Berntson",null,"marcus.berntson@inputinterior.se",null,null,"avrop@inputinterior.se","A, B, C, D, E, F, G, H, I, K, L",null,"Input interiör AB","Input interiör AB","Input interiör AB","Input interiör AB","Input interiör AB","Input interiör AB","Input interiör AB","Input interiör AB","Input interiör AB","","Input interiör AB","Input interiör AB",{"$error":"#N/A"},{"$f":"IFERROR(INDEX($AF$62:$AF$105,SMALL(IF($AF$62:$AF$105<>\"\",ROW($AF$62:$AF$105)-ROW(AF$62)+1),ROWS(AG$62:AG80))),\"\")","v":""}]
[null,null,"JIWA Jinvall Inredningar AB",null,"556284-6724","Danska vägen 23 ","412 74","Göteborg",null,null,null,"Torbjörn Andersson",null,"ta@jiwa.se",null,null,"ta@jiwa.se","J",null,"","","","","","","","","","JIWA Jinvall Inredningar AB","","",{"$error":"#N/A"},{"$f":"IFERROR(INDEX($AF$62:$AF$105,SMALL(IF($AF$62:$AF$105<>\"\",ROW($AF$62:$AF$105)-ROW(AF$62)+1),ROWS(AG$62:AG81))),\"\")","v":""}]
[null,null,"Kasthall Mattor & Golv AB",null,"556518-5880","Box 254","511 23","Kinna",null,null,null,"Lina Hjortholt",null,"linda.hjortholt@kasthall.se",null,null,"customerservice@kasthall.se","K",null,"","","","","","","","","","","Kasthall Mattor & Golv AB","",{"$error":"#N/A"},{"$f":"IFERROR(INDEX($AF$62:$AF$105,SMALL(IF($AF$62:$AF$105<>\"\",ROW($AF$62:$AF$105)-ROW(AF$62)+1),ROWS(AG$62:AG82))),\"\")","v":""}]
[null,null,"Kinnarps AB",null,"556256-6736",null,"521 88","Kinnarp",null,null,null,"Lars Nordgren",null,"avrop.kammarkollegiet@kinnarps.se",null,null,"avrop.kammarkollegiet@kinnarps.se","A, B, C, D, E, F, G, H, I, J, K, L",null,"Kinnarps AB","Kinnarps AB","Kinnarps AB","Kinnarps AB","Kinnarps AB","Kinnarps AB","Kinnarps AB","Kinnarps AB","Kinnarps AB","Kinnarps AB","Kinnarps AB","Kinnarps AB",{"$error":"#N/A"},{"$f":"IFERROR(INDEX($AF$62:$AF$105,SMALL(IF($AF$62:$AF$105<>\"\",ROW($AF$62:$AF$105)-ROW(AF$62)+1),ROWS(AG$62:AG83))),\"\")","v":""}]
[null,null,"Lanab Group AB",null,"556376-5188","Box 272","571 24","Nässjö",null,null,null,"Åsa Vanemo",null,"order@lanabgroup.se",null,null,"order@lanabgroup.se","L",null,"","","","","","","","","","","","Lanab Group AB",{"$error":"#N/A"},{"$f":"IFERROR(INDEX($AF$62:$AF$105,SMALL(IF($AF$62:$AF$105<>\"\",ROW($AF$62:$AF$105)-ROW(AF$62)+1),ROWS(AG$62:AG84))),\"\")","v":""}]
[null,null,"Lingbo Textilinredning AB",null,"556639-8839","Norra Lingbovägen 18","816 92","Lingbo",null,null,null,"Marcus Tallbo-Pierre",null,"info@lingbotextil.se",null,null,"info@lingbotextil.se","C",null,"","","Lingbo Textilinredning AB","","","","","","","","","",{"$error":"#N/A"},{"$f":"IFERROR(INDEX($AF$62:$AF$105,SMALL(IF($AF$62:$AF$105<>\"\",ROW($AF$62:$AF$105)-ROW(AF$62)+1),ROWS(AG$62:AG85))),\"\")","v":""}]
[null,null,"Lundqvist Inredningar AB",null,"556647-9183","Sveavägen 18","331 76","Rydaholm",null,null,null,"Annica Ekegren",null,"anek@lundqvistinredningar.se",null,null,"avropa@lundqvistinredningar.se","D",null,"","","","Lundqvist Inredningar AB","","","","","","","","",{"$error":"#N/A"},{"$f":"IFERROR(INDEX($AF$62:$AF$105,SMALL(IF($AF$62:$AF$105<>\"\",ROW($AF$62:$AF$105)-ROW(AF$62)+1),ROWS(AG$62:AG86))),\"\")","v":""}]
[null,null,"Malmstolen AB",null,"556194-7846","Stora Åvägen","436 34","Askim",null,null,null,"Peter Schöldquist",null,"peter.scholdquist.malmstolen.se",null,null,"order@malmstolen.se","L",null,"","","","","","","","","","","","Malmstolen AB",{"$error":"#N/A"},{"$f":"IFERROR(INDEX($AF$62:$AF$105,SMALL(IF($AF$62:$AF$105<>\"\",ROW($AF$62:$AF$105)-ROW(AF$62)+1),ROWS(AG$62:AG87))),\"\")","v":""}]
[null,null,"Martela Oyj",null,1148912,"Takkatie 1 ","003 70","Helsinki",null,null,null,"Lars Bjerhem",null,"lars.bjerhem@martela.com",null,null,"public@martela.se","A, G, H, I, K, L",null,"Martela Oyj","","","","","","Martela Oyj","Martela Oyj","Martela Oyj","","Martela Oyj","Martela Oyj",{"$error":"#N/A"},{"$f":"IFERROR(INDEX($AF$62:$AF$105,SMALL(IF($AF$62:$AF$105<>\"\",ROW($AF$62:$AF$105)-ROW(AF$62)+1),ROWS(AG$62:AG88))),\"\")","v":""}]
[null,null,"Nordsecure Group AB",null,"556970-7911","Box 3021 ","443 03","Lerum",null,null,null,"Håkan Boså",null,"hb@nordsecure.se",null,null,"order@nordsecure.se","D, E, J",null,"","","","Nordsecure Group AB","Nordsecure Group AB","","","","","Nordsecure Group AB","","",{"$error":"#N/A"},{"$f":"IFERROR(INDEX($AF$62:$AF$105,SMALL(IF($AF$62:$AF$105<>\"\",ROW($AF$62:$AF$105)-ROW(AF$62)+1),ROWS(AG$62:AG89))),\"\")","v":""}]
[null,null,"Persiennkompaniet Norden AB",null,"556475-1237","Gjutargatan 12 ","112 47","Stockholm",null,null,null,"Ellen Bihl",null,"ellen@persiennkompaniet.se",null,null,"info@persiennkompaniet.se","C",null,"","","Persiennkompaniet Norden AB","","","","","","","","","",{"$error":"#N/A"},{"$f":"IFERROR(INDEX($AF$62:$AF$105,SMALL(IF($AF$62:$AF$105<>\"\",ROW($AF$62:$AF$105)-ROW(AF$62)+1),ROWS(AG$62:AG90))),\"\")","v":""}]
[null,null,"Primetex AB",null,"556253-3819","Fredriksdalsgatan 45 ","602 23","Norrköping",null,null,null,"Mikael Andebratt",null,"mikael.andebratt@primetex.se",null,null,"order@primetex.se","C",null,"","","Primetex AB","","","","","","","","","",{"$error":"#N/A"},{"$f":"IFERROR(INDEX($AF$62:$AF$105,SMALL(IF($AF$62:$AF$105<>\"\",ROW($AF$62:$AF$105)-ROW(AF$62)+1),ROWS(AG$62:AG91))),\"\")","v":""}]
[null,null,"Profsafe AB",null,"556722-2459","Box 140","334 23","Anderstorp",null,null,null,"Mattias Lysebring",null,"mattias@profsafe.se",null,null,"info@profsafe.se","E",null,"","","","","Profsafe AB","","","","","","","",{"$error":"#N/A"},{"$f":"IFERROR(INDEX($AF$62:$AF$105,SMALL(IF($AF$62:$AF$105<>\"\",ROW($AF$62:$AF$105)-ROW(AF$62)+1),ROWS(AG$62:AG92))),\"\")","v":""}]
[null,null,"Projektinredningar LC AB",null,"556528-9625","Mosaikvägen 6","196 38","Kungsängen",null,null,null,"Lars Fredriksson",null,"lars@projektinredningar.se",null,null,"projektinredningar.lars@telia.com","E",null,{"$f":"IFERROR(IF(FIND(T$60,$R93)>=1,$C93,\"\"),\"\")","v":""},"","","","Projektinredningar LC AB","","","","","","","",{"$error":"#N/A"},{"$f":"IFERROR(INDEX($AF$62:$AF$105,SMALL(IF($AF$62:$AF$105<>\"\",ROW($AF$62:$AF$105)-ROW(AF$62)+1),ROWS(AG$62:AG93))),\"\")","v":""}]
[null,null,"Rekomo Göteborg AB",null,"556347-9343","Box 24148 ","400 22","Göteborg",null,null,null,"Jonas Åström",null,"jonas.astrom@rekomo.se",null,null,"info@rekomo.se","A, B, E, I, L",null,"Rekomo Göteborg AB","Rekomo Göteborg AB","","","Rekomo Göteborg AB","","","","Rekomo Göteborg AB","","","Rekomo Göteborg AB",{"$error":"#N/A"},{"$f":"IFERROR(INDEX($AF$62:$AF$105,SMALL(IF($AF$62:$AF$105<>\"\",ROW($AF$62:$AF$105)-ROW(AF$62)+1),ROWS(AG$62:AG94))),\"\")","v":""}]
[null,null,"Senab AB",null,"556299-1447","Box 7164","103 88","Stockholm",null,null,null,"Peter Almgren",null,"offentlig@senab.com",null,null,"offentlig@senab.com","A, B, C, E, F, G, H, I, K, L",null,"Senab AB","Senab AB","Senab AB","","Senab AB","Senab AB","Senab AB","Senab AB","Senab AB","","Senab AB","Senab AB",{"$error":"#N/A"},{"$f":"IFERROR(INDEX($AF$62:$AF$105,SMALL(IF($AF$62:$AF$105<>\"\",ROW($AF$62:$AF$105)-ROW(AF$62)+1),ROWS(AG$62:AG95))),\"\")","v":""}]
[null,null,"Soft Office Dalarna AB",null,"556931-6267","Hemskogen 2 ","811 52","Sandviken",null,null,null,"Christian Tallbo Pierre",null,"christian@soft-office.se",null,null,"christian@soft-office.se","C",null,"","","Soft Office Dalarna AB","","","","","","","","","",{"$error":"#N/A"},{"$f":"IFERROR(INDEX($AF$62:$AF$105,SMALL(IF($AF$62:$AF$105<>\"\",ROW($AF$62:$AF$105)-ROW(AF$62)+1),ROWS(AG$62:AG96))),\"\")","v":""}]
[null,null,"Sonesson Inredningar AB",null,"556139-0336","Ea Rosengrens gata 13a ","421 31","Västra Frölunda",null,null,null,"Niclas Eriksson",null,"niclas.eriksson@sonesson.se",null,null,"order@sonesson.se","E",null,"","","","","Sonesson Inredningar AB","","","","","","","",{"$error":"#N/A"},{"$f":"IFERROR(INDEX($AF$62:$AF$105,SMALL(IF($AF$62:$AF$105<>\"\",ROW($AF$62:$AF$105)-ROW(AF$62)+1),ROWS(AG$62:AG97))),\"\")","v":""}]
[null,null,"Stoddard Mattor o Object AB",null,"556760-2213","Sturegatan 19","114 36","Stockholm",null,null,null,"William Nilsonne",null,"william.nilsonne@stoddard.se",null,null,"avropa@stoddard.se","K",null,"","","","","","","","","","","Stoddard Mattor o Object AB","",{"$error":"#N/A"},{"$f":"IFERROR(INDEX($AF$62:$AF$105,SMALL(IF($AF$62:$AF$105<>\"\",ROW($AF$62:$AF$105)-ROW(AF$62)+1),ROWS(AG$62:AG98))),\"\")","v":""}]
[null,null,"Swedese Möbler AB",null,"556280-1323","Box 156","567 23","Vaggeryd",null,null,null,"Andreas Englund",null,"andreas.englund@swedese.se",null,null,"order@swedese.se","B",null,"","Swedese Möbler AB","","","","","","","","","","",{"$error":"#N/A"},{"$f":"IFERROR(INDEX($AF$62:$AF$105,SMALL(IF($AF$62:$AF$105<>\"\",ROW($AF$62:$AF$105)-ROW(AF$62)+1),ROWS(AG$62:AG99))),\"\")","v":""}]
[null,null,"Thule Möbler AB",null,"556641-3117","Box 27","736 21","Kungsör",null,null,null,"Torbjörn Axelsson",null,"torbjorn@thulemobler.se",null,null,"order_kammarkollegiet@thulemobler.se","A, B, C, E, L",null,"Thule Möbler AB","Thule Möbler AB","Thule Möbler AB","","Thule Möbler AB","","","","","","","Thule Möbler AB",{"$error":"#N/A"},{"$f":"IFERROR(INDEX($AF$62:$AF$105,SMALL(IF($AF$62:$AF$105<>\"\",ROW($AF$62:$AF$105)-ROW(AF$62)+1),ROWS(AG$62:AG100))),\"\")","v":""}]
[null,null,"TreCé AB",null,"556181-0820","Box 6063","600 06","Norrköping",null,null,null,"Mirjana Kilian",null,"mirjana.kilian@trece.se",null,null,"info@trece.se","A",null,"TreCé AB","","","","","","","","","","","",{"$error":"#N/A"},{"$f":"IFERROR(INDEX($AF$62:$AF$105,SMALL(IF($AF$62:$AF$105<>\"\",ROW($AF$62:$AF$105)-ROW(AF$62)+1),ROWS(AG$62:AG101))),\"\")","v":""}]
[null,null,"Tunnplåt i Gävle AB",null,"556271-4211","Industrigatan 7","802 83","Gävle",null,null,null,"Mikael Vikerhagen",null,"mikael.vikerhagen@tunnplatigavle.se",null,null,"info@tunnplatigavle.se","E",null,"","","","","Tunnplåt i Gävle AB","","","","","","","",{"$error":"#N/A"},{"$f":"IFERROR(INDEX($AF$62:$AF$105,SMALL(IF($AF$62:$AF$105<>\"\",ROW($AF$62:$AF$105)-ROW(AF$62)+1),ROWS(AG$62:AG102))),\"\")","v":""}]
[null,null,"Ullmans Mattor Aktiebolag",null,"556205-7389","Sankt Eriksgatan 77 ","113 32","Stockholm",null,null,null,"Björn Torstenius",null,"bjorn@ullmansmattor.se",null,null,"avropa@ullmansmattor.se","K",null,"","","","","","","","","","","Ullmans Mattor Aktiebolag","",{"$error":"#N/A"},{"$f":"IFERROR(INDEX($AF$62:$AF$105,SMALL(IF($AF$62:$AF$105<>\"\",ROW($AF$62:$AF$105)-ROW(AF$62)+1),ROWS(AG$62:AG103))),\"\")","v":""}]
[null,null,"Waldmann Ljusteknik AB",null,"556113-3447","Botvid Business Center, Fågelviksv 9","145 53","Norsborg",null,null,null,"Kenneth Sebom",null,"k.sebom@waldmann.com",null,null,"info-se@waldmann.com","G",null,"","","","","","","Waldmann Ljusteknik AB","","","","","",{"$error":"#N/A"},{"$f":"IFERROR(INDEX($AF$62:$AF$105,SMALL(IF($AF$62:$AF$105<>\"\",ROW($AF$62:$AF$105)-ROW(AF$62)+1),ROWS(AG$62:AG104))),\"\")","v":""}]
[null,null,"Wästberg Lighting AB",null,"556488-8831","Muskötg 4, Box 22266","250 24","Helsingborg",null,null,null,"Lotta Wästberg",null,"lotta.wastberg@wastberg.com",null,null,"avrop@wastberg.com","G",null,"","","","","","","Wästberg Lighting AB","","","","","",{"$error":"#N/A"},{"$f":"IFERROR(INDEX($AF$62:$AF$105,SMALL(IF($AF$62:$AF$105<>\"\",ROW($AF$62:$AF$105)-ROW(AF$62)+1),ROWS(AG$62:AG105))),\"\")","v":""}]
[]
[null,null,null,null,"TblKrv2",30,{"$f":"F107+1","v":31},{"$f":"G107+1","v":32},33,34,35,36,37,38,39,40,41,42,43,44,45,46,47,48,49,50,51,52,53]
[null,null,"TblSpecTjnstr",null,{"$f":"P21","v":""},{"$f":"INDIRECT(\"J\"&F107)","v":"Delområde 6/Vara/Tjanst 10"},{"$f":"INDIRECT(\"J\"&G107)","v":"Delområde 6/Vara/Tjanst 11"},"Delområde 6/Vara/Tjanst 12","Delområde 6/Vara/Tjanst 13",0,"Region","Multiregionalt","Blekinge län","Dalarnas län","Gotlands län","Gävleborgs län","Hallands län","Jämtlands län","Jönköpings län",{"$f":"INDIRECT(\"J\"&T107)","v":"Kalmars län"},"Kronobergs län","Norrbottens län","Skånes län","Stockholms län","Södermanlands län","Uppsala län","Värmlands län","Västerbottens län","Västernorrlands län"]
[null,null,"Välj Vara/Tjanst",null,"Delområde 1/Vara/Tjanst 1/Krav1","Delområde 1/Vara/Tjanst 2/Krav1","Delområde 1/Vara/Tjanst 3/Krav1","Delområde 1/Vara/Tjanst 4/Krav1","Delområde 1/Vara/Tjanst 5/Krav1","Delområde 1/Vara/Tjanst 6/Krav1","Delområde 1/Vara/Tjanst 7/Krav1","Delområde 1/Vara/Tjanst 8/Krav1","Delområde 1/Vara/Tjanst 9/Krav1","Delområde 1/Vara/Tjanst 10/Krav1","Delområde 1/Vara/Tjanst 11/Krav1","Delområde 1/Vara/Tjanst 12/Krav1","Delområde 1/Vara/Tjanst 13/Krav1","Delområde 1/Vara/Tjanst 14/Krav1","Delområde 1/Vara/Tjanst 15/Krav1","Delområde 1/Vara/Tjanst 16/Krav1","Delområde 1/Vara/Tjanst 17/Krav1","Delområde 1/Vara/Tjanst 18/Krav1","Delområde 1/Vara/Tjanst 19/Krav1","Delområde 1/Vara/Tjanst 20/Krav1","Delområde 1/Vara/Tjanst 21/Krav1","Delområde 1/Vara/Tjanst 22/Krav1","Delområde 1/Vara/Tjanst 23/Krav1","Delområde 1/Vara/Tjanst 24/Krav1","Delområde 1/Vara/Tjanst 25/Krav1"]
[null,null,{"$f":"IF('1 Specifikation'!B225=\"\",\"\",'1 Specifikation'!B225)","v":"Välj Vara"},null,"Delområde 1/Vara/Tjanst 1/Krav2","Delområde 1/Vara/Tjanst 2/Krav2","Delområde 1/Vara/Tjanst 3/Krav2","Delområde 1/Vara/Tjanst 4/Krav2","Delområde 1/Vara/Tjanst 5/Krav2","Delområde 1/Vara/Tjanst 6/Krav2","Delområde 1/Vara/Tjanst 7/Krav2","Delområde 1/Vara/Tjanst 8/Krav2","Delområde 1/Vara/Tjanst 9/Krav2","Delområde 1/Vara/Tjanst 10/Krav2","Delområde 1/Vara/Tjanst 11/Krav2","Delområde 1/Vara/Tjanst 12/Krav2","Delområde 1/Vara/Tjanst 13/Krav2","Delområde 1/Vara/Tjanst 14/Krav2","Delområde 1/Vara/Tjanst 15/Krav2","Delområde 1/Vara/Tjanst 16/Krav2","Delområde 1/Vara/Tjanst 17/Krav2","Delområde 1/Vara/Tjanst 18/Krav2","Delområde 1/Vara/Tjanst 19/Krav2","Delområde 1/Vara/Tjanst 20/Krav2","Delområde 1/Vara/Tjanst 21/Krav2","Delområde 1/Vara/Tjanst 22/Krav2","Delområde 1/Vara/Tjanst 23/Krav2","Delområde 1/Vara/Tjanst 24/Krav2","Delområde 1/Vara/Tjanst 25/Krav2"]
[null,null,{"$f":"IF('1 Specifikation'!B226=\"\",\"\",'1 Specifikation'!B226)","v":"Välj Vara"},null,"Delområde 1/Vara/Tjanst 1/Krav3","Delområde 1/Vara/Tjanst 2/Krav3","Delområde 1/Vara/Tjanst 3/Krav3","Delområde 1/Vara/Tjanst 4/Krav3","Delområde 1/Vara/Tjanst 5/Krav3","Delområde 1/Vara/Tjanst 6/Krav3","Delområde 1/Vara/Tjanst 7/Krav3","Delområde 1/Vara/Tjanst 8/Krav3","Delområde 1/Vara/Tjanst 9/Krav3","Delområde 1/Vara/Tjanst 10/Krav3","Delområde 1/Vara/Tjanst 11/Krav3","Delområde 1/Vara/Tjanst 12/Krav3","Delområde 1/Vara/Tjanst 13/Krav3","Delområde 1/Vara/Tjanst 14/Krav3","Delområde 1/Vara/Tjanst 15/Krav3","Delområde 1/Vara/Tjanst 16/Krav3","Delområde 1/Vara/Tjanst 17/Krav3","Delområde 1/Vara/Tjanst 18/Krav3","Delområde 1/Vara/Tjanst 19/Krav3","Delområde 1/Vara/Tjanst 20/Krav3","Delområde 1/Vara/Tjanst 21/Krav3","Delområde 1/Vara/Tjanst 22/Krav3","Delområde 1/Vara/Tjanst 23/Krav3","Delområde 1/Vara/Tjanst 24/Krav3","Delområde 1/Vara/Tjanst 25/Krav3"]
[null,null,{"$f":"IF('1 Specifikation'!B227=\"\",\"\",'1 Specifikation'!B227)","v":"Välj Vara"},null,"Delområde 1/Vara/Tjanst 1/Krav4","Delområde 1/Vara/Tjanst 2/Krav4","Delområde 1/Vara/Tjanst 3/Krav4","Delområde 1/Vara/Tjanst 4/Krav4","Delområde 1/Vara/Tjanst 5/Krav4","Delområde 1/Vara/Tjanst 6/Krav4","Delområde 1/Vara/Tjanst 7/Krav4","Delområde 1/Vara/Tjanst 8/Krav4","Delområde 1/Vara/Tjanst 9/Krav4","Delområde 1/Vara/Tjanst 10/Krav4","Delområde 1/Vara/Tjanst 11/Krav4","Delområde 1/Vara/Tjanst 12/Krav4","Delområde 1/Vara/Tjanst 13/Krav4","Delområde 1/Vara/Tjanst 14/Krav4","Delområde 1/Vara/Tjanst 15/Krav4","Delområde 1/Vara/Tjanst 16/Krav4","Delområde 1/Vara/Tjanst 17/Krav4","Delområde 1/Vara/Tjanst 18/Krav4","Delområde 1/Vara/Tjanst 19/Krav4","Delområde 1/Vara/Tjanst 20/Krav4","Delområde 1/Vara/Tjanst 21/Krav4","Delområde 1/Vara/Tjanst 22/Krav4","Delområde 1/Vara/Tjanst 23/Krav4","Delområde 1/Vara/Tjanst 24/Krav4","Delområde 1/Vara/Tjanst 25/Krav4"]
[null,null,{"$f":"IF('1 Specifikation'!B228=\"\",\"\",'1 Specifikation'!B228)","v":"Välj Vara"},null,"Delområde 1/Vara/Tjanst 1/Krav5","Delområde 1/Vara/Tjanst 2/Krav5","Delområde 1/Vara/Tjanst 3/Krav5","Delområde 1/Vara/Tjanst 4/Krav5","Delområde 1/Vara/Tjanst 5/Krav5","Delområde 1/Vara/Tjanst 6/Krav5","Delområde 1/Vara/Tjanst 7/Krav5","Delområde 1/Vara/Tjanst 8/Krav5","Delområde 1/Vara/Tjanst 9/Krav5","Delområde 1/Vara/Tjanst 10/Krav5","Delområde 1/Vara/Tjanst 11/Krav5","Delområde 1/Vara/Tjanst 12/Krav5","Delområde 1/Vara/Tjanst 13/Krav5","Delområde 1/Vara/Tjanst 14/Krav5","Delområde 1/Vara/Tjanst 15/Krav5","Delområde 1/Vara/Tjanst 16/Krav5","Delområde 1/Vara/Tjanst 17/Krav5","Delområde 1/Vara/Tjanst 18/Krav5","Delområde 1/Vara/Tjanst 19/Krav5","Delområde 1/Vara/Tjanst 20/Krav5","Delområde 1/Vara/Tjanst 21/Krav5","Delområde 1/Vara/Tjanst 22/Krav5","Delområde 1/Vara/Tjanst 23/Krav5","Delområde 1/Vara/Tjanst 24/Krav5","Delområde 1/Vara/Tjanst 25/Krav5"]
[null,null,{"$f":"IF('1 Specifikation'!B229=\"\",\"\",'1 Specifikation'!B229)","v":"Välj Vara"},null,"Delområde 1/Vara/Tjanst 1/Krav6","Delområde 1/Vara/Tjanst 2/Krav6","Delområde 1/Vara/Tjanst 3/Krav6","Delområde 1/Vara/Tjanst 4/Krav6","Delområde 1/Vara/Tjanst 5/Krav6","Delområde 1/Vara/Tjanst 6/Krav6","Delområde 1/Vara/Tjanst 7/Krav6","Delområde 1/Vara/Tjanst 8/Krav6","Delområde 1/Vara/Tjanst 9/Krav6","Delområde 1/Vara/Tjanst 10/Krav6","Delområde 1/Vara/Tjanst 11/Krav6","Delområde 1/Vara/Tjanst 12/Krav6","Delområde 1/Vara/Tjanst 13/Krav6","Delområde 1/Vara/Tjanst 14/Krav6","Delområde 1/Vara/Tjanst 15/Krav6","Delområde 1/Vara/Tjanst 16/Krav6","Delområde 1/Vara/Tjanst 17/Krav6","Delområde 1/Vara/Tjanst 18/Krav6","Delområde 1/Vara/Tjanst 19/Krav6","Delområde 1/Vara/Tjanst 20/Krav6","Delområde 1/Vara/Tjanst 21/Krav6","Delområde 1/Vara/Tjanst 22/Krav6","Delområde 1/Vara/Tjanst 23/Krav6","Delområde 1/Vara/Tjanst 24/Krav6","Delområde 1/Vara/Tjanst 25/Krav6"]
[null,null,{"$f":"IF('1 Specifikation'!B230=\"\",\"\",'1 Specifikation'!B230)","v":"Välj Vara"},null,"Delområde 1/Vara/Tjanst 1/Krav7","Delområde 1/Vara/Tjanst 2/Krav7","Delområde 1/Vara/Tjanst 3/Krav7","Delområde 1/Vara/Tjanst 4/Krav7","Delområde 1/Vara/Tjanst 5/Krav7","Delområde 1/Vara/Tjanst 6/Krav7","Delområde 1/Vara/Tjanst 7/Krav7","Delområde 1/Vara/Tjanst 8/Krav7","Delområde 1/Vara/Tjanst 9/Krav7","Delområde 1/Vara/Tjanst 10/Krav7","Delområde 1/Vara/Tjanst 11/Krav7","Delområde 1/Vara/Tjanst 12/Krav7","Delområde 1/Vara/Tjanst 13/Krav7","Delområde 1/Vara/Tjanst 14/Krav7","Delområde 1/Vara/Tjanst 15/Krav7","Delområde 1/Vara/Tjanst 16/Krav7","Delområde 1/Vara/Tjanst 17/Krav7","Delområde 1/Vara/Tjanst 18/Krav7","Delområde 1/Vara/Tjanst 19/Krav7","Delområde 1/Vara/Tjanst 20/Krav7","Delområde 1/Vara/Tjanst 21/Krav7","Delområde 1/Vara/Tjanst 22/Krav7","Delområde 1/Vara/Tjanst 23/Krav7","Delområde 1/Vara/Tjanst 24/Krav7","Delområde 1/Vara/Tjanst 25/Krav7"]
[null,null,{"$f":"IF('1 Specifikation'!B231=\"\",\"\",'1 Specifikation'!B231)","v":"Välj Vara"},null,"Delområde 1/Vara/Tjanst 1/Krav8","Delområde 1/Vara/Tjanst 2/Krav8","Delområde 1/Vara/Tjanst 3/Krav8","Delområde 1/Vara/Tjanst 4/Krav8","Delområde 1/Vara/Tjanst 5/Krav8","Delområde 1/Vara/Tjanst 6/Krav8","Delområde 1/Vara/Tjanst 7/Krav8","Delområde 1/Vara/Tjanst 8/Krav8","Delområde 1/Vara/Tjanst 9/Krav8","Delområde 1/Vara/Tjanst 10/Krav8","Delområde 1/Vara/Tjanst 11/Krav8","Delområde 1/Vara/Tjanst 12/Krav8","Delområde 1/Vara/Tjanst 13/Krav8","Delområde 1/Vara/Tjanst 14/Krav8","Delområde 1/Vara/Tjanst 15/Krav8","Delområde 1/Vara/Tjanst 16/Krav8","Delområde 1/Vara/Tjanst 17/Krav8","Delområde 1/Vara/Tjanst 18/Krav8","Delområde 1/Vara/Tjanst 19/Krav8","Delområde 1/Vara/Tjanst 20/Krav8","Delområde 1/Vara/Tjanst 21/Krav8","Delområde 1/Vara/Tjanst 22/Krav8","Delområde 1/Vara/Tjanst 23/Krav8","Delområde 1/Vara/Tjanst 24/Krav8","Delområde 1/Vara/Tjanst 25/Krav8"]
[null,null,{"$f":"IF('1 Specifikation'!B232=\"\",\"\",'1 Specifikation'!B232)","v":"Välj Vara"},null,"Delområde 1/Vara/Tjanst 1/Krav9","Delområde 1/Vara/Tjanst 2/Krav9","Delområde 1/Vara/Tjanst 3/Krav9","Delområde 1/Vara/Tjanst 4/Krav9","Delområde 1/Vara/Tjanst 5/Krav9","Delområde 1/Vara/Tjanst 6/Krav9","Delområde 1/Vara/Tjanst 7/Krav9","Delområde 1/Vara/Tjanst 8/Krav9","Delområde 1/Vara/Tjanst 9/Krav9","Delområde 1/Vara/Tjanst 10/Krav9","Delområde 1/Vara/Tjanst 11/Krav9","Delområde 1/Vara/Tjanst 12/Krav9","Delområde 1/Vara/Tjanst 13/Krav9","Delområde 1/Vara/Tjanst 14/Krav9","Delområde 1/Vara/Tjanst 15/Krav9","Delområde 1/Vara/Tjanst 16/Krav9","Delområde 1/Vara/Tjanst 17/Krav9","Delområde 1/Vara/Tjanst 18/Krav9","Delområde 1/Vara/Tjanst 19/Krav9","Delområde 1/Vara/Tjanst 20/Krav9","Delområde 1/Vara/Tjanst 21/Krav9","Delområde 1/Vara/Tjanst 22/Krav9","Delområde 1/Vara/Tjanst 23/Krav9","Delområde 1/Vara/Tjanst 24/Krav9","Delområde 1/Vara/Tjanst 25/Krav9"]
[null,null,{"$f":"IF('1 Specifikation'!B233=\"\",\"\",'1 Specifikation'!B233)","v":"Välj Vara"}]
[null,null,{"$f":"IF('1 Specifikation'!B234=\"\",\"\",'1 Specifikation'!B234)","v":"Välj Vara"},null,{"$f":"IFERROR(RIGHT(INDIRECT(\"C\"&E120),LEN(INDIRECT(\"C\"&E120))-6),\"\")","v":"åt i Gävle AB"},"s Mattor Aktiebolag","nn Ljusteknik AB","rg Lighting AB","","","cTjnstr","ara/Tjanst","ara","ara","ara","ara","ara","ara","ara","ara","ara","ara","ara","ara"]
[null,null,{"$f":"IF('1 Specifikation'!B235=\"\",\"\",'1 Specifikation'!B235)","v":"Välj Vara"},null,102,{"$f":"E120+1","v":103},{"$f":"F120+1","v":104},105,106,107,108,109,110,111,112,113,114,115,116,117,118,119,120,121,122]
[null,null,{"$f":"IF('1 Specifikation'!B281=\"\",\"\",'1 Specifikation'!B281)","v":"Välj Vara"},null,"TblKrvRes1","TblKrvRes2","TblKrvRes3","TblKrvRes4","TblKrvRes5","TblKrvRes6","TblKrvRes7","TblKrvRes8","TblKrvRes9","TblKrvRes10","TblKrvRes11","TblKrvRes12","TblKrvRes13","TblKrvRes14","TblKrvRes15","TblKrvRes16","TblKrvRes17","TblKrvRes18","TblKrvRes19","TblKrvRes20"]
[null,null,{"$f":"IF('1 Specifikation'!B282=\"\",\"\",'1 Specifikation'!B282)","v":"Välj Vara"},null,{"$f":"IFERROR(INDEX($E109:$AC109,MATCH(E$119,$E$108:$AC$108,0)),\"\")","v":""},{"$f":"IFERROR(INDEX($E109:$AC109,MATCH(F$119,$E$108:$AC$108,0)),\"\")","v":""},"","","Delområde 1/Vara/Tjanst 1/Krav1","Delområde 1/Vara/Tjanst 1/Krav1","","","","","","","","","","","","","","",{"$f":"IFERROR(RIGHT(INDIRECT(\"C\"&Y120),LEN(INDIRECT(\"C\"&Y120))-6),\"\")","v":"ara"}]
[null,null,{"$f":"IF('1 Specifikation'!B283=\"\",\"\",'1 Specifikation'!B283)","v":"Välj Vara"},null,{"$f":"IFERROR(INDEX($E110:$AC110,MATCH(E$119,$E$108:$AC$108,0)),\"\")","v":""},"","","","Delområde 1/Vara/Tjanst 1/Krav2","Delområde 1/Vara/Tjanst 1/Krav2","","","","","","","","","","","","","",""]
[null,null,{"$f":"IF('1 Specifikation'!B284=\"\",\"\",'1 Specifikation'!B284)","v":"Välj Vara"},null,"","","","","Delområde 1/Vara/Tjanst 1/Krav3","Delområde 1/Vara/Tjanst 1/Krav3","","","","","","","","","","","","","",""]
[null,null,{"$f":"IF('1 Specifikation'!B285=\"\",\"\",'1 Specifikation'!B285)","v":"Välj Vara"},null,"","","","","Delområde 1/Vara/Tjanst 1/Krav4","Delområde 1/Vara/Tjanst 1/Krav4"," ","","","","","","","","","","","","",""]
[null,null,{"$f":"IF('1 Specifikation'!B286=\"\",\"\",'1 Specifikation'!B286)","v":"Välj Vara"},null,"","","","","Delområde 1/Vara/Tjanst 1/Krav5","Delområde 1/Vara/Tjanst 1/Krav5","","","","","","","","","","","","","",""]
[null,null,{"$f":"IF('1 Specifikation'!B287=\"\",\"\",'1 Specifikation'!B287)","v":"Välj Vara"},null,"","","","","Delområde 1/Vara/Tjanst 1/Krav6","Delområde 1/Vara/Tjanst 1/Krav6","","","","","","","","","","","","","",""]
[null,null,{"$f":"IF('1 Specifikation'!B288=\"\",\"\",'1 Specifikation'!B288)","v":"Välj Vara"},null,"","","","","Delområde 1/Vara/Tjanst 1/Krav7","Delområde 1/Vara/Tjanst 1/Krav7","","","","","","","","","","","","","",""]
[null,null,{"$f":"IF('1 Specifikation'!B289=\"\",\"\",'1 Specifikation'!B289)","v":"Välj Vara"},null,"","","","","Delområde 1/Vara/Tjanst 1/Krav8","Delområde 1/Vara/Tjanst 1/Krav8","","","","","","","","","","","","","",""]
[null,null,{"$f":"IF('1 Specifikation'!C113=\"\",\"\",'1 Specifikation'!B113&\" - \"&'1 Specifikation'!C113)","v":""},null,"","","","","Delområde 1/Vara/Tjanst 1/Krav9","Delområde 1/Vara/Tjanst 1/Krav9","","","","","","","","","","","","","",""]
[]
[]
[]
[null,null,"TblValdaVaraTjnst","ListaVaraTjänst",null,"Obligatoriska krav","TjänstKod",1,2,3,4,5,6,7,8,9,10,11,12]
[null,null,"Välj Vara eller Tjänst",{"$f":"IFERROR(INDEX($C$135:$C$207,SMALL(IF($C$135:$C$207<>\"\",ROW($C$135:$C$207)-ROW(C$135)+1),ROWS(D135:D$135))),\"\")","v":"Välj Vara eller Tjänst"}]
[null,null,{"$f":"IF(LEFT('1 Specifikation'!C48,4)=\"Vara\",'1 Specifikation'!B48&\" - \"&'1 Specifikation'!C48&\" - \"&'1 Specifikation'!G48,IF('1 Specifikation'!C48=\"Tjänst\",'1 Specifikation'!B48&\" - \"&'1 Specifikation'!C48&\" - \"&'1 Specifikation'!E48,\"\"))","v":""},{"$f":"IFERROR(INDEX($C$135:$C$207,SMALL(IF($C$135:$C$207<>\"\",ROW($C$135:$C$207)-ROW(C$135)+1),ROWS(D$135:D136))),\"\")","v":""},null,{"$f":"'1 Specifikation'!B155","v":"Välj Vara eller Tjänst"},{"$f":"IFERROR(FIND(\"Tjänst\",F136),0)","v":17},{"$f":"IF($G136=0,$L$36,\"\")","v":""},{"$f":"IF($G136=0,$L$37,\"\")","v":""},{"$f":"IF($G136=0,$L$38,\"\")","v":""},{"$f":"IF($G136=0,$L$39,\"\")","v":""},{"$f":"IF($G136=0,$L$40,\"\")","v":""},{"$f":"IF($G136=0,$L$41,\"\")","v":""},{"$f":"IF($G136=0,$L$42,\"\")","v":""},{"$f":"IF($G136=0,$L$43,\"\")","v":""},{"$f":"IF($G136=0,$L$44,\"\")","v":""},{"$f":"IF($G136=0,$L$45,\"\")","v":""},{"$f":"IF($G136=0,$L$46,\"\")","v":""},{"$f":"IF($G136=0,$L$47,\"\")","v":""}]
[null,null,{"$f":"IF(LEFT('1 Specifikation'!C49,4)=\"Vara\",'1 Specifikation'!B49&\" - \"&'1 Specifikation'!C49&\" - \"&'1 Specifikation'!G49,IF('1 Specifikation'!C49=\"Tjänst\",'1 Specifikation'!B49&\" - \"&'1 Specifikation'!C49&\" - \"&'1 Specifikation'!E49,\"\"))","v":""},{"$f":"IFERROR(INDEX($C$135:$C$207,SMALL(IF($C$135:$C$207<>\"\",ROW($C$135:$C$207)-ROW(C$135)+1),ROWS(D$135:D137))),\"\")","v":""},null,{"$f":"'1 Specifikation'!B156","v":"Välj Vara eller Tjänst"},{"$f":"IFERROR(FIND(\"Tjänst\",F137),0)","v":17},{"$f":"IF($G137=0,$L$36,\"\")","v":""},{"$f":"IF($G137=0,$L$37,\"\")","v":""},{"$f":"IF($G137=0,$L$38,\"\")","v":""},{"$f":"IF($G137=0,$L$39,\"\")","v":""},{"$f":"IF($G137=0,$L$40,\"\")","v":""},{"$f":"IF($G137=0,$L$41,\"\")","v":""},{"$f":"IF($G137=0,$L$42,\"\")","v":""},{"$f":"IF($G137=0,$L$43,\"\")","v":""},{"$f":"IF($G137=0,$L$44,\"\")","v":""},{"$f":"IF($G137=0,$L$45,\"\")","v":""},{"$f":"IF($G137=0,$L$46,\"\")","v":""},{"$f":"IF($G137=0,$L$47,\"\")","v":""}]
[null,null,{"$f":"IF(LEFT('1 Specifikation'!C50,4)=\"Vara\",'1 Specifikation'!B50&\" - \"&'1 Specifikation'!C50&\" - \"&'1 Specifikation'!G50,IF('1 Specifikation'!C50=\"Tjänst\",'1 Specifikation'!B50&\" - \"&'1 Specifikation'!C50&\" - \"&'1 Specifikation'!E50,\"\"))","v":""},{"$f":"IFERROR(INDEX($C$135:$C$207,SMALL(IF($C$135:$C$207<>\"\",ROW($C$135:$C$207)-ROW(C$135)+1),ROWS(D$135:D138))),\"\")","v":""},null,{"$f":"'1 Specifikation'!B157","v":"Välj Vara eller Tjänst"},17,"","","","","","","","","","","",""]
[null,null,{"$f":"IF(LEFT('1 Specifikation'!C51,4)=\"Vara\",'1 Specifikation'!B51&\" - \"&'1 Specifikation'!C51&\" - \"&'1 Specifikation'!G51,IF('1 Specifikation'!C51=\"Tjänst\",'1 Specifikation'!B51&\" - \"&'1 Specifikation'!C51&\" - \"&'1 Specifikation'!E51,\"\"))","v":""},{"$f":"IFERROR(INDEX($C$135:$C$207,SMALL(IF($C$135:$C$207<>\"\",ROW($C$135:$C$207)-ROW(C$135)+1),ROWS(D$135:D139))),\"\")","v":""},null,{"$f":"'1 Specifikation'!B158","v":"Välj Vara eller Tjänst"},17,"","","","","","","","","","","",""]
[null,null,{"$f":"IF(LEFT('1 Specifikation'!C52,4)=\"Vara\",'1 Specifikation'!B52&\" - \"&'1 Specifikation'!C52&\" - \"&'1 Specifikation'!G52,IF('1 Specifikation'!C52=\"Tjänst\",'1 Specifikation'!B52&\" - \"&'1 Specifikation'!C52&\" - \"&'1 Specifikation'!E52,\"\"))","v":""},{"$f":"IFERROR(INDEX($C$135:$C$207,SMALL(IF($C$135:$C$207<>\"\",ROW($C$135:$C$207)-ROW(C$135)+1),ROWS(D$135:D140))),\"\")","v":""},null,{"$f":"'1 Specifikation'!B159","v":"Välj Vara eller Tjänst"},17,"","","","","","","","","","","",""]
[null,null,{"$f":"IF(LEFT('1 Specifikation'!C53,4)=\"Vara\",'1 Specifikation'!B53&\" - \"&'1 Specifikation'!C53&\" - \"&'1 Specifikation'!G53,IF('1 Specifikation'!C53=\"Tjänst\",'1 Specifikation'!B53&\" - \"&'1 Specifikation'!C53&\" - \"&'1 Specifikation'!E53,\"\"))","v":""},{"$f":"IFERROR(INDEX($C$135:$C$207,SMALL(IF($C$135:$C$207<>\"\",ROW($C$135:$C$207)-ROW(C$135)+1),ROWS(D$135:D141))),\"\")","v":""},null,{"$f":"'1 Specifikation'!B160","v":"Välj Vara eller Tjänst"},17,"","","","","","","","","","","",""]
[null,null,{"$f":"IF(LEFT('1 Specifikation'!C54,4)=\"Vara\",'1 Specifikation'!B54&\" - \"&'1 Specifikation'!C54&\" - \"&'1 Specifikation'!G54,IF('1 Specifikation'!C54=\"Tjänst\",'1 Specifikation'!B54&\" - \"&'1 Specifikation'!C54&\" - \"&'1 Specifikation'!E54,\"\"))","v":""},{"$f":"IFERROR(INDEX($C$135:$C$207,SMALL(IF($C$135:$C$207<>\"\",ROW($C$135:$C$207)-ROW(C$135)+1),ROWS(D$135:D142))),\"\")","v":""},null,{"$f":"'1 Specifikation'!B161","v":"Välj Vara eller Tjänst"},17,"","","","","","","","","","","",""]
[null,null,{"$f":"IF(LEFT('1 Specifikation'!C55,4)=\"Vara\",'1 Specifikation'!B55&\" - \"&'1 Specifikation'!C55&\" - \"&'1 Specifikation'!G55,IF('1 Specifikation'!C55=\"Tjänst\",'1 Specifikation'!B55&\" - \"&'1 Specifikation'!C55&\" - \"&'1 Specifikation'!E55,\"\"))","v":""},{"$f":"IFERROR(INDEX($C$135:$C$207,SMALL(IF($C$135:$C$207<>\"\",ROW($C$135:$C$207)-ROW(C$135)+1),ROWS(D$135:D143))),\"\")","v":""},null,{"$f":"'1 Specifikation'!B162","v":"Välj Vara eller Tjänst"},17,"","","","","","","","","","","",""]
[null,null,{"$f":"IF(LEFT('1 Specifikation'!C56,4)=\"Vara\",'1 Specifikation'!B56&\" - \"&'1 Specifikation'!C56&\" - \"&'1 Specifikation'!G56,IF('1 Specifikation'!C56=\"Tjänst\",'1 Specifikation'!B56&\" - \"&'1 Specifikation'!C56&\" - \"&'1 Specifikation'!E56,\"\"))","v":""},{"$f":"IFERROR(INDEX($C$135:$C$207,SMALL(IF($C$135:$C$207<>\"\",ROW($C$135:$C$207)-ROW(C$135)+1),ROWS(D$135:D144))),\"\")","v":""},null,{"$f":"'1 Specifikation'!B163","v":"Välj Vara eller Tjänst"},17,"","","","","","","","","","","",""]
[null,null,{"$f":"IF(LEFT('1 Specifikation'!C57,4)=\"Vara\",'1 Specifikation'!B57&\" - \"&'1 Specifikation'!C57&\" - \"&'1 Specifikation'!G57,IF('1 Specifikation'!C57=\"Tjänst\",'1 Specifikation'!B57&\" - \"&'1 Specifikation'!C57&\" - \"&'1 Specifikation'!E57,\"\"))","v":""},{"$f":"IFERROR(INDEX($C$135:$C$207,SMALL(IF($C$135:$C$207<>\"\",ROW($C$135:$C$207)-ROW(C$135)+1),ROWS(D$135:D145))),\"\")","v":""},null,{"$f":"'1 Specifikation'!B164","v":"Välj Vara eller Tjänst"},17,"","","","","","","","","","","",""]
[null,null,{"$f":"IF(LEFT('1 Specifikation'!C58,4)=\"Vara\",'1 Specifikation'!B58&\" - \"&'1 Specifikation'!C58&\" - \"&'1 Specifikation'!G58,IF('1 Specifikation'!C58=\"Tjänst\",'1 Specifikation'!B58&\" - \"&'1 Specifikation'!C58&\" - \"&'1 Specifikation'!E58,\"\"))","v":""},{"$f":"IFERROR(INDEX($C$135:$C$207,SMALL(IF($C$135:$C$207<>\"\",ROW($C$135:$C$207)-ROW(C$135)+1),ROWS(D$135:D146))),\"\")","v":""},null,{"$f":"'1 Specifikation'!B165","v":"Välj Vara eller Tjänst"},17,"","","","","","","","","","","",""]
[null,null,{"$f":"IF(LEFT('1 Specifikation'!C59,4)=\"Vara\",'1 Specifikation'!B59&\" - \"&'1 Specifikation'!C59&\" - \"&'1 Specifikation'!G59,IF('1 Specifikation'!C59=\"Tjänst\",'1 Specifikation'!B59&\" - \"&'1 Specifikation'!C59&\" - \"&'1 Specifikation'!E59,\"\"))","v":""},{"$f":"IFERROR(INDEX($C$135:$C$207,SMALL(IF($C$135:$C$207<>\"\",ROW($C$135:$C$207)-ROW(C$135)+1),ROWS(D$135:D147))),\"\")","v":""},null,{"$f":"'1 Specifikation'!B166","v":"Välj Vara eller Tjänst"},17,"","","","","","","","","","","",""]
[null,null,{"$f":"IF(LEFT('1 Specifikation'!C60,4)=\"Vara\",'1 Specifikation'!B60&\" - \"&'1 Specifikation'!C60&\" - \"&'1 Specifikation'!G60,IF('1 Specifikation'!C60=\"Tjänst\",'1 Specifikation'!B60&\" - \"&'1 Specifikation'!C60&\" - \"&'1 Specifikation'!E60,\"\"))","v":""},{"$f":"IFERROR(INDEX($C$135:$C$207,SMALL(IF($C$135:$C$207<>\"\",ROW($C$135:$C$207)-ROW(C$135)+1),ROWS(D$135:D148))),\"\")","v":""},null,{"$f":"'1 Specifikation'!B167","v":"Välj Vara eller Tjänst"},17,"","","","","","","","","","","",""]
[null,null,{"$f":"IF(LEFT('1 Specifikation'!C61,4)=\"Vara\",'1 Specifikation'!B61&\" - \"&'1 Specifikation'!C61&\" - \"&'1 Specifikation'!G61,IF('1 Specifikation'!C61=\"Tjänst\",'1 Specifikation'!B61&\" - \"&'1 Specifikation'!C61&\" - \"&'1 Specifikation'!E61,\"\"))","v":""},{"$f":"IFERROR(INDEX($C$135:$C$207,SMALL(IF($C$135:$C$207<>\"\",ROW($C$135:$C$207)-ROW(C$135)+1),ROWS(D$135:D149))),\"\")","v":""},null,{"$f":"'1 Specifikation'!B168","v":"Välj Vara eller Tjänst"},17,"","","","","","","","","","","",""]
[null,null,{"$f":"IF(LEFT('1 Specifikation'!C62,4)=\"Vara\",'1 Specifikation'!B62&\" - \"&'1 Specifikation'!C62&\" - \"&'1 Specifikation'!G62,IF('1 Specifikation'!C62=\"Tjänst\",'1 Specifikation'!B62&\" - \"&'1 Specifikation'!C62&\" - \"&'1 Specifikation'!E62,\"\"))","v":""},{"$f":"IFERROR(INDEX($C$135:$C$207,SMALL(IF($C$135:$C$207<>\"\",ROW($C$135:$C$207)-ROW(C$135)+1),ROWS(D$135:D150))),\"\")","v":""},null,{"$f":"'1 Specifikation'!B169","v":"Välj Vara eller Tjänst"},17,"","","","","","","","","","","",""]
[null,null,{"$f":"IF(LEFT('1 Specifikation'!C63,4)=\"Vara\",'1 Specifikation'!B63&\" - \"&'1 Specifikation'!C63&\" - \"&'1 Specifikation'!G63,IF('1 Specifikation'!C63=\"Tjänst\",'1 Specifikation'!B63&\" - \"&'1 Specifikation'!C63&\" - \"&'1 Specifikation'!E63,\"\"))","v":""},{"$f":"IFERROR(INDEX($C$135:$C$207,SMALL(IF($C$135:$C$207<>\"\",ROW($C$135:$C$207)-ROW(C$135)+1),ROWS(D$135:D151))),\"\")","v":""},null,{"$f":"'1 Specifikation'!B170","v":"Välj Vara eller Tjänst"},17,"","","","","","","","","","","",""]
[null,null,{"$f":"IF(LEFT('1 Specifikation'!C64,4)=\"Vara\",'1 Specifikation'!B64&\" - \"&'1 Specifikation'!C64&\" - \"&'1 Specifikation'!G64,IF('1 Specifikation'!C64=\"Tjänst\",'1 Specifikation'!B64&\" - \"&'1 Specifikation'!C64&\" - \"&'1 Specifikation'!E64,\"\"))","v":""},{"$f":"IFERROR(INDEX($C$135:$C$207,SMALL(IF($C$135:$C$207<>\"\",ROW($C$135:$C$207)-ROW(C$135)+1),ROWS(D$135:D152))),\"\")","v":""},null,{"$f":"'1 Specifikation'!B171","v":"Välj Vara eller Tjänst"},17,"","","","","","","","","","","",""]
[null,null,{"$f":"IF(LEFT('1 Specifikation'!C65,4)=\"Vara\",'1 Specifikation'!B65&\" - \"&'1 Specifikation'!C65&\" - \"&'1 Specifikation'!G65,IF('1 Specifikation'!C65=\"Tjänst\",'1 Specifikation'!B65&\" - \"&'1 Specifikation'!C65&\" - \"&'1 Specifikation'!E65,\"\"))","v":""},{"$f":"IFERROR(INDEX($C$135:$C$207,SMALL(IF($C$135:$C$207<>\"\",ROW($C$135:$C$207)-ROW(C$135)+1),ROWS(D$135:D153))),\"\")","v":""},null,{"$f":"'1 Specifikation'!B172","v":"Välj Vara eller Tjänst"},17,"","","","","","","","","","","",""]
[null,null,{"$f":"IF(LEFT('1 Specifikation'!C66,4)=\"Vara\",'1 Specifikation'!B66&\" - \"&'1 Specifikation'!C66&\" - \"&'1 Specifikation'!G66,IF('1 Specifikation'!C66=\"Tjänst\",'1 Specifikation'!B66&\" - \"&'1 Specifikation'!C66&\" - \"&'1 Specifikation'!E66,\"\"))","v":""},{"$f":"IFERROR(INDEX($C$135:$C$207,SMALL(IF($C$135:$C$207<>\"\",ROW($C$135:$C$207)-ROW(C$135)+1),ROWS(D$135:D154))),\"\")","v":""},null,{"$f":"'1 Specifikation'!B173","v":"Välj Vara eller Tjänst"},17,"","","","","","","","","","","",""]
[null,null,{"$f":"IF(LEFT('1 Specifikation'!C67,4)=\"Vara\",'1 Specifikation'!B67&\" - \"&'1 Specifikation'!C67&\" - \"&'1 Specifikation'!G67,IF('1 Specifikation'!C67=\"Tjänst\",'1 Specifikation'!B67&\" - \"&'1 Specifikation'!C67&\" - \"&'1 Specifikation'!E67,\"\"))","v":""},{"$f":"IFERROR(INDEX($C$135:$C$207,SMALL(IF($C$135:$C$207<>\"\",ROW($C$135:$C$207)-ROW(C$135)+1),ROWS(D$135:D155))),\"\")","v":""},null,{"$f":"'1 Specifikation'!B174","v":"Välj Vara eller Tjänst"},17,{"$f":"IF($G155=0,$L$36,\"\")","v":""},{"$f":"IF($G155=0,$L$37,\"\")","v":""},{"$f":"IF($G155=0,$L$38,\"\")","v":""},{"$f":"IF($G155=0,$L$39,\"\")","v":""},{"$f":"IF($G155=0,$L$40,\"\")","v":""},{"$f":"IF($G155=0,$L$41,\"\")","v":""},{"$f":"IF($G155=0,$L$42,\"\")","v":""},{"$f":"IF($G155=0,$L$43,\"\")","v":""},{"$f":"IF($G155=0,$L$44,\"\")","v":""},{"$f":"IF($G155=0,$L$45,\"\")","v":""},{"$f":"IF($G155=0,$L$46,\"\")","v":""},{"$f":"IF($G155=0,$L$47,\"\")","v":""}]
[null,null,{"$f":"IF(LEFT('1 Specifikation'!C68,4)=\"Vara\",'1 Specifikation'!B68&\" - \"&'1 Specifikation'!C68&\" - \"&'1 Specifikation'!G68,IF('1 Specifikation'!C68=\"Tjänst\",'1 Specifikation'!B68&\" - \"&'1 Specifikation'!C68&\" - \"&'1 Specifikation'!E68,\"\"))","v":""},{"$f":"IFERROR(INDEX($C$135:$C$207,SMALL(IF($C$135:$C$207<>\"\",ROW($C$135:$C$207)-ROW(C$135)+1),ROWS(D$135:D156))),\"\")","v":""},null,{"$f":"'1 Specifikation'!B175","v":"Välj Vara eller Tjänst"},{"$f":"IFERROR(FIND(\"Tjänst\",F156),0)","v":17},"","","","","","","","","","","",""]
[null,null,{"$f":"IF(LEFT('1 Specifikation'!C69,4)=\"Vara\",'1 Specifikation'!B69&\" - \"&'1 Specifikation'!C69&\" - \"&'1 Specifikation'!G69,IF('1 Specifikation'!C69=\"Tjänst\",'1 Specifikation'!B69&\" - \"&'1 Specifikation'!C69&\" - \"&'1 Specifikation'!E69,\"\"))","v":""},{"$f":"IFERROR(INDEX($C$135:$C$207,SMALL(IF($C$135:$C$207<>\"\",ROW($C$135:$C$207)-ROW(C$135)+1),ROWS(D$135:D157))),\"\")","v":""},null,{"$f":"'1 Specifikation'!B176","v":"Välj Vara eller Tjänst"},17,"","","","","","","","","","","",""]
[null,null,{"$f":"IF(LEFT('1 Specifikation'!C70,4)=\"Vara\",'1 Specifikation'!B70&\" - \"&'1 Specifikation'!C70&\" - \"&'1 Specifikation'!G70,IF('1 Specifikation'!C70=\"Tjänst\",'1 Specifikation'!B70&\" - \"&'1 Specifikation'!C70&\" - \"&'1 Specifikation'!E70,\"\"))","v":""},{"$f":"IFERROR(INDEX($C$135:$C$207,SMALL(IF($C$135:$C$207<>\"\",ROW($C$135:$C$207)-ROW(C$135)+1),ROWS(D$135:D158))),\"\")","v":""},null,{"$f":"'1 Specifikation'!B177","v":"Välj Vara eller Tjänst"},17,"","","","","","","","","","","",""]
[null,null,{"$f":"IF(LEFT('1 Specifikation'!C71,4)=\"Vara\",'1 Specifikation'!B71&\" - \"&'1 Specifikation'!C71&\" - \"&'1 Specifikation'!G71,IF('1 Specifikation'!C71=\"Tjänst\",'1 Specifikation'!B71&\" - \"&'1 Specifikation'!C71&\" - \"&'1 Specifikation'!E71,\"\"))","v":""},{"$f":"IFERROR(INDEX($C$135:$C$207,SMALL(IF($C$135:$C$207<>\"\",ROW($C$135:$C$207)-ROW(C$135)+1),ROWS(D$135:D159))),\"\")","v":""},null,{"$f":"'1 Specifikation'!B178","v":"Välj Vara eller Tjänst"},17,"","","","","","","","","","","",""]
[null,null,{"$f":"IF(LEFT('1 Specifikation'!C72,4)=\"Vara\",'1 Specifikation'!B72&\" - \"&'1 Specifikation'!C72&\" - \"&'1 Specifikation'!G72,IF('1 Specifikation'!C72=\"Tjänst\",'1 Specifikation'!B72&\" - \"&'1 Specifikation'!C72&\" - \"&'1 Specifikation'!E72,\"\"))","v":""},{"$f":"IFERROR(INDEX($C$135:$C$207,SMALL(IF($C$135:$C$207<>\"\",ROW($C$135:$C$207)-ROW(C$135)+1),ROWS(D$135:D160))),\"\")","v":""},null,{"$f":"'1 Specifikation'!B179","v":"Välj Vara eller Tjänst"},17,"","","","","","","","","","","",""]
[null,null,{"$f":"IF(LEFT('1 Specifikation'!C73,4)=\"Vara\",'1 Specifikation'!B73&\" - \"&'1 Specifikation'!C73&\" - \"&'1 Specifikation'!G73,IF('1 Specifikation'!C73=\"Tjänst\",'1 Specifikation'!B73&\" - \"&'1 Specifikation'!C73&\" - \"&'1 Specifikation'!E73,\"\"))","v":""},{"$f":"IFERROR(INDEX($C$135:$C$207,SMALL(IF($C$135:$C$207<>\"\",ROW($C$135:$C$207)-ROW(C$135)+1),ROWS(D$135:D161))),\"\")","v":""},null,{"$f":"'1 Specifikation'!B180","v":"Välj Vara eller Tjänst"},{"$f":"IFERROR(FIND(\"Tjänst\",F161),0)","v":17},"","","","","","","","","","","",""]
[null,null,{"$f":"IF(LEFT('1 Specifikation'!C74,4)=\"Vara\",'1 Specifikation'!B74&\" - \"&'1 Specifikation'!C74&\" - \"&'1 Specifikation'!G74,IF('1 Specifikation'!C74=\"Tjänst\",'1 Specifikation'!B74&\" - \"&'1 Specifikation'!C74&\" - \"&'1 Specifikation'!E74,\"\"))","v":""},{"$f":"IFERROR(INDEX($C$135:$C$207,SMALL(IF($C$135:$C$207<>\"\",ROW($C$135:$C$207)-ROW(C$135)+1),ROWS(D$135:D162))),\"\")","v":""},null,{"$f":"'1 Specifikation'!B181","v":"Välj Vara eller Tjänst"},17,"","","","","","","","","","","",""]
[null,null,{"$f":"IF(LEFT('1 Specifikation'!C75,4)=\"Vara\",'1 Specifikation'!B75&\" - \"&'1 Specifikation'!C75&\" - \"&'1 Specifikation'!G75,IF('1 Specifikation'!C75=\"Tjänst\",'1 Specifikation'!B75&\" - \"&'1 Specifikation'!C75&\" - \"&'1 Specifikation'!E75,\"\"))","v":""},{"$f":"IFERROR(INDEX($C$135:$C$207,SMALL(IF($C$135:$C$207<>\"\",ROW($C$135:$C$207)-ROW(C$135)+1),ROWS(D$135:D163))),\"\")","v":""},null,{"$f":"'1 Specifikation'!B182","v":"Välj Vara eller Tjänst"},17,"","","","","","","","","","","",""]
[null,null,{"$f":"IF(LEFT('1 Specifikation'!C76,4)=\"Vara\",'1 Specifikation'!B76&\" - \"&'1 Specifikation'!C76&\" - \"&'1 Specifikation'!G76,IF('1 Specifikation'!C76=\"Tjänst\",'1 Specifikation'!B76&\" - \"&'1 Specifikation'!C76&\" - \"&'1 Specifikation'!E76,\"\"))","v":""},{"$f":"IFERROR(INDEX($C$135:$C$207,SMALL(IF($C$135:$C$207<>\"\",ROW($C$135:$C$207)-ROW(C$135)+1),ROWS(D$135:D164))),\"\")","v":""},null,{"$f":"'1 Specifikation'!B183","v":"Välj Vara eller Tjänst"},17,"","","","","","","","","","","",""]
[null,null,{"$f":"IF(LEFT('1 Specifikation'!C77,4)=\"Vara\",'1 Specifikation'!B77&\" - \"&'1 Specifikation'!C77&\" - \"&'1 Specifikation'!G77,IF('1 Specifikation'!C77=\"Tjänst\",'1 Specifikation'!B77&\" - \"&'1 Specifikation'!C77&\" - \"&'1 Specifikation'!E77,\"\"))","v":""},{"$f":"IFERROR(INDEX($C$135:$C$207,SMALL(IF($C$135:$C$207<>\"\",ROW($C$135:$C$207)-ROW(C$135)+1),ROWS(D$135:D165))),\"\")","v":""},null,{"$f":"'1 Specifikation'!B184","v":"Välj Vara eller Tjänst"},17,"","","","","","","","","","","",""]
[null,null,{"$f":"IF(LEFT('1 Specifikation'!C78,4)=\"Vara\",'1 Specifikation'!B78&\" - \"&'1 Specifikation'!C78&\" - \"&'1 Specifikation'!G78,IF('1 Specifikation'!C78=\"Tjänst\",'1 Specifikation'!B78&\" - \"&'1 Specifikation'!C78&\" - \"&'1 Specifikation'!E78,\"\"))","v":""},{"$f":"IFERROR(INDEX($C$135:$C$207,SMALL(IF($C$135:$C$207<>\"\",ROW($C$135:$C$207)-ROW(C$135)+1),ROWS(D$135:D166))),\"\")","v":""},null,{"$f":"'1 Specifikation'!B185","v":"Välj Vara eller Tjänst"},17,"","","","","","","","","","","",""]
[null,null,{"$f":"IF(LEFT('1 Specifikation'!C79,4)=\"Vara\",'1 Specifikation'!B79&\" - \"&'1 Specifikation'!C79&\" - \"&'1 Specifikation'!G79,IF('1 Specifikation'!C79=\"Tjänst\",'1 Specifikation'!B79&\" - \"&'1 Specifikation'!C79&\" - \"&'1 Specifikation'!E79,\"\"))","v":""},{"$f":"IFERROR(INDEX($C$135:$C$207,SMALL(IF($C$135:$C$207<>\"\",ROW($C$135:$C$207)-ROW(C$135)+1),ROWS(D$135:D167))),\"\")","v":""},null,{"$f":"'1 Specifikation'!B186","v":"Välj Vara eller Tjänst"},17,"","","","","","","","","","","",""]
[null,null,{"$f":"IF(LEFT('1 Specifikation'!C80,4)=\"Vara\",'1 Specifikation'!B80&\" - \"&'1 Specifikation'!C80&\" - \"&'1 Specifikation'!G80,IF('1 Specifikation'!C80=\"Tjänst\",'1 Specifikation'!B80&\" - \"&'1 Specifikation'!C80&\" - \"&'1 Specifikation'!E80,\"\"))","v":""},{"$f":"IFERROR(INDEX($C$135:$C$207,SMALL(IF($C$135:$C$207<>\"\",ROW($C$135:$C$207)-ROW(C$135)+1),ROWS(D$135:D168))),\"\")","v":""},null,{"$f":"'1 Specifikation'!B187","v":"Välj Vara eller Tjänst"},17,"","","","","","","","","","","",""]
[null,null,{"$f":"IF(LEFT('1 Specifikation'!C81,4)=\"Vara\",'1 Specifikation'!B81&\" - \"&'1 Specifikation'!C81&\" - \"&'1 Specifikation'!G81,IF('1 Specifikation'!C81=\"Tjänst\",'1 Specifikation'!B81&\" - \"&'1 Specifikation'!C81&\" - \"&'1 Specifikation'!E81,\"\"))","v":""},{"$f":"IFERROR(INDEX($C$135:$C$207,SMALL(IF($C$135:$C$207<>\"\",ROW($C$135:$C$207)-ROW(C$135)+1),ROWS(D$135:D169))),\"\")","v":""},null,{"$f":"'1 Specifikation'!B188","v":"Välj Vara eller Tjänst"},17,"","","","","","","","","","","",""]
[null,null,{"$f":"IF(LEFT('1 Specifikation'!C82,4)=\"Vara\",'1 Specifikation'!B82&\" - \"&'1 Specifikation'!C82&\" - \"&'1 Specifikation'!G82,IF('1 Specifikation'!C82=\"Tjänst\",'1 Specifikation'!B82&\" - \"&'1 Specifikation'!C82&\" - \"&'1 Specifikation'!E82,\"\"))","v":""},{"$f":"IFERROR(INDEX($C$135:$C$207,SMALL(IF($C$135:$C$207<>\"\",ROW($C$135:$C$207)-ROW(C$135)+1),ROWS(D$135:D170))),\"\")","v":""},null,{"$f":"'1 Specifikation'!B189","v":"Välj Vara eller Tjänst"},17,{"$f":"IF($G170=0,$L$36,\"\")","v":""},{"$f":"IF($G170=0,$L$37,\"\")","v":""},{"$f":"IF($G170=0,$L$38,\"\")","v":""},{"$f":"IF($G170=0,$L$39,\"\")","v":""},{"$f":"IF($G170=0,$L$40,\"\")","v":""},{"$f":"IF($G170=0,$L$41,\"\")","v":""},{"$f":"IF($G170=0,$L$42,\"\")","v":""},{"$f":"IF($G170=0,$L$43,\"\")","v":""},{"$f":"IF($G170=0,$L$44,\"\")","v":""},{"$f":"IF($G170=0,$L$45,\"\")","v":""},{"$f":"IF($G170=0,$L$46,\"\")","v":""},{"$f":"IF($G170=0,$L$47,\"\")","v":""}]
[null,null,{"$f":"IF(LEFT('1 Specifikation'!C83,4)=\"Vara\",'1 Specifikation'!B83&\" - \"&'1 Specifikation'!C83&\" - \"&'1 Specifikation'!G83,IF('1 Specifikation'!C83=\"Tjänst\",'1 Specifikation'!B83&\" - \"&'1 Specifikation'!C83&\" - \"&'1 Specifikation'!E83,\"\"))","v":""},{"$f":"IFERROR(INDEX($C$135:$C$207,SMALL(IF($C$135:$C$207<>\"\",ROW($C$135:$C$207)-ROW(C$135)+1),ROWS(D$135:D171))),\"\")","v":""},null,{"$f":"'1 Specifikation'!B190","v":"Välj Vara eller Tjänst"},17,"","","","","","","","","","","",""]
[null,null,{"$f":"IF(LEFT('1 Specifikation'!C84,4)=\"Vara\",'1 Specifikation'!B84&\" - \"&'1 Specifikation'!C84&\" - \"&'1 Specifikation'!G84,IF('1 Specifikation'!C84=\"Tjänst\",'1 Specifikation'!B84&\" - \"&'1 Specifikation'!C84&\" - \"&'1 Specifikation'!E84,\"\"))","v":""},{"$f":"IFERROR(INDEX($C$135:$C$207,SMALL(IF($C$135:$C$207<>\"\",ROW($C$135:$C$207)-ROW(C$135)+1),ROWS(D$135:D172))),\"\")","v":""},null,{"$f":"'1 Specifikation'!B191","v":"Välj Vara eller Tjänst"},17,"","","","","","","","","","","",""]
[null,null,{"$f":"IF(LEFT('1 Specifikation'!C85,4)=\"Vara\",'1 Specifikation'!B85&\" - \"&'1 Specifikation'!C85&\" - \"&'1 Specifikation'!G85,IF('1 Specifikation'!C85=\"Tjänst\",'1 Specifikation'!B85&\" - \"&'1 Specifikation'!C85&\" - \"&'1 Specifikation'!E85,\"\"))","v":""},{"$f":"IFERROR(INDEX($C$135:$C$207,SMALL(IF($C$135:$C$207<>\"\",ROW($C$135:$C$207)-ROW(C$135)+1),ROWS(D$135:D173))),\"\")","v":""},null,{"$f":"'1 Specifikation'!B192","v":"Välj Vara eller Tjänst"},{"$f":"IFERROR(FIND(\"Tjänst\",F173),0)","v":17},"","","","","","","","","","","",""]
[null,null,{"$f":"IF(LEFT('1 Specifikation'!C86,4)=\"Vara\",'1 Specifikation'!B86&\" - \"&'1 Specifikation'!C86&\" - \"&'1 Specifikation'!G86,IF('1 Specifikation'!C86=\"Tjänst\",'1 Specifikation'!B86&\" - \"&'1 Specifikation'!C86&\" - \"&'1 Specifikation'!E86,\"\"))","v":""},{"$f":"IFERROR(INDEX($C$135:$C$207,SMALL(IF($C$135:$C$207<>\"\",ROW($C$135:$C$207)-ROW(C$135)+1),ROWS(D$135:D174))),\"\")","v":""},null,{"$f":"'1 Specifikation'!B193","v":"Välj Vara eller Tjänst"},17,"","","","","","","","","","","",""]
[null,null,{"$f":"IF(LEFT('1 Specifikation'!C87,4)=\"Vara\",'1 Specifikation'!B87&\" - \"&'1 Specifikation'!C87&\" - \"&'1 Specifikation'!G87,IF('1 Specifikation'!C87=\"Tjänst\",'1 Specifikation'!B87&\" - \"&'1 Specifikation'!C87&\" - \"&'1 Specifikation'!E87,\"\"))","v":""},{"$f":"IFERROR(INDEX($C$135:$C$207,SMALL(IF($C$135:$C$207<>\"\",ROW($C$135:$C$207)-ROW(C$135)+1),ROWS(D$135:D175))),\"\")","v":""},null,{"$f":"'1 Specifikation'!B194","v":"Välj Vara eller Tjänst"},17,"","","","","","","","","","","",""]
[null,null,{"$f":"IF(LEFT('1 Specifikation'!C88,4)=\"Vara\",'1 Specifikation'!B88&\" - \"&'1 Specifikation'!C88&\" - \"&'1 Specifikation'!G88,IF('1 Specifikation'!C88=\"Tjänst\",'1 Specifikation'!B88&\" - \"&'1 Specifikation'!C88&\" - \"&'1 Specifikation'!E88,\"\"))","v":""},{"$f":"IFERROR(INDEX($C$135:$C$207,SMALL(IF($C$135:$C$207<>\"\",ROW($C$135:$C$207)-ROW(C$135)+1),ROWS(D$135:D176))),\"\")","v":""},null,{"$f":"'1 Specifikation'!B195","v":"Välj Vara eller Tjänst"},17,"","","","","","","","","","","",""]
[null,null,{"$f":"IF(LEFT('1 Specifikation'!C89,4)=\"Vara\",'1 Specifikation'!B89&\" - \"&'1 Specifikation'!C89&\" - \"&'1 Specifikation'!G89,IF('1 Specifikation'!C89=\"Tjänst\",'1 Specifikation'!B89&\" - \"&'1 Specifikation'!C89&\" - \"&'1 Specifikation'!E89,\"\"))","v":""},{"$f":"IFERROR(INDEX($C$135:$C$207,SMALL(IF($C$135:$C$207<>\"\",ROW($C$135:$C$207)-ROW(C$135)+1),ROWS(D$135:D177))),\"\")","v":""},null,{"$f":"'1 Specifikation'!B196","v":"Välj Vara eller Tjänst"},17,"","","","","","","","","","","",""]
[null,null,{"$f":"IF(LEFT('1 Specifikation'!C90,4)=\"Vara\",'1 Specifikation'!B90&\" - \"&'1 Specifikation'!C90&\" - \"&'1 Specifikation'!G90,IF('1 Specifikation'!C90=\"Tjänst\",'1 Specifikation'!B90&\" - \"&'1 Specifikation'!C90&\" - \"&'1 Specifikation'!E90,\"\"))","v":""},{"$f":"IFERROR(INDEX($C$135:$C$207,SMALL(IF($C$135:$C$207<>\"\",ROW($C$135:$C$207)-ROW(C$135)+1),ROWS(D$135:D178))),\"\")","v":""},null,{"$f":"'1 Specifikation'!B197","v":"Välj Vara eller Tjänst"},17,"","","","","","","","","","","",""]
[null,null,{"$f":"IF(LEFT('1 Specifikation'!C91,4)=\"Vara\",'1 Specifikation'!B91&\" - \"&'1 Specifikation'!C91&\" - \"&'1 Specifikation'!G91,IF('1 Specifikation'!C91=\"Tjänst\",'1 Specifikation'!B91&\" - \"&'1 Specifikation'!C91&\" - \"&'1 Specifikation'!E91,\"\"))","v":""},{"$f":"IFERROR(INDEX($C$135:$C$207,SMALL(IF($C$135:$C$207<>\"\",ROW($C$135:$C$207)-ROW(C$135)+1),ROWS(D$135:D179))),\"\")","v":""},null,{"$f":"'1 Specifikation'!B198","v":"Välj Vara eller Tjänst"},17,"","","","","","","","","","","",""]
[null,null,{"$f":"IF(LEFT('1 Specifikation'!C92,4)=\"Vara\",'1 Specifikation'!B92&\" - \"&'1 Specifikation'!C92&\" - \"&'1 Specifikation'!G92,IF('1 Specifikation'!C92=\"Tjänst\",'1 Specifikation'!B92&\" - \"&'1 Specifikation'!C92&\" - \"&'1 Specifikation'!E92,\"\"))","v":""},{"$f":"IFERROR(INDEX($C$135:$C$207,SMALL(IF($C$135:$C$207<>\"\",ROW($C$135:$C$207)-ROW(C$135)+1),ROWS(D$135:D180))),\"\")","v":""},null,{"$f":"'1 Specifikation'!B199","v":"Välj Vara eller Tjänst"},17,"","","","","","","","","","","",""]
[null,null,{"$f":"IF(LEFT('1 Specifikation'!C93,4)=\"Vara\",'1 Specifikation'!B93&\" - \"&'1 Specifikation'!C93&\" - \"&'1 Specifikation'!G93,IF('1 Specifikation'!C93=\"Tjänst\",'1 Specifikation'!B93&\" - \"&'1 Specifikation'!C93&\" - \"&'1 Specifikation'!E93,\"\"))","v":""},{"$f":"IFERROR(INDEX($C$135:$C$207,SMALL(IF($C$135:$C$207<>\"\",ROW($C$135:$C$207)-ROW(C$135)+1),ROWS(D$135:D181))),\"\")","v":""},null,{"$f":"'1 Specifikation'!B200","v":"Välj Vara eller Tjänst"},17,"","","","","","","","","","","",""]
[null,null,{"$f":"IF(LEFT('1 Specifikation'!C94,4)=\"Vara\",'1 Specifikation'!B94&\" - \"&'1 Specifikation'!C94&\" - \"&'1 Specifikation'!G94,IF('1 Specifikation'!C94=\"Tjänst\",'1 Specifikation'!B94&\" - \"&'1 Specifikation'!C94&\" - \"&'1 Specifikation'!E94,\"\"))","v":""},{"$f":"IFERROR(INDEX($C$135:$C$207,SMALL(IF($C$135:$C$207<>\"\",ROW($C$135:$C$207)-ROW(C$135)+1),ROWS(D$135:D182))),\"\")","v":""},null,{"$f":"'1 Specifikation'!B201","v":"Välj Vara eller Tjänst"},17,"","","","","","","","","","","",""]
[null,null,{"$f":"IF(LEFT('1 Specifikation'!C95,4)=\"Vara\",'1 Specifikation'!B95&\" - \"&'1 Specifikation'!C95&\" - \"&'1 Specifikation'!G95,IF('1 Specifikation'!C95=\"Tjänst\",'1 Specifikation'!B95&\" - \"&'1 Specifikation'!C95&\" - \"&'1 Specifikation'!E95,\"\"))","v":""},{"$f":"IFERROR(INDEX($C$135:$C$207,SMALL(IF($C$135:$C$207<>\"\",ROW($C$135:$C$207)-ROW(C$135)+1),ROWS(D$135:D183))),\"\")","v":""},null,{"$f":"'1 Specifikation'!B202","v":"Välj Vara eller Tjänst"},17,"","","","","","","","","","","",""]
[null,null,{"$f":"IF(LEFT('1 Specifikation'!C96,4)=\"Vara\",'1 Specifikation'!B96&\" - \"&'1 Specifikation'!C96&\" - \"&'1 Specifikation'!G96,IF('1 Specifikation'!C96=\"Tjänst\",'1 Specifikation'!B96&\" - \"&'1 Specifikation'!C96&\" - \"&'1 Specifikation'!E96,\"\"))","v":""},{"$f":"IFERROR(INDEX($C$135:$C$207,SMALL(IF($C$135:$C$207<>\"\",ROW($C$135:$C$207)-ROW(C$135)+1),ROWS(D$135:D184))),\"\")","v":""},null,{"$f":"'1 Specifikation'!B203","v":"Välj Vara eller Tjänst"},17,"","","","","","","","","","","",""]
[null,null,{"$f":"IF(LEFT('1 Specifikation'!C97,4)=\"Vara\",'1 Specifikation'!B97&\" - \"&'1 Specifikation'!C97&\" - \"&'1 Specifikation'!G97,IF('1 Specifikation'!C97=\"Tjänst\",'1 Specifikation'!B97&\" - \"&'1 Specifikation'!C97&\" - \"&'1 Specifikation'!E97,\"\"))","v":""},{"$f":"IFERROR(INDEX($C$135:$C$207,SMALL(IF($C$135:$C$207<>\"\",ROW($C$135:$C$207)-ROW(C$135)+1),ROWS(D$135:D185))),\"\")","v":""},null,{"$f":"'1 Specifikation'!B204","v":"Välj Vara eller Tjänst"},17,"","","","","","","","","","","",""]
[null,null,{"$f":"IF(LEFT('1 Specifikation'!C98,4)=\"Vara\",'1 Specifikation'!B98&\" - \"&'1 Specifikation'!C98&\" - \"&'1 Specifikation'!G98,IF('1 Specifikation'!C98=\"Tjänst\",'1 Specifikation'!B98&\" - \"&'1 Specifikation'!C98&\" - \"&'1 Specifikation'!E98,\"\"))","v":""},{"$f":"IFERROR(INDEX($C$135:$C$207,SMALL(IF($C$135:$C$207<>\"\",ROW($C$135:$C$207)-ROW(C$135)+1),ROWS(D$135:D186))),\"\")","v":""},null,{"$f":"'1 Specifikation'!B205","v":"Välj Vara eller Tjänst"},17,"","","","","","","","","","","",""]
[null,null,{"$f":"IF(LEFT('1 Specifikation'!C99,4)=\"Vara\",'1 Specifikation'!B99&\" - \"&'1 Specifikation'!C99&\" - \"&'1 Specifikation'!G99,IF('1 Specifikation'!C99=\"Tjänst\",'1 Specifikation'!B99&\" - \"&'1 Specifikation'!C99&\" - \"&'1 Specifikation'!E99,\"\"))","v":""},{"$f":"IFERROR(INDEX($C$135:$C$207,SMALL(IF($C$135:$C$207<>\"\",ROW($C$135:$C$207)-ROW(C$135)+1),ROWS(D$135:D187))),\"\")","v":""},null,{"$f":"'1 Specifikation'!B206","v":"Välj Vara eller Tjänst"},17,"","","","","","","","","","","",""]
[null,null,{"$f":"IF(LEFT('1 Specifikation'!C100,4)=\"Vara\",'1 Specifikation'!B100&\" - \"&'1 Specifikation'!C100&\" - \"&'1 Specifikation'!G100,IF('1 Specifikation'!C100=\"Tjänst\",'1 Specifikation'!B100&\" - \"&'1 Specifikation'!C100&\" - \"&'1 Specifikation'!E100,\"\"))","v":""},{"$f":"IFERROR(INDEX($C$135:$C$207,SMALL(IF($C$135:$C$207<>\"\",ROW($C$135:$C$207)-ROW(C$135)+1),ROWS(D$135:D188))),\"\")","v":""},null,{"$f":"'1 Specifikation'!B207","v":"Välj Vara eller Tjänst"},17,"","","","","","","","","","","",""]
[null,null,{"$f":"IF(LEFT('1 Specifikation'!C101,4)=\"Vara\",'1 Specifikation'!B101&\" - \"&'1 Specifikation'!C101&\" - \"&'1 Specifikation'!G101,IF('1 Specifikation'!C101=\"Tjänst\",'1 Specifikation'!B101&\" - \"&'1 Specifikation'!C101&\" - \"&'1 Specifikation'!E101,\"\"))","v":""},{"$f":"IFERROR(INDEX($C$135:$C$207,SMALL(IF($C$135:$C$207<>\"\",ROW($C$135:$C$207)-ROW(C$135)+1),ROWS(D$135:D189))),\"\")","v":""},null,{"$f":"'1 Specifikation'!B208","v":"Välj Vara eller Tjänst"},17,"","","","","","","","","","","",""]
[null,null,{"$f":"IF(LEFT('1 Specifikation'!C102,4)=\"Vara\",'1 Specifikation'!B102&\" - \"&'1 Specifikation'!C102&\" - \"&'1 Specifikation'!G102,IF('1 Specifikation'!C102=\"Tjänst\",'1 Specifikation'!B102&\" - \"&'1 Specifikation'!C102&\" - \"&'1 Specifikation'!E102,\"\"))","v":""},{"$f":"IFERROR(INDEX($C$135:$C$207,SMALL(IF($C$135:$C$207<>\"\",ROW($C$135:$C$207)-ROW(C$135)+1),ROWS(D$135:D190))),\"\")","v":""},null,{"$f":"'1 Specifikation'!B209","v":"Välj Vara eller Tjänst"},17,{"$f":"IF($G190=0,$L$36,\"\")","v":""},{"$f":"IF($G190=0,$L$37,\"\")","v":""},{"$f":"IF($G190=0,$L$38,\"\")","v":""},{"$f":"IF($G190=0,$L$39,\"\")","v":""},{"$f":"IF($G190=0,$L$40,\"\")","v":""},{"$f":"IF($G190=0,$L$41,\"\")","v":""},{"$f":"IF($G190=0,$L$42,\"\")","v":""},{"$f":"IF($G190=0,$L$43,\"\")","v":""},{"$f":"IF($G190=0,$L$44,\"\")","v":""},{"$f":"IF($G190=0,$L$45,\"\")","v":""},{"$f":"IF($G190=0,$L$46,\"\")","v":""},{"$f":"IF($G190=0,$L$47,\"\")","v":""}]
[null,null,{"$f":"IF(LEFT('1 Specifikation'!C103,4)=\"Vara\",'1 Specifikation'!B103&\" - \"&'1 Specifikation'!C103&\" - \"&'1 Specifikation'!G103,IF('1 Specifikation'!C103=\"Tjänst\",'1 Specifikation'!B103&\" - \"&'1 Specifikation'!C103&\" - \"&'1 Specifikation'!E103,\"\"))","v":""},{"$f":"IFERROR(INDEX($C$135:$C$207,SMALL(IF($C$135:$C$207<>\"\",ROW($C$135:$C$207)-ROW(C$135)+1),ROWS(D$135:D191))),\"\")","v":""},null,{"$f":"'1 Specifikation'!B210","v":"Välj Vara eller Tjänst"},17,"","","","","","","","","","","",""]
[null,null,{"$f":"IF(LEFT('1 Specifikation'!C104,4)=\"Vara\",'1 Specifikation'!B104&\" - \"&'1 Specifikation'!C104&\" - \"&'1 Specifikation'!G104,IF('1 Specifikation'!C104=\"Tjänst\",'1 Specifikation'!B104&\" - \"&'1 Specifikation'!C104&\" - \"&'1 Specifikation'!E104,\"\"))","v":""},{"$f":"IFERROR(INDEX($C$135:$C$207,SMALL(IF($C$135:$C$207<>\"\",ROW($C$135:$C$207)-ROW(C$135)+1),ROWS(D$135:D192))),\"\")","v":""},null,{"$f":"'1 Specifikation'!B211","v":"Välj Vara eller Tjänst"},17,"","","","","","","","","","","",""]
[null,null,{"$f":"IF(LEFT('1 Specifikation'!C105,4)=\"Vara\",'1 Specifikation'!B105&\" - \"&'1 Specifikation'!C105&\" - \"&'1 Specifikation'!G105,IF('1 Specifikation'!C105=\"Tjänst\",'1 Specifikation'!B105&\" - \"&'1 Specifikation'!C105&\" - \"&'1 Specifikation'!E105,\"\"))","v":""},{"$f":"IFERROR(INDEX($C$135:$C$207,SMALL(IF($C$135:$C$207<>\"\",ROW($C$135:$C$207)-ROW(C$135)+1),ROWS(D$135:D193))),\"\")","v":""},null,{"$f":"'1 Specifikation'!B212","v":"Välj Vara eller Tjänst"},17,"","","","","","","","","","","",""]
[null,null,{"$f":"IF(LEFT('1 Specifikation'!C106,4)=\"Vara\",'1 Specifikation'!B106&\" - \"&'1 Specifikation'!C106&\" - \"&'1 Specifikation'!G106,IF('1 Specifikation'!C106=\"Tjänst\",'1 Specifikation'!B106&\" - \"&'1 Specifikation'!C106&\" - \"&'1 Specifikation'!E106,\"\"))","v":""},{"$f":"IFERROR(INDEX($C$135:$C$207,SMALL(IF($C$135:$C$207<>\"\",ROW($C$135:$C$207)-ROW(C$135)+1),ROWS(D$135:D194))),\"\")","v":""},null,{"$f":"'1 Specifikation'!B213","v":"Välj Vara eller Tjänst"},17,"","","","","","","","","","","",""]
[null,null,{"$f":"IF(LEFT('1 Specifikation'!C107,4)=\"Vara\",'1 Specifikation'!B107&\" - \"&'1 Specifikation'!C107&\" - \"&'1 Specifikation'!G107,IF('1 Specifikation'!C107=\"Tjänst\",'1 Specifikation'!B107&\" - \"&'1 Specifikation'!C107&\" - \"&'1 Specifikation'!E107,\"\"))","v":""},{"$f":"IFERROR(INDEX($C$135:$C$207,SMALL(IF($C$135:$C$207<>\"\",ROW($C$135:$C$207)-ROW(C$135)+1),ROWS(D$135:D195))),\"\")","v":""},null,{"$f":"'1 Specifikation'!B214","v":"Välj Vara eller Tjänst"},17,"","","","","","","","","","","",""]
[null,null,{"$f":"IF(LEFT('1 Specifikation'!C108,4)=\"Vara\",'1 Specifikation'!B108&\" - \"&'1 Specifikation'!C108&\" - \"&'1 Specifikation'!G108,IF('1 Specifikation'!C108=\"Tjänst\",'1 Specifikation'!B108&\" - \"&'1 Specifikation'!C108&\" - \"&'1 Specifikation'!E108,\"\"))","v":""},{"$f":"IFERROR(INDEX($C$135:$C$207,SMALL(IF($C$135:$C$207<>\"\",ROW($C$135:$C$207)-ROW(C$135)+1),ROWS(D$135:D196))),\"\")","v":""},null,{"$f":"'1 Specifikation'!B215","v":"Välj Vara eller Tjänst"},17,"","","","","","","","","","","",""]
[null,null,{"$f":"IF(LEFT('1 Specifikation'!C109,4)=\"Vara\",'1 Specifikation'!B109&\" - \"&'1 Specifikation'!C109&\" - \"&'1 Specifikation'!G109,IF('1 Specifikation'!C109=\"Tjänst\",'1 Specifikation'!B109&\" - \"&'1 Specifikation'!C109&\" - \"&'1 Specifikation'!E109,\"\"))","v":""},{"$f":"IFERROR(INDEX($C$135:$C$207,SMALL(IF($C$135:$C$207<>\"\",ROW($C$135:$C$207)-ROW(C$135)+1),ROWS(D$135:D197))),\"\")","v":""},null,{"$f":"'1 Specifikation'!B216","v":"Välj Vara eller Tjänst"},17,"","","","","","","","","","","",""]
[null,null,{"$f":"IF(LEFT('1 Specifikation'!C110,4)=\"Vara\",'1 Specifikation'!B110&\" - \"&'1 Specifikation'!C110&\" - \"&'1 Specifikation'!G110,IF('1 Specifikation'!C110=\"Tjänst\",'1 Specifikation'!B110&\" - \"&'1 Specifikation'!C110&\" - \"&'1 Specifikation'!E110,\"\"))","v":""},{"$f":"IFERROR(INDEX($C$135:$C$207,SMALL(IF($C$135:$C$207<>\"\",ROW($C$135:$C$207)-ROW(C$135)+1),ROWS(D$135:D198))),\"\")","v":""},null,{"$f":"'1 Specifikation'!B217","v":"Välj Vara eller Tjänst"},17,"","","","","","","","","","","",""]
[null,null,{"$f":"IF(LEFT('1 Specifikation'!C111,4)=\"Vara\",'1 Specifikation'!B111&\" - \"&'1 Specifikation'!C111&\" - \"&'1 Specifikation'!G111,IF('1 Specifikation'!C111=\"Tjänst\",'1 Specifikation'!B111&\" - \"&'1 Specifikation'!C111&\" - \"&'1 Specifikation'!E111,\"\"))","v":""},{"$f":"IFERROR(INDEX($C$135:$C$207,SMALL(IF($C$135:$C$207<>\"\",ROW($C$135:$C$207)-ROW(C$135)+1),ROWS(D$135:D199))),\"\")","v":""},null,{"$f":"'1 Specifikation'!B218","v":"Välj Vara eller Tjänst"},17,"","","","","","","","","","","",""]
[null,null,{"$f":"IF(LEFT('1 Specifikation'!C112,4)=\"Vara\",'1 Specifikation'!B112&\" - \"&'1 Specifikation'!C112&\" - \"&'1 Specifikation'!G112,IF('1 Specifikation'!C112=\"Tjänst\",'1 Specifikation'!B112&\" - \"&'1 Specifikation'!C112&\" - \"&'1 Specifikation'!E112,\"\"))","v":""},{"$f":"IFERROR(INDEX($C$135:$C$207,SMALL(IF($C$135:$C$207<>\"\",ROW($C$135:$C$207)-ROW(C$135)+1),ROWS(D$135:D200))),\"\")","v":""},null,{"$f":"'1 Specifikation'!B219","v":"Välj Vara eller Tjänst"},17,{"$f":"IF($G200=0,$L$36,\"\")","v":""},{"$f":"IF($G200=0,$L$37,\"\")","v":""},{"$f":"IF($G200=0,$L$38,\"\")","v":""},{"$f":"IF($G200=0,$L$39,\"\")","v":""},{"$f":"IF($G200=0,$L$40,\"\")","v":""},{"$f":"IF($G200=0,$L$41,\"\")","v":""},{"$f":"IF($G200=0,$L$42,\"\")","v":""},{"$f":"IF($G200=0,$L$43,\"\")","v":""},{"$f":"IF($G200=0,$L$44,\"\")","v":""},{"$f":"IF($G200=0,$L$45,\"\")","v":""},{"$f":"IF($G200=0,$L$46,\"\")","v":""},{"$f":"IF($G200=0,$L$47,\"\")","v":""}]
[null,null,{"$f":"IF('1 Specifikation'!E119<>\"Ja\",\"\",\"Cirkulär tjänst - \"&'1 Specifikation'!B119)","v":""},{"$f":"IFERROR(INDEX($C$135:$C$207,SMALL(IF($C$135:$C$207<>\"\",ROW($C$135:$C$207)-ROW(C$135)+1),ROWS(D$135:D201))),\"\")","v":""},null,{"$f":"'1 Specifikation'!B119","v":"Inventering"}]
[null,null,{"$f":"IF('1 Specifikation'!E121<>\"Ja\",\"\",\"Cirkulär tjänst - \"&'1 Specifikation'!B121)","v":""},{"$f":"IFERROR(INDEX($C$135:$C$207,SMALL(IF($C$135:$C$207<>\"\",ROW($C$135:$C$207)-ROW(C$135)+1),ROWS(D$135:D202))),\"\")","v":""},null,{"$f":"'1 Specifikation'!B121","v":"Möbel- och möbeltextiltvätt"}]
[null,null,{"$f":"IF('1 Specifikation'!E123<>\"Ja\",\"\",\"Cirkulär tjänst - \"&'1 Specifikation'!B123)","v":""},{"$f":"IFERROR(INDEX($C$135:$C$207,SMALL(IF($C$135:$C$207<>\"\",ROW($C$135:$C$207)-ROW(C$135)+1),ROWS(D$135:D203))),\"\")","v":""},null,{"$f":"'1 Specifikation'!B123","v":"Rekonditionering"}]
[null,null,{"$f":"IF('1 Specifikation'!E125<>\"Ja\",\"\",\"Cirkulär tjänst - \"&'1 Specifikation'!B125)","v":""},{"$f":"IFERROR(INDEX($C$135:$C$207,SMALL(IF($C$135:$C$207<>\"\",ROW($C$135:$C$207)-ROW(C$135)+1),ROWS(D$135:D204))),\"\")","v":""},null,{"$f":"'1 Specifikation'!B125","v":"Renovering"}]
[null,null,{"$f":"IF('1 Specifikation'!E127<>\"Ja\",\"\",\"Cirkulär tjänst - \"&'1 Specifikation'!B127)","v":""},{"$f":"IFERROR(INDEX($C$135:$C$207,SMALL(IF($C$135:$C$207<>\"\",ROW($C$135:$C$207)-ROW(C$135)+1),ROWS(D$135:D205))),\"\")","v":""},null,{"$f":"'1 Specifikation'!B127","v":"Tapetsering, stoppningsarbete"}]
[null,null,{"$f":"IF('1 Specifikation'!E129<>\"Ja\",\"\",\"Cirkulär tjänst - \"&'1 Specifikation'!B129)","v":""},{"$f":"IFERROR(INDEX($C$135:$C$207,SMALL(IF($C$135:$C$207<>\"\",ROW($C$135:$C$207)-ROW(C$135)+1),ROWS(D$135:D206))),\"\")","v":""},null,{"$f":"'1 Specifikation'!B129","v":"Lackering, omlackering"}]
[null,null,{"$f":"IF('1 Specifikation'!E131<>\"Ja\",\"\",\"Cirkulär tjänst - \"&'1 Specifikation'!B131)","v":""},{"$f":"IFERROR(INDEX($C$135:$C$207,SMALL(IF($C$135:$C$207<>\"\",ROW($C$135:$C$207)-ROW(C$135)+1),ROWS(D$135:D207))),\"\")","v":""},null,{"$f":"'1 Specifikation'!B131","v":"Återtag, återköp, destruktion"}]
[]
[null,null,"TblTilldelningsVara","ListaTilldelningsVara",null,"Tilldelningskriterier"]
[null,null,"Välj Vara","Välj Vara"]
[null,null,{"$f":"IF(RIGHT(LEFT(C136,7),1)=\"T\",\"\",C136)","v":""},{"$f":"IFERROR(INDEX($C$210:$C$282,SMALL(IF($C$210:$C$282<>\"\",ROW($C$210:$C$282)-ROW(C$210)+1),ROWS(D$210:D211))),\"\")","v":""},null,{"$f":"IF(RIGHT(LEFT('1 Specifikation'!B225,7),1)=\"T\",\"\",'1 Specifikation'!B225)","v":"Välj Vara"},{"$f":"IFERROR(IF(F211=\"\",\"\",FIND(\"Tjänst\",F211)),0)","v":0},{"$f":"IF($G211=0,$L$36,\"\")","v":"Varans egenskaper"},{"$f":"IF($G211=0,$L$37,\"\")","v":"Varans hållbarhet"},{"$f":"IF($G211=0,$L$38,\"\")","v":"Varans cirkularitet"},{"$f":"IF($G211=0,$L$39,\"\")","v":"Varans funktionalitet"},{"$f":"IF($G211=0,$L$40,\"\")","v":"Varans estetiska utformning"},{"$f":"IF($G211=0,$L$41,\"\")","v":"Varans anpassning till befintliga möbler och annan inredning"},{"$f":"IF($G211=0,$L$42,\"\")","v":"Varans anpassning till lokalens utformning och funktionalitet"},{"$f":"IF($G211=0,$L$43,\"\")","v":"Leveranstid"}]
[null,null,{"$f":"IF(RIGHT(LEFT(C137,7),1)=\"T\",\"\",C137)","v":""},{"$f":"IFERROR(INDEX($C$210:$C$282,SMALL(IF($C$210:$C$282<>\"\",ROW($C$210:$C$282)-ROW(C$210)+1),ROWS(D$210:D212))),\"\")","v":""},null,{"$f":"IF(RIGHT(LEFT('1 Specifikation'!B226,7),1)=\"T\",\"\",'1 Specifikation'!B226)","v":"Välj Vara"},{"$f":"IFERROR(IF(F212=\"\",\"\",FIND(\"Tjänst\",F212)),0)","v":0},"Varans egenskaper","Varans hållbarhet","Varans cirkularitet","Varans funktionalitet","Varans estetiska utformning","Varans anpassning till befintliga möbler och annan inredning","Varans anpassning till lokalens utformning och funktionalitet","Leveranstid"]
[null,null,"",{"$f":"IFERROR(INDEX($C$210:$C$282,SMALL(IF($C$210:$C$282<>\"\",ROW($C$210:$C$282)-ROW(C$210)+1),ROWS(D$210:D213))),\"\")","v":""},null,{"$f":"IF(RIGHT(LEFT('1 Specifikation'!B227,7),1)=\"T\",\"\",'1 Specifikation'!B227)","v":"Välj Vara"},0,"Varans egenskaper","Varans hållbarhet","Varans cirkularitet","Varans funktionalitet","Varans estetiska utformning","Varans anpassning till befintliga möbler och annan inredning","Varans anpassning till lokalens utformning och funktionalitet","Leveranstid"]
[null,null,"",{"$f":"IFERROR(INDEX($C$210:$C$282,SMALL(IF($C$210:$C$282<>\"\",ROW($C$210:$C$282)-ROW(C$210)+1),ROWS(D$210:D214))),\"\")","v":""},null,{"$f":"IF(RIGHT(LEFT('1 Specifikation'!B228,7),1)=\"T\",\"\",'1 Specifikation'!B228)","v":"Välj Vara"},0,"Varans egenskaper","Varans hållbarhet","Varans cirkularitet","Varans funktionalitet","Varans estetiska utformning","Varans anpassning till befintliga möbler och annan inredning","Varans anpassning till lokalens utformning och funktionalitet","Leveranstid"]
[null,null,"",{"$f":"IFERROR(INDEX($C$210:$C$282,SMALL(IF($C$210:$C$282<>\"\",ROW($C$210:$C$282)-ROW(C$210)+1),ROWS(D$210:D215))),\"\")","v":""},null,{"$f":"IF(RIGHT(LEFT('1 Specifikation'!B229,7),1)=\"T\",\"\",'1 Specifikation'!B229)","v":"Välj Vara"},0,"Varans egenskaper","Varans hållbarhet","Varans cirkularitet","Varans funktionalitet","Varans estetiska utformning","Varans anpassning till befintliga möbler och annan inredning","Varans anpassning till lokalens utformning och funktionalitet","Leveranstid"]
[null,null,"",{"$f":"IFERROR(INDEX($C$210:$C$282,SMALL(IF($C$210:$C$282<>\"\",ROW($C$210:$C$282)-ROW(C$210)+1),ROWS(D$210:D216))),\"\")","v":""},null,{"$f":"IF(RIGHT(LEFT('1 Specifikation'!B230,7),1)=\"T\",\"\",'1 Specifikation'!B230)","v":"Välj Vara"},0,"Varans egenskaper","Varans hållbarhet","Varans cirkularitet","Varans funktionalitet","Varans estetiska utformning","Varans anpassning till befintliga möbler och annan inredning","Varans anpassning till lokalens utformning och funktionalitet","Leveranstid"]
[null,null,"",{"$f":"IFERROR(INDEX($C$210:$C$282,SMALL(IF($C$210:$C$282<>\"\",ROW($C$210:$C$282)-ROW(C$210)+1),ROWS(D$210:D217))),\"\")","v":""},null,{"$f":"IF(RIGHT(LEFT('1 Specifikation'!B231,7),1)=\"T\",\"\",'1 Specifikation'!B231)","v":"Välj Vara"},0,"Varans egenskaper","Varans hållbarhet","Varans cirkularitet","Varans funktionalitet","Varans estetiska utformning","Varans anpassning till befintliga möbler och annan inredning","Varans anpassning till lokalens utformning och funktionalitet","Leveranstid"]
[null,null,"",{"$f":"IFERROR(INDEX($C$210:$C$282,SMALL(IF($C$210:$C$282<>\"\",ROW($C$210:$C$282)-ROW(C$210)+1),ROWS(D$210:D218))),\"\")","v":""},null,{"$f":"IF(RIGHT(LEFT('1 Specifikation'!B232,7),1)=\"T\",\"\",'1 Specifikation'!B232)","v":"Välj Vara"},0,"Varans egenskaper","Varans hållbarhet","Varans cirkularitet","Varans funktionalitet","Varans estetiska utformning","Varans anpassning till befintliga möbler och annan inredning","Varans anpassning till lokalens utformning och funktionalitet","Leveranstid"]
[null,null,"",{"$f":"IFERROR(INDEX($C$210:$C$282,SMALL(IF($C$210:$C$282<>\"\",ROW($C$210:$C$282)-ROW(C$210)+1),ROWS(D$210:D219))),\"\")","v":""},null,{"$f":"IF(RIGHT(LEFT('1 Specifikation'!B233,7),1)=\"T\",\"\",'1 Specifikation'!B233)","v":"Välj Vara"},0,"Varans egenskaper","Varans hållbarhet","Varans cirkularitet","Varans funktionalitet","Varans estetiska utformning","Varans anpassning till befintliga möbler och annan inredning","Varans anpassning till lokalens utformning och funktionalitet","Leveranstid"]
[null,null,"",{"$f":"IFERROR(INDEX($C$210:$C$282,SMALL(IF($C$210:$C$282<>\"\",ROW($C$210:$C$282)-ROW(C$210)+1),ROWS(D$210:D220))),\"\")","v":""},null,{"$f":"IF(RIGHT(LEFT('1 Specifikation'!B234,7),1)=\"T\",\"\",'1 Specifikation'!B234)","v":"Välj Vara"},0,"Varans egenskaper","Varans hållbarhet","Varans cirkularitet","Varans funktionalitet","Varans estetiska utformning","Varans anpassning till befintliga möbler och annan inredning","Varans anpassning till lokalens utformning och funktionalitet","Leveranstid"]
[null,null,"",{"$f":"IFERROR(INDEX($C$210:$C$282,SMALL(IF($C$210:$C$282<>\"\",ROW($C$210:$C$282)-ROW(C$210)+1),ROWS(D$210:D221))),\"\")","v":""},null,{"$f":"IF(RIGHT(LEFT('1 Specifikation'!B235,7),1)=\"T\",\"\",'1 Specifikation'!B235)","v":"Välj Vara"},0,"Varans egenskaper","Varans hållbarhet","Varans cirkularitet","Varans funktionalitet","Varans estetiska utformning","Varans anpassning till befintliga möbler och annan inredning","Varans anpassning till lokalens utformning och funktionalitet","Leveranstid"]
[null,null,"",{"$f":"IFERROR(INDEX($C$210:$C$282,SMALL(IF($C$210:$C$282<>\"\",ROW($C$210:$C$282)-ROW(C$210)+1),ROWS(D$210:D222))),\"\")","v":""},null,{"$f":"IF(RIGHT(LEFT('1 Specifikation'!B236,7),1)=\"T\",\"\",'1 Specifikation'!B236)","v":"Välj Vara"},0,"Varans egenskaper","Varans hållbarhet","Varans cirkularitet","Varans funktionalitet","Varans estetiska utformning","Varans anpassning till befintliga möbler och annan inredning","Varans anpassning till lokalens utformning och funktionalitet","Leveranstid"]
[null,null,"",{"$f":"IFERROR(INDEX($C$210:$C$282,SMALL(IF($C$210:$C$282<>\"\",ROW($C$210:$C$282)-ROW(C$210)+1),ROWS(D$210:D223))),\"\")","v":""},null,{"$f":"IF(RIGHT(LEFT('1 Specifikation'!B237,7),1)=\"T\",\"\",'1 Specifikation'!B237)","v":"Välj Vara"},0,"Varans egenskaper","Varans hållbarhet","Varans cirkularitet","Varans funktionalitet","Varans estetiska utformning","Varans anpassning till befintliga möbler och annan inredning","Varans anpassning till lokalens utformning och funktionalitet","Leveranstid"]
[null,null,"",{"$f":"IFERROR(INDEX($C$210:$C$282,SMALL(IF($C$210:$C$282<>\"\",ROW($C$210:$C$282)-ROW(C$210)+1),ROWS(D$210:D224))),\"\")","v":""},null,{"$f":"IF(RIGHT(LEFT('1 Specifikation'!B238,7),1)=\"T\",\"\",'1 Specifikation'!B238)","v":"Välj Vara"},{"$f":"IFERROR(IF(F224=\"\",\"\",FIND(\"Tjänst\",F224)),0)","v":0},"Varans egenskaper","Varans hållbarhet","Varans cirkularitet","Varans funktionalitet","Varans estetiska utformning","Varans anpassning till befintliga möbler och annan inredning","Varans anpassning till lokalens utformning och funktionalitet","Leveranstid"]
[null,null,"",{"$f":"IFERROR(INDEX($C$210:$C$282,SMALL(IF($C$210:$C$282<>\"\",ROW($C$210:$C$282)-ROW(C$210)+1),ROWS(D$210:D225))),\"\")","v":""},null,{"$f":"IF(RIGHT(LEFT('1 Specifikation'!B239,7),1)=\"T\",\"\",'1 Specifikation'!B239)","v":"Välj Vara"},0,"Varans egenskaper","Varans hållbarhet","Varans cirkularitet","Varans funktionalitet","Varans estetiska utformning","Varans anpassning till befintliga möbler och annan inredning","Varans anpassning till lokalens utformning och funktionalitet","Leveranstid"]
[null,null,"",{"$f":"IFERROR(INDEX($C$210:$C$282,SMALL(IF($C$210:$C$282<>\"\",ROW($C$210:$C$282)-ROW(C$210)+1),ROWS(D$210:D226))),\"\")","v":""},null,{"$f":"IF(RIGHT(LEFT('1 Specifikation'!B240,7),1)=\"T\",\"\",'1 Specifikation'!B240)","v":"Välj Vara"},0,"Varans egenskaper","Varans hållbarhet","Varans cirkularitet","Varans funktionalitet","Varans estetiska utformning","Varans anpassning till befintliga möbler och annan inredning","Varans anpassning till lokalens utformning och funktionalitet","Leveranstid"]
[null,null,"",{"$f":"IFERROR(INDEX($C$210:$C$282,SMALL(IF($C$210:$C$282<>\"\",ROW($C$210:$C$282)-ROW(C$210)+1),ROWS(D$210:D227))),\"\")","v":""},null,{"$f":"IF(RIGHT(LEFT('1 Specifikation'!B241,7),1)=\"T\",\"\",'1 Specifikation'!B241)","v":"Välj Vara"},0,"Varans egenskaper","Varans hållbarhet","Varans cirkularitet","Varans funktionalitet","Varans estetiska utformning","Varans anpassning till befintliga möbler och annan inredning","Varans anpassning till lokalens utformning och funktionalitet","Leveranstid"]
[null,null,"",{"$f":"IFERROR(INDEX($C$210:$C$282,SMALL(IF($C$210:$C$282<>\"\",ROW($C$210:$C$282)-ROW(C$210)+1),ROWS(D$210:D228))),\"\")","v":""},null,{"$f":"IF(RIGHT(LEFT('1 Specifikation'!B242,7),1)=\"T\",\"\",'1 Specifikation'!B242)","v":"Välj Vara"},0,"Varans egenskaper","Varans hållbarhet","Varans cirkularitet","Varans funktionalitet","Varans estetiska utformning","Varans anpassning till befintliga möbler och annan inredning","Varans anpassning till lokalens utformning och funktionalitet","Leveranstid"]
[null,null,"",{"$f":"IFERROR(INDEX($C$210:$C$282,SMALL(IF($C$210:$C$282<>\"\",ROW($C$210:$C$282)-ROW(C$210)+1),ROWS(D$210:D229))),\"\")","v":""},null,{"$f":"IF(RIGHT(LEFT('1 Specifikation'!B243,7),1)=\"T\",\"\",'1 Specifikation'!B243)","v":"Välj Vara"},0,"Varans egenskaper","Varans hållbarhet","Varans cirkularitet","Varans funktionalitet","Varans estetiska utformning","Varans anpassning till befintliga möbler och annan inredning","Varans anpassning till lokalens utformning och funktionalitet","Leveranstid"]
[null,null,"",{"$f":"IFERROR(INDEX($C$210:$C$282,SMALL(IF($C$210:$C$282<>\"\",ROW($C$210:$C$282)-ROW(C$210)+1),ROWS(D$210:D230))),\"\")","v":""},null,{"$f":"IF(RIGHT(LEFT('1 Specifikation'!B244,7),1)=\"T\",\"\",'1 Specifikation'!B244)","v":"Välj Vara"},0,"Varans egenskaper","Varans hållbarhet","Varans cirkularitet","Varans funktionalitet","Varans estetiska utformning","Varans anpassning till befintliga möbler och annan inredning","Varans anpassning till lokalens utformning och funktionalitet","Leveranstid"]
[null,null,"",{"$f":"IFERROR(INDEX($C$210:$C$282,SMALL(IF($C$210:$C$282<>\"\",ROW($C$210:$C$282)-ROW(C$210)+1),ROWS(D$210:D231))),\"\")","v":""},null,{"$f":"IF(RIGHT(LEFT('1 Specifikation'!B245,7),1)=\"T\",\"\",'1 Specifikation'!B245)","v":"Välj Vara"},0,"Varans egenskaper","Varans hållbarhet","Varans cirkularitet","Varans funktionalitet","Varans estetiska utformning","Varans anpassning till befintliga möbler och annan inredning","Varans anpassning till lokalens utformning och funktionalitet","Leveranstid"]
[null,null,"",{"$f":"IFERROR(INDEX($C$210:$C$282,SMALL(IF($C$210:$C$282<>\"\",ROW($C$210:$C$282)-ROW(C$210)+1),ROWS(D$210:D232))),\"\")","v":""},null,{"$f":"IF(RIGHT(LEFT('1 Specifikation'!B246,7),1)=\"T\",\"\",'1 Specifikation'!B246)","v":"Välj Vara"},0,"Varans egenskaper","Varans hållbarhet","Varans cirkularitet","Varans funktionalitet","Varans estetiska utformning","Varans anpassning till befintliga möbler och annan inredning","Varans anpassning till lokalens utformning och funktionalitet","Leveranstid"]
[null,null,"",{"$f":"IFERROR(INDEX($C$210:$C$282,SMALL(IF($C$210:$C$282<>\"\",ROW($C$210:$C$282)-ROW(C$210)+1),ROWS(D$210:D233))),\"\")","v":""},null,{"$f":"IF(RIGHT(LEFT('1 Specifikation'!B247,7),1)=\"T\",\"\",'1 Specifikation'!B247)","v":"Välj Vara"},0,"Varans egenskaper","Varans hållbarhet","Varans cirkularitet","Varans funktionalitet","Varans estetiska utformning","Varans anpassning till befintliga möbler och annan inredning","Varans anpassning till lokalens utformning och funktionalitet","Leveranstid"]
[null,null,"",{"$f":"IFERROR(INDEX($C$210:$C$282,SMALL(IF($C$210:$C$282<>\"\",ROW($C$210:$C$282)-ROW(C$210)+1),ROWS(D$210:D234))),\"\")","v":""},null,{"$f":"IF(RIGHT(LEFT('1 Specifikation'!B248,7),1)=\"T\",\"\",'1 Specifikation'!B248)","v":"Välj Vara"},0,"Varans egenskaper","Varans hållbarhet","Varans cirkularitet","Varans funktionalitet","Varans estetiska utformning","Varans anpassning till befintliga möbler och annan inredning","Varans anpassning till lokalens utformning och funktionalitet","Leveranstid"]
[null,null,"",{"$f":"IFERROR(INDEX($C$210:$C$282,SMALL(IF($C$210:$C$282<>\"\",ROW($C$210:$C$282)-ROW(C$210)+1),ROWS(D$210:D235))),\"\")","v":""},null,{"$f":"IF(RIGHT(LEFT('1 Specifikation'!B249,7),1)=\"T\",\"\",'1 Specifikation'!B249)","v":"Välj Vara"},0,"Varans egenskaper","Varans hållbarhet","Varans cirkularitet","Varans funktionalitet","Varans estetiska utformning","Varans anpassning till befintliga möbler och annan inredning","Varans anpassning till lokalens utformning och funktionalitet","Leveranstid"]
[null,null,"",{"$f":"IFERROR(INDEX($C$210:$C$282,SMALL(IF($C$210:$C$282<>\"\",ROW($C$210:$C$282)-ROW(C$210)+1),ROWS(D$210:D236))),\"\")","v":""},null,{"$f":"IF(RIGHT(LEFT('1 Specifikation'!B250,7),1)=\"T\",\"\",'1 Specifikation'!B250)","v":"Välj Vara"},0,"Varans egenskaper","Varans hållbarhet","Varans cirkularitet","Varans funktionalitet","Varans estetiska utformning","Varans anpassning till befintliga möbler och annan inredning","Varans anpassning till lokalens utformning och funktionalitet","Leveranstid"]
[null,null,"",{"$f":"IFERROR(INDEX($C$210:$C$282,SMALL(IF($C$210:$C$282<>\"\",ROW($C$210:$C$282)-ROW(C$210)+1),ROWS(D$210:D237))),\"\")","v":""},null,{"$f":"IF(RIGHT(LEFT('1 Specifikation'!B251,7),1)=\"T\",\"\",'1 Specifikation'!B251)","v":"Välj Vara"},0,"Varans egenskaper","Varans hållbarhet","Varans cirkularitet","Varans funktionalitet","Varans estetiska utformning","Varans anpassning till befintliga möbler och annan inredning","Varans anpassning till lokalens utformning och funktionalitet","Leveranstid"]
[null,null,"",{"$f":"IFERROR(INDEX($C$210:$C$282,SMALL(IF($C$210:$C$282<>\"\",ROW($C$210:$C$282)-ROW(C$210)+1),ROWS(D$210:D238))),\"\")","v":""},null,{"$f":"IF(RIGHT(LEFT('1 Specifikation'!B252,7),1)=\"T\",\"\",'1 Specifikation'!B252)","v":"Välj Vara"},0,"Varans egenskaper","Varans hållbarhet","Varans cirkularitet","Varans funktionalitet","Varans estetiska utformning","Varans anpassning till befintliga möbler och annan inredning","Varans anpassning till lokalens utformning och funktionalitet","Leveranstid"]
[null,null,"",{"$f":"IFERROR(INDEX($C$210:$C$282,SMALL(IF($C$210:$C$282<>\"\",ROW($C$210:$C$282)-ROW(C$210)+1),ROWS(D$210:D239))),\"\")","v":""},null,{"$f":"IF(RIGHT(LEFT('1 Specifikation'!B253,7),1)=\"T\",\"\",'1 Specifikation'!B253)","v":"Välj Vara"},{"$f":"IFERROR(IF(F239=\"\",\"\",FIND(\"Tjänst\",F239)),0)","v":0},"Varans egenskaper","Varans hållbarhet","Varans cirkularitet","Varans funktionalitet","Varans estetiska utformning","Varans anpassning till befintliga möbler och annan inredning","Varans anpassning till lokalens utformning och funktionalitet","Leveranstid"]
[null,null,"",{"$f":"IFERROR(INDEX($C$210:$C$282,SMALL(IF($C$210:$C$282<>\"\",ROW($C$210:$C$282)-ROW(C$210)+1),ROWS(D$210:D240))),\"\")","v":""},null,{"$f":"IF(RIGHT(LEFT('1 Specifikation'!B254,7),1)=\"T\",\"\",'1 Specifikation'!B254)","v":"Välj Vara"},0,"Varans egenskaper","Varans hållbarhet","Varans cirkularitet","Varans funktionalitet","Varans estetiska utformning","Varans anpassning till befintliga möbler och annan inredning","Varans anpassning till lokalens utformning och funktionalitet","Leveranstid"]
[null,null,"",{"$f":"IFERROR(INDEX($C$210:$C$282,SMALL(IF($C$210:$C$282<>\"\",ROW($C$210:$C$282)-ROW(C$210)+1),ROWS(D$210:D241))),\"\")","v":""},null,{"$f":"IF(RIGHT(LEFT('1 Specifikation'!B255,7),1)=\"T\",\"\",'1 Specifikation'!B255)","v":"Välj Vara"},0,"Varans egenskaper","Varans hållbarhet","Varans cirkularitet","Varans funktionalitet","Varans estetiska utformning","Varans anpassning till befintliga möbler och annan inredning","Varans anpassning till lokalens utformning och funktionalitet","Leveranstid"]
[null,null,"",{"$f":"IFERROR(INDEX($C$210:$C$282,SMALL(IF($C$210:$C$282<>\"\",ROW($C$210:$C$282)-ROW(C$210)+1),ROWS(D$210:D242))),\"\")","v":""},null,{"$f":"IF(RIGHT(LEFT('1 Specifikation'!B256,7),1)=\"T\",\"\",'1 Specifikation'!B256)","v":"Välj Vara"},0,"Varans egenskaper","Varans hållbarhet","Varans cirkularitet","Varans funktionalitet","Varans estetiska utformning","Varans anpassning till befintliga möbler och annan inredning","Varans anpassning till lokalens utformning och funktionalitet","Leveranstid"]
[null,null,"",{"$f":"IFERROR(INDEX($C$210:$C$282,SMALL(IF($C$210:$C$282<>\"\",ROW($C$210:$C$282)-ROW(C$210)+1),ROWS(D$210:D243))),\"\")","v":""},null,{"$f":"IF(RIGHT(LEFT('1 Specifikation'!B257,7),1)=\"T\",\"\",'1 Specifikation'!B257)","v":"Välj Vara"},0,"Varans egenskaper","Varans hållbarhet","Varans cirkularitet","Varans funktionalitet","Varans estetiska utformning","Varans anpassning till befintliga möbler och annan inredning","Varans anpassning till lokalens utformning och funktionalitet","Leveranstid"]
[null,null,"",{"$f":"IFERROR(INDEX($C$210:$C$282,SMALL(IF($C$210:$C$282<>\"\",ROW($C$210:$C$282)-ROW(C$210)+1),ROWS(D$210:D244))),\"\")","v":""},null,{"$f":"IF(RIGHT(LEFT('1 Specifikation'!B258,7),1)=\"T\",\"\",'1 Specifikation'!B258)","v":"Välj Vara"},0,"Varans egenskaper","Varans hållbarhet","Varans cirkularitet","Varans funktionalitet","Varans estetiska utformning","Varans anpassning till befintliga möbler och annan inredning","Varans anpassning till lokalens utformning och funktionalitet","Leveranstid"]
[null,null,"",{"$f":"IFERROR(INDEX($C$210:$C$282,SMALL(IF($C$210:$C$282<>\"\",ROW($C$210:$C$282)-ROW(C$210)+1),ROWS(D$210:D245))),\"\")","v":""},null,{"$f":"IF(RIGHT(LEFT('1 Specifikation'!B259,7),1)=\"T\",\"\",'1 Specifikation'!B259)","v":"Välj Vara"},0,"Varans egenskaper","Varans hållbarhet","Varans cirkularitet","Varans funktionalitet","Varans estetiska utformning","Varans anpassning till befintliga möbler och annan inredning","Varans anpassning till lokalens utformning och funktionalitet","Leveranstid"]
[null,null,"",{"$f":"IFERROR(INDEX($C$210:$C$282,SMALL(IF($C$210:$C$282<>\"\",ROW($C$210:$C$282)-ROW(C$210)+1),ROWS(D$210:D246))),\"\")","v":""},null,{"$f":"IF(RIGHT(LEFT('1 Specifikation'!B260,7),1)=\"T\",\"\",'1 Specifikation'!B260)","v":"Välj Vara"},0,"Varans egenskaper","Varans hållbarhet","Varans cirkularitet","Varans funktionalitet","Varans estetiska utformning","Varans anpassning till befintliga möbler och annan inredning","Varans anpassning till lokalens utformning och funktionalitet","Leveranstid"]
[null,null,"",{"$f":"IFERROR(INDEX($C$210:$C$282,SMALL(IF($C$210:$C$282<>\"\",ROW($C$210:$C$282)-ROW(C$210)+1),ROWS(D$210:D247))),\"\")","v":""},null,{"$f":"IF(RIGHT(LEFT('1 Specifikation'!B261,7),1)=\"T\",\"\",'1 Specifikation'!B261)","v":"Välj Vara"},0,"Varans egenskaper","Varans hållbarhet","Varans cirkularitet","Varans funktionalitet","Varans estetiska utformning","Varans anpassning till befintliga möbler och annan inredning","Varans anpassning till lokalens utformning och funktionalitet","Leveranstid"]
[null,null,"",{"$f":"IFERROR(INDEX($C$210:$C$282,SMALL(IF($C$210:$C$282<>\"\",ROW($C$210:$C$282)-ROW(C$210)+1),ROWS(D$210:D248))),\"\")","v":""},null,{"$f":"IF(RIGHT(LEFT('1 Specifikation'!B262,7),1)=\"T\",\"\",'1 Specifikation'!B262)","v":"Välj Vara"},0,"Varans egenskaper","Varans hållbarhet","Varans cirkularitet","Varans funktionalitet","Varans estetiska utformning","Varans anpassning till befintliga möbler och annan inredning","Varans anpassning till lokalens utformning och funktionalitet","Leveranstid"]
[null,null,"",{"$f":"IFERROR(INDEX($C$210:$C$282,SMALL(IF($C$210:$C$282<>\"\",ROW($C$210:$C$282)-ROW(C$210)+1),ROWS(D$210:D249))),\"\")","v":""},null,{"$f":"IF(RIGHT(LEFT('1 Specifikation'!B263,7),1)=\"T\",\"\",'1 Specifikation'!B263)","v":"Välj Vara"},0,"Varans egenskaper","Varans hållbarhet","Varans cirkularitet","Varans funktionalitet","Varans estetiska utformning","Varans anpassning till befintliga möbler och annan inredning","Varans anpassning till lokalens utformning och funktionalitet","Leveranstid"]
[null,null,"",{"$f":"IFERROR(INDEX($C$210:$C$282,SMALL(IF($C$210:$C$282<>\"\",ROW($C$210:$C$282)-ROW(C$210)+1),ROWS(D$210:D250))),\"\")","v":""},null,{"$f":"IF(RIGHT(LEFT('1 Specifikation'!B264,7),1)=\"T\",\"\",'1 Specifikation'!B264)","v":"Välj Vara"},0,"Varans egenskaper","Varans hållbarhet","Varans cirkularitet","Varans funktionalitet","Varans estetiska utformning","Varans anpassning till befintliga möbler och annan inredning","Varans anpassning till lokalens utformning och funktionalitet","Leveranstid"]
[null,null,"",{"$f":"IFERROR(INDEX($C$210:$C$282,SMALL(IF($C$210:$C$282<>\"\",ROW($C$210:$C$282)-ROW(C$210)+1),ROWS(D$210:D251))),\"\")","v":""},null,{"$f":"IF(RIGHT(LEFT('1 Specifikation'!B265,7),1)=\"T\",\"\",'1 Specifikation'!B265)","v":"Välj Vara"},0,"Varans egenskaper","Varans hållbarhet","Varans cirkularitet","Varans funktionalitet","Varans estetiska utformning","Varans anpassning till befintliga möbler och annan inredning","Varans anpassning till lokalens utformning och funktionalitet","Leveranstid"]
[null,null,"",{"$f":"IFERROR(INDEX($C$210:$C$282,SMALL(IF($C$210:$C$282<>\"\",ROW($C$210:$C$282)-ROW(C$210)+1),ROWS(D$210:D252))),\"\")","v":""},null,{"$f":"IF(RIGHT(LEFT('1 Specifikation'!B266,7),1)=\"T\",\"\",'1 Specifikation'!B266)","v":"Välj Vara"},0,"Varans egenskaper","Varans hållbarhet","Varans cirkularitet","Varans funktionalitet","Varans estetiska utformning","Varans anpassning till befintliga möbler och annan inredning","Varans anpassning till lokalens utformning och funktionalitet","Leveranstid"]
[null,null,"",{"$f":"IFERROR(INDEX($C$210:$C$282,SMALL(IF($C$210:$C$282<>\"\",ROW($C$210:$C$282)-ROW(C$210)+1),ROWS(D$210:D253))),\"\")","v":""},null,{"$f":"IF(RIGHT(LEFT('1 Specifikation'!B267,7),1)=\"T\",\"\",'1 Specifikation'!B267)","v":"Välj Vara"},0,"Varans egenskaper","Varans hållbarhet","Varans cirkularitet","Varans funktionalitet","Varans estetiska utformning","Varans anpassning till befintliga möbler och annan inredning","Varans anpassning till lokalens utformning och funktionalitet","Leveranstid"]
[null,null,"",{"$f":"IFERROR(INDEX($C$210:$C$282,SMALL(IF($C$210:$C$282<>\"\",ROW($C$210:$C$282)-ROW(C$210)+1),ROWS(D$210:D254))),\"\")","v":""},null,{"$f":"IF(RIGHT(LEFT('1 Specifikation'!B268,7),1)=\"T\",\"\",'1 Specifikation'!B268)","v":"Välj Vara"},0,"Varans egenskaper","Varans hållbarhet","Varans cirkularitet","Varans funktionalitet","Varans estetiska utformning","Varans anpassning till befintliga möbler och annan inredning","Varans anpassning till lokalens utformning och funktionalitet","Leveranstid"]
[null,null,"",{"$f":"IFERROR(INDEX($C$210:$C$282,SMALL(IF($C$210:$C$282<>\"\",ROW($C$210:$C$282)-ROW(C$210)+1),ROWS(D$210:D255))),\"\")","v":""},null,{"$f":"IF(RIGHT(LEFT('1 Specifikation'!B269,7),1)=\"T\",\"\",'1 Specifikation'!B269)","v":"Välj Vara"},0,"Varans egenskaper","Varans hållbarhet","Varans cirkularitet","Varans funktionalitet","Varans estetiska utformning","Varans anpassning till befintliga möbler och annan inredning","Varans anpassning till lokalens utformning och funktionalitet","Leveranstid"]
[null,null,"",{"$f":"IFERROR(INDEX($C$210:$C$282,SMALL(IF($C$210:$C$282<>\"\",ROW($C$210:$C$282)-ROW(C$210)+1),ROWS(D$210:D256))),\"\")","v":""},null,{"$f":"IF(RIGHT(LEFT('1 Specifikation'!B270,7),1)=\"T\",\"\",'1 Specifikation'!B270)","v":"Välj Vara"},0,"Varans egenskaper","Varans hållbarhet","Varans cirkularitet","Varans funktionalitet","Varans estetiska utformning","Varans anpassning till befintliga möbler och annan inredning","Varans anpassning till lokalens utformning och funktionalitet","Leveranstid"]
[null,null,"",{"$f":"IFERROR(INDEX($C$210:$C$282,SMALL(IF($C$210:$C$282<>\"\",ROW($C$210:$C$282)-ROW(C$210)+1),ROWS(D$210:D257))),\"\")","v":""},null,{"$f":"IF(RIGHT(LEFT('1 Specifikation'!B271,7),1)=\"T\",\"\",'1 Specifikation'!B271)","v":"Välj Vara"},0,"Varans egenskaper","Varans hållbarhet","Varans cirkularitet","Varans funktionalitet","Varans estetiska utformning","Varans anpassning till befintliga möbler och annan inredning","Varans anpassning till lokalens utformning och funktionalitet","Leveranstid"]
[null,null,"",{"$f":"IFERROR(INDEX($C$210:$C$282,SMALL(IF($C$210:$C$282<>\"\",ROW($C$210:$C$282)-ROW(C$210)+1),ROWS(D$210:D258))),\"\")","v":""},null,{"$f":"IF(RIGHT(LEFT('1 Specifikation'!B272,7),1)=\"T\",\"\",'1 Specifikation'!B272)","v":"Välj Vara"},0,"Varans egenskaper","Varans hållbarhet","Varans cirkularitet","Varans funktionalitet","Varans estetiska utformning","Varans anpassning till befintliga möbler och annan inredning","Varans anpassning till lokalens utformning och funktionalitet","Leveranstid"]
[null,null,"",{"$f":"IFERROR(INDEX($C$210:$C$282,SMALL(IF($C$210:$C$282<>\"\",ROW($C$210:$C$282)-ROW(C$210)+1),ROWS(D$210:D259))),\"\")","v":""},null,{"$f":"IF(RIGHT(LEFT('1 Specifikation'!B273,7),1)=\"T\",\"\",'1 Specifikation'!B273)","v":"Välj Vara"},{"$f":"IFERROR(IF(F259=\"\",\"\",FIND(\"Tjänst\",F259)),0)","v":0},"Varans egenskaper","Varans hållbarhet","Varans cirkularitet","Varans funktionalitet","Varans estetiska utformning","Varans anpassning till befintliga möbler och annan inredning","Varans anpassning till lokalens utformning och funktionalitet","Leveranstid"]
[null,null,"",{"$f":"IFERROR(INDEX($C$210:$C$282,SMALL(IF($C$210:$C$282<>\"\",ROW($C$210:$C$282)-ROW(C$210)+1),ROWS(D$210:D260))),\"\")","v":""},null,{"$f":"IF(RIGHT(LEFT('1 Specifikation'!B274,7),1)=\"T\",\"\",'1 Specifikation'!B274)","v":"Välj Vara"},0,"Varans egenskaper","Varans hållbarhet","Varans cirkularitet","Varans funktionalitet","Varans estetiska utformning","Varans anpassning till befintliga möbler och annan inredning","Varans anpassning till lokalens utformning och funktionalitet","Leveranstid"]
[null,null,"",{"$f":"IFERROR(INDEX($C$210:$C$282,SMALL(IF($C$210:$C$282<>\"\",ROW($C$210:$C$282)-ROW(C$210)+1),ROWS(D$210:D261))),\"\")","v":""},null,{"$f":"IF(RIGHT(LEFT('1 Specifikation'!B275,7),1)=\"T\",\"\",'1 Specifikation'!B275)","v":"Välj Vara"},0,"Varans egenskaper","Varans hållbarhet","Varans cirkularitet","Varans funktionalitet","Varans estetiska utformning","Varans anpassning till befintliga möbler och annan inredning","Varans anpassning till lokalens utformning och funktionalitet","Leveranstid"]
[null,null,"",{"$f":"IFERROR(INDEX($C$210:$C$282,SMALL(IF($C$210:$C$282<>\"\",ROW($C$210:$C$282)-ROW(C$210)+1),ROWS(D$210:D262))),\"\")","v":""},null,{"$f":"IF(RIGHT(LEFT('1 Specifikation'!B276,7),1)=\"T\",\"\",'1 Specifikation'!B276)","v":"Välj Vara"},0,"Varans egenskaper","Varans hållbarhet","Varans cirkularitet","Varans funktionalitet","Varans estetiska utformning","Varans anpassning till befintliga möbler och annan inredning","Varans anpassning till lokalens utformning och funktionalitet","Leveranstid"]
[null,null,"",{"$f":"IFERROR(INDEX($C$210:$C$282,SMALL(IF($C$210:$C$282<>\"\",ROW($C$210:$C$282)-ROW(C$210)+1),ROWS(D$210:D263))),\"\")","v":""},null,{"$f":"IF(RIGHT(LEFT('1 Specifikation'!B277,7),1)=\"T\",\"\",'1 Specifikation'!B277)","v":"Välj Vara"},0,"Varans egenskaper","Varans hållbarhet","Varans cirkularitet","Varans funktionalitet","Varans estetiska utformning","Varans anpassning till befintliga möbler och annan inredning","Varans anpassning till lokalens utformning och funktionalitet","Leveranstid"]
[null,null,"",{"$f":"IFERROR(INDEX($C$210:$C$282,SMALL(IF($C$210:$C$282<>\"\",ROW($C$210:$C$282)-ROW(C$210)+1),ROWS(D$210:D264))),\"\")","v":""},null,{"$f":"IF(RIGHT(LEFT('1 Specifikation'!B278,7),1)=\"T\",\"\",'1 Specifikation'!B278)","v":"Välj Vara"},0,"Varans egenskaper","Varans hållbarhet","Varans cirkularitet","Varans funktionalitet","Varans estetiska utformning","Varans anpassning till befintliga möbler och annan inredning","Varans anpassning till lokalens utformning och funktionalitet","Leveranstid"]
[null,null,"",{"$f":"IFERROR(INDEX($C$210:$C$282,SMALL(IF($C$210:$C$282<>\"\",ROW($C$210:$C$282)-ROW(C$210)+1),ROWS(D$210:D265))),\"\")","v":""},null,{"$f":"IF(RIGHT(LEFT('1 Specifikation'!B279,7),1)=\"T\",\"\",'1 Specifikation'!B279)","v":"Välj Vara"},0,"Varans egenskaper","Varans hållbarhet","Varans cirkularitet","Varans funktionalitet","Varans estetiska utformning","Varans anpassning till befintliga möbler och annan inredning","Varans anpassning till lokalens utformning och funktionalitet","Leveranstid"]
[null,null,"",{"$f":"IFERROR(INDEX($C$210:$C$282,SMALL(IF($C$210:$C$282<>\"\",ROW($C$210:$C$282)-ROW(C$210)+1),ROWS(D$210:D266))),\"\")","v":""},null,{"$f":"IF(RIGHT(LEFT('1 Specifikation'!B280,7),1)=\"T\",\"\",'1 Specifikation'!B280)","v":"Välj Vara"},0,"Varans egenskaper","Varans hållbarhet","Varans cirkularitet","Varans funktionalitet","Varans estetiska utformning","Varans anpassning till befintliga möbler och annan inredning","Varans anpassning till lokalens utformning och funktionalitet","Leveranstid"]
[null,null,"",{"$f":"IFERROR(INDEX($C$210:$C$282,SMALL(IF($C$210:$C$282<>\"\",ROW($C$210:$C$282)-ROW(C$210)+1),ROWS(D$210:D267))),\"\")","v":""},null,{"$f":"IF(RIGHT(LEFT('1 Specifikation'!B281,7),1)=\"T\",\"\",'1 Specifikation'!B281)","v":"Välj Vara"},0,"Varans egenskaper","Varans hållbarhet","Varans cirkularitet","Varans funktionalitet","Varans estetiska utformning","Varans anpassning till befintliga möbler och annan inredning","Varans anpassning till lokalens utformning och funktionalitet","Leveranstid"]
[null,null,"",{"$f":"IFERROR(INDEX($C$210:$C$282,SMALL(IF($C$210:$C$282<>\"\",ROW($C$210:$C$282)-ROW(C$210)+1),ROWS(D$210:D268))),\"\")","v":""},null,{"$f":"IF(RIGHT(LEFT('1 Specifikation'!B282,7),1)=\"T\",\"\",'1 Specifikation'!B282)","v":"Välj Vara"},0,"Varans egenskaper","Varans hållbarhet","Varans cirkularitet","Varans funktionalitet","Varans estetiska utformning","Varans anpassning till befintliga möbler och annan inredning","Varans anpassning till lokalens utformning och funktionalitet","Leveranstid"]
[null,null,"",{"$f":"IFERROR(INDEX($C$210:$C$282,SMALL(IF($C$210:$C$282<>\"\",ROW($C$210:$C$282)-ROW(C$210)+1),ROWS(D$210:D269))),\"\")","v":""},null,{"$f":"IF(RIGHT(LEFT('1 Specifikation'!B283,7),1)=\"T\",\"\",'1 Specifikation'!B283)","v":"Välj Vara"},0,"Varans egenskaper","Varans hållbarhet","Varans cirkularitet","Varans funktionalitet","Varans estetiska utformning","Varans anpassning till befintliga möbler och annan inredning","Varans anpassning till lokalens utformning och funktionalitet","Leveranstid"]
[null,null,"",{"$f":"IFERROR(INDEX($C$210:$C$282,SMALL(IF($C$210:$C$282<>\"\",ROW($C$210:$C$282)-ROW(C$210)+1),ROWS(D$210:D270))),\"\")","v":""},null,{"$f":"IF(RIGHT(LEFT('1 Specifikation'!B284,7),1)=\"T\",\"\",'1 Specifikation'!B284)","v":"Välj Vara"},0,"Varans egenskaper","Varans hållbarhet","Varans cirkularitet","Varans funktionalitet","Varans estetiska utformning","Varans anpassning till befintliga möbler och annan inredning","Varans anpassning till lokalens utformning och funktionalitet","Leveranstid"]
[null,null,"",{"$f":"IFERROR(INDEX($C$210:$C$282,SMALL(IF($C$210:$C$282<>\"\",ROW($C$210:$C$282)-ROW(C$210)+1),ROWS(D$210:D271))),\"\")","v":""},null,{"$f":"IF(RIGHT(LEFT('1 Specifikation'!B285,7),1)=\"T\",\"\",'1 Specifikation'!B285)","v":"Välj Vara"},0,"Varans egenskaper","Varans hållbarhet","Varans cirkularitet","Varans funktionalitet","Varans estetiska utformning","Varans anpassning till befintliga möbler och annan inredning","Varans anpassning till lokalens utformning och funktionalitet","Leveranstid"]
[null,null,"",{"$f":"IFERROR(INDEX($C$210:$C$282,SMALL(IF($C$210:$C$282<>\"\",ROW($C$210:$C$282)-ROW(C$210)+1),ROWS(D$210:D272))),\"\")","v":""},null,{"$f":"IF(RIGHT(LEFT('1 Specifikation'!B286,7),1)=\"T\",\"\",'1 Specifikation'!B286)","v":"Välj Vara"},0,"Varans egenskaper","Varans hållbarhet","Varans cirkularitet","Varans funktionalitet","Varans estetiska utformning","Varans anpassning till befintliga möbler och annan inredning","Varans anpassning till lokalens utformning och funktionalitet","Leveranstid"]
[null,null,"",{"$f":"IFERROR(INDEX($C$210:$C$282,SMALL(IF($C$210:$C$282<>\"\",ROW($C$210:$C$282)-ROW(C$210)+1),ROWS(D$210:D273))),\"\")","v":""},null,{"$f":"IF(RIGHT(LEFT('1 Specifikation'!B287,7),1)=\"T\",\"\",'1 Specifikation'!B287)","v":"Välj Vara"},0,"Varans egenskaper","Varans hållbarhet","Varans cirkularitet","Varans funktionalitet","Varans estetiska utformning","Varans anpassning till befintliga möbler och annan inredning","Varans anpassning till lokalens utformning och funktionalitet","Leveranstid"]
[null,null,"",{"$f":"IFERROR(INDEX($C$210:$C$282,SMALL(IF($C$210:$C$282<>\"\",ROW($C$210:$C$282)-ROW(C$210)+1),ROWS(D$210:D274))),\"\")","v":""},null,{"$f":"IF(RIGHT(LEFT('1 Specifikation'!B288,7),1)=\"T\",\"\",'1 Specifikation'!B288)","v":"Välj Vara"},0,"Varans egenskaper","Varans hållbarhet","Varans cirkularitet","Varans funktionalitet","Varans estetiska utformning","Varans anpassning till befintliga möbler och annan inredning","Varans anpassning till lokalens utformning och funktionalitet","Leveranstid"]
[null,null,"",{"$f":"IFERROR(INDEX($C$210:$C$282,SMALL(IF($C$210:$C$282<>\"\",ROW($C$210:$C$282)-ROW(C$210)+1),ROWS(D$210:D275))),\"\")","v":""},null,{"$f":"IF(RIGHT(LEFT('1 Specifikation'!B289,7),1)=\"T\",\"\",'1 Specifikation'!B289)","v":"Välj Vara"},0,"Varans egenskaper","Varans hållbarhet","Varans cirkularitet","Varans funktionalitet","Varans estetiska utformning","Varans anpassning till befintliga möbler och annan inredning","Varans anpassning till lokalens utformning och funktionalitet","Leveranstid"]
[null,null,{"$f":"IF(RIGHT(LEFT(C201,7),1)=\"T\",\"\",C201)","v":""},{"$f":"IFERROR(INDEX($C$210:$C$282,SMALL(IF($C$210:$C$282<>\"\",ROW($C$210:$C$282)-ROW(C$210)+1),ROWS(D$210:D276))),\"\")","v":""},null,{"$f":"F201","v":"Inventering"}]
[null,null,"",{"$f":"IFERROR(INDEX($C$210:$C$282,SMALL(IF($C$210:$C$282<>\"\",ROW($C$210:$C$282)-ROW(C$210)+1),ROWS(D$210:D277))),\"\")","v":""},null,{"$f":"F202","v":"Möbel- och möbeltextiltvätt"}]
[null,null,"",{"$f":"IFERROR(INDEX($C$210:$C$282,SMALL(IF($C$210:$C$282<>\"\",ROW($C$210:$C$282)-ROW(C$210)+1),ROWS(D$210:D278))),\"\")","v":""},null,"Rekonditionering"]
[null,null,"",{"$f":"IFERROR(INDEX($C$210:$C$282,SMALL(IF($C$210:$C$282<>\"\",ROW($C$210:$C$282)-ROW(C$210)+1),ROWS(D$210:D279))),\"\")","v":""},null,"Renovering"]
[null,null,"",{"$f":"IFERROR(INDEX($C$210:$C$282,SMALL(IF($C$210:$C$282<>\"\",ROW($C$210:$C$282)-ROW(C$210)+1),ROWS(D$210:D280))),\"\")","v":""},null,"Tapetsering, stoppningsarbete"]
[null,null,"",{"$f":"IFERROR(INDEX($C$210:$C$282,SMALL(IF($C$210:$C$282<>\"\",ROW($C$210:$C$282)-ROW(C$210)+1),ROWS(D$210:D281))),\"\")","v":""},null,"Lackering, omlackering"]
[null,null,"",{"$f":"IFERROR(INDEX($C$210:$C$282,SMALL(IF($C$210:$C$282<>\"\",ROW($C$210:$C$282)-ROW(C$210)+1),ROWS(D$210:D282))),\"\")","v":""},null,"Återtag, återköp, destruktion"]

{"sheet":"SysAdmin","index":3,"n_rows":9,"n_cols":5,"rows_kept":9,"cut":false,"hidden":true,"merged":[]}
["LockStatus",false]
["UKey","Förvaltning21",null,2,{"$f":"INDEX(E3:E5,D2)","v":"Avroppsblanketten är nu upplåst, klicka här för att låsa avropsblanketten."}]
["pkey","Förvaltning21",null,null,"Adminläge! Klicka här för att låsa vita celler."]
["Wkey","Förvaltning21","RGB",null,"Avroppsblanketten är nu upplåst, klicka här för att låsa avropsblanketten."]
["YColor"," ","255, 255, 153",null,"Avroppsblanketten är nu låst, klicka här för att låsa upp avropsblanketten."]
[null,null,"204, 255, 255"]
[null,null,"150, 150, 150",null,"Grund för tilldelning av kontrakt & Utvärderingsmodell"]
[null,null,"204, 255, 204",null,{"$f":"VALUE(IF(ISNUMBER(SEARCH(\"2\",DpDwnTDV))=TRUE,\"2\",\"1\"))","v":2}]
[null,null,"250, 191, 143",null,{"$f":"\"Alt\"&IF(ISNUMBER(SEARCH(\"1\",DpDwnUtvddrop))=TRUE,\"1\",IF(ISNUMBER(SEARCH(\"2\",DpDwnUtvddrop))=TRUE,\"2\",IF(ISNUMBER(SEARCH(\"3\",DpDwnUtvddrop))=TRUE,\"3\",IF(ISNUMBER(SEARCH(\"4\",DpDwnUtvddrop))=TRUE,\"4\"))))","v":"AltFALSE"}]